Local authority department which incurred the expenditure,Service Division,Cost Centre,Summary of the Purpose of Expenditure,Expense Type,Expense Code,Detailed Expense Type,Date of Transaction,Transaction Number,Beneficiary,Merchant Category Number,Merchant Category,Gross Amount,VAT,Net Amount
"Regeneration, Economy and Growth",Business Durham CL0850,030689,Inward Investment and Aftercare,Supplies and Services,336005,Advertising E336,01-Jun-2021,000007583888658,LINKEDIN IRELAND,7311,Advertising other than for staff,9.60,0.00,9.60
Children and Young Peoples Services,Head of Education and Skills,071801,Selby Cottage Childcare Centre,Supplies and Services,324117,Provisions E324,01-Jun-2021,000007583888674,TESCO STORES 2278,5411,Catering costs - provisions,7.94,0.00,7.94
"Regeneration, Economy and Growth",Development and Housing,030771,Durham Advance Flexible Fund,Supplies and Services,304221,Equipment and Materials,01-Jun-2021,000007583888718,B & Q 1162,5200,Direct materials,210.00,35.00,175.00
"Regeneration, Economy and Growth",Development and Housing,030771,Durham Advance Flexible Fund,Supplies and Services,304221,Equipment and Materials,01-Jun-2021,000007583888722,SCREWFIX DIRECT,5211,Direct materials,199.99,33.33,166.66
"Regeneration, Economy and Growth",Development and Housing,031576,B& B - Temp Accom,Supplies and Services,364320,Grants to Voluntary Organisations,01-Jun-2021,000007583888732,TRAVELODGE,3615,Accommodation assistance,126.24,21.04,105.20
"Regeneration, Economy and Growth",Development and Housing,031576,B& B - Temp Accom,Supplies and Services,364320,Grants to Voluntary Organisations,01-Jun-2021,000007583888732 - 1,TRAVELODGE,3615,Accommodation assistance,325.04,,325.04
Children and Young Peoples Services,Head of Childrens Social Care,085341,High Etherley Satelite Home,Supplies and Services,324117,Provisions E324,01-Jun-2021,000007583888754,TESCO STORES 6329,5411,Catering costs - provisions,39.23,0.00,39.23
"Regeneration, Economy and Growth",Culture Sport and Tourism,054735,Killhope Cafe,Supplies and Services,304403,Equipment and Materials,01-Jun-2021,000007583888790,AMZNMktplace,5999,Other consumables,16.62,2.77,13.85
Children and Young Peoples Services,Head of Childrens Social Care,085332,Middlestone Moor CU,Supplies and Services,324117,Provisions E324,01-Jun-2021,000007583888814,N HOCKING BUTCHERS,5499,Catering costs - provisions,10.50,0.00,10.50
Children and Young Peoples Services,Head of Childrens Social Care,085332,Middlestone Moor CU,Supplies and Services,324117,Provisions E324,01-Jun-2021,000007583888818,HOME BARGAINS SPENNYMO,5251,Catering costs - provisions,39.98,0.00,39.98
Children and Young Peoples Services,Head of Childrens Social Care,085332,Middlestone Moor CU,Supplies and Services,324117,Provisions E324,01-Jun-2021,000007583888822,ICELAND,5411,Catering costs - provisions,47.20,0.00,47.20
Children and Young Peoples Services,Head of Childrens Social Care,085332,Middlestone Moor CU,Supplies and Services,324117,Provisions E324,01-Jun-2021,000007583888826,LIDL GB SPENNYMOOR,5411,Catering costs - provisions,9.59,0.00,9.59
Children and Young Peoples Services,Head of Childrens Social Care,085332,Middlestone Moor CU,Supplies and Services,324117,Provisions E324,01-Jun-2021,000007583888830,TESCO STORES 2371,5411,Catering costs - provisions,138.55,0.00,138.55
Children and Young Peoples Services,Head of Childrens Social Care,085341,High Etherley Satelite Home,Supplies and Services,324117,Provisions E324,01-Jun-2021,000007583888860,TESCO STORES 6329,5411,Catering costs - provisions,8.00,0.00,8.00
Children and Young Peoples Services,Head of Childrens Social Care,085341,High Etherley Satelite Home,Supplies and Services,328041,Clothing uniforms and laundry E328,01-Jun-2021,000007583888862,ARGOS LTD,5310,Clothing uniforms and laundry,159.99,0.00,159.99
Neighbourhoods and Climate Change,Environmental Services,010367,C&G - South Grounds Maintenance,Supplies and Services,304221,Equipment and Materials,01-Jun-2021,000007583888916,SCREWFIX DIRECT,5211,Direct materials,6.79,0.00,6.79
"Regeneration, Economy and Growth",Development and Housing,030772,CLLD South,Employees,040149,Recruitment Instruction and Training,01-Jun-2021,000007583889046,NCS CITB EXAM,8299,Training-all costs,22.00,0.00,22.00
Children and Young Peoples Services,Head of Childrens Social Care,085361,LAC & Permanence Team 1,Supplies and Services,338045,Services,01-Jun-2021,000007583889052,HM PASSPORT OFFICE,9399,Legal expenses 338045,49.00,0.00,49.00
"Regeneration, Economy and Growth",Development and Housing,031576,B& B - Temp Accom,Supplies and Services,364320,Grants to Voluntary Organisations,01-Jun-2021,000007583889090,TRAVELODGE,3615,Accommodation assistance,94.08,0.00,94.08
"Regeneration, Economy and Growth",Development and Housing,031576,B& B - Temp Accom,Supplies and Services,364320,Grants to Voluntary Organisations,01-Jun-2021,000007583889094,H52STANLEY,7011,Accommodation assistance,500.00,0.00,500.00
"Regeneration, Economy and Growth",Development and Housing,031576,B& B - Temp Accom,Supplies and Services,364320,Grants to Voluntary Organisations,01-Jun-2021,000007583889098,H52STANLEY,7011,Accommodation assistance,60.00,0.00,60.00
"Regeneration, Economy and Growth",Development and Housing,031576,B& B - Temp Accom,Supplies and Services,364320,Grants to Voluntary Organisations,01-Jun-2021,000007583889100,H52STANLEY,7011,Accommodation assistance,170.00,0.00,170.00
"Regeneration, Economy and Growth",Development and Housing,031576,B& B - Temp Accom,Supplies and Services,364320,Grants to Voluntary Organisations,01-Jun-2021,000007583889104,RUSTICA TRATTORIA AND,5812,Accommodation assistance,15.90,0.00,15.90
"Regeneration, Economy and Growth",Development and Housing,031576,B& B - Temp Accom,Supplies and Services,364320,Grants to Voluntary Organisations,01-Jun-2021,000007583889106,RUSTICA TRATTORIA AND,5812,Accommodation assistance,95.40,0.00,95.40
Children and Young Peoples Services,Head of Childrens Social Care,085342,16 Hickstead Rise (previously 9 Cedar Ave),Supplies and Services,372009,Subscriptions E372,01-Jun-2021,000007583889152,NETFLIX.COM,4899,Subscriptions 372009,13.99,0.00,13.99
Children and Young Peoples Services,Head of Education and Skills,071732,Dean Bank Childcare,Supplies and Services,304403,Equipment and Materials,01-Jun-2021,000007583889176,AMZNMktplace,5999,Other consumables,33.98,5.66,28.32
Children and Young Peoples Services,Head of Education and Skills,071732,Dean Bank Childcare,Supplies and Services,304403,Equipment and Materials,01-Jun-2021,000007583889178,AMZNMktplace,5999,Other consumables,93.50,0.00,93.50
"Regeneration, Economy and Growth",Culture Sport and Tourism,054813,Gala Theatre - Technical,Supplies and Services,304221,Equipment and Materials,01-Jun-2021,000007583889190,Dulux Decorator Centre,5198,Direct materials,299.99,0.00,299.99
"Regeneration, Economy and Growth",Culture Sport and Tourism,054813,Gala Theatre - Technical,Supplies and Services,304259,Equipment and Materials,01-Jun-2021,000007583889194,BIGDUG LIMITED,5072,Equipment-purchase and rental,389.42,0.00,389.42
Neighbourhoods and Climate Change,Environmental Services,031221,North Pennines - Bowlees,Supplies and Services,324117,Provisions E324,01-Jun-2021,000007583889210,TESCO STORES 4358,5411,Catering costs - provisions,15.00,0.00,15.00
Children and Young Peoples Services,Head of Childrens Social Care,085334,West Rainton Satelite Home,Supplies and Services,384999,Miscellaneous Expenses,01-Jun-2021,000007583889216,Amazon.co.uk 2T46J12Z4,5969,Other expenses,105.54,0.00,105.54
Children and Young Peoples Services,Head of Childrens Social Care,085334,West Rainton Satelite Home,Supplies and Services,304403,Equipment and Materials,01-Jun-2021,000007583889220,AMZNMktplace,5999,Other consumables,19.99,0.00,19.99
Neighbourhoods and Climate Change,Environmental Services,011060,C&G - Hardwick Park Catering,Supplies and Services,304083,Equipment and Materials,01-Jun-2021,000007583889224,WWW.NISBETS.COM,5964,Catering equipment,59.32,0.00,59.32
Children and Young Peoples Services,Head of Early Help Inclusion & Vulnerable Children.,085962,Aycliffe Secure - Durham,Supplies and Services,324117,Provisions E324,01-Jun-2021,000007583889236,TESCO STORES 2916,5411,Catering costs - provisions,2.96,0.00,2.96
Children and Young Peoples Services,Head of Early Help Inclusion & Vulnerable Children.,085956,Lumley,Supplies and Services,308011,Furniture,01-Jun-2021,000007583889302,AMZNMktplace,5999,Furniture repair and replacement,16.79,2.80,13.99
Children and Young Peoples Services,Head of Early Help Inclusion & Vulnerable Children.,085962,Aycliffe Secure - Durham,Supplies and Services,384302,Miscellaneous Expenses,01-Jun-2021,000007583889306,SENSORY DIRECT,5945,Activity expenses,74.90,12.48,62.42
Neighbourhoods and Climate Change,Environmental Services,011060,C&G - Hardwick Park Catering,Supplies and Services,324117,Provisions E324,01-Jun-2021,000007583889342,HOPWELLS LTD,5811,Catering costs - provisions,358.68,59.78,298.90
Neighbourhoods and Climate Change,Environmental Services,011060,C&G - Hardwick Park Catering,Supplies and Services,324117,Provisions E324,01-Jun-2021,000007583889342 - 1,HOPWELLS LTD,5811,Catering costs - provisions,22.57,,22.57
Neighbourhoods and Climate Change,Environmental Services,011060,C&G - Hardwick Park Catering,Supplies and Services,324117,Provisions E324,01-Jun-2021,000007583889346,HOPWELLS LTD,5811,Catering costs - provisions,469.44,78.24,391.20
Neighbourhoods and Climate Change,Environmental Services,011060,C&G - Hardwick Park Catering,Supplies and Services,324117,Provisions E324,01-Jun-2021,000007583889346 - 1,HOPWELLS LTD,5811,Catering costs - provisions,145.14,,145.14
Neighbourhoods and Climate Change,Environmental Services,011060,C&G - Hardwick Park Catering,Supplies and Services,324117,Provisions E324,01-Jun-2021,000007583889348,HOPWELLS LTD,5811,Catering costs - provisions,282.36,47.06,235.30
Neighbourhoods and Climate Change,Environmental Services,011060,C&G - Hardwick Park Catering,Supplies and Services,324117,Provisions E324,01-Jun-2021,000007583889348 - 1,HOPWELLS LTD,5811,Catering costs - provisions,85.43,,85.43
Neighbourhoods and Climate Change,Environmental Services,011060,C&G - Hardwick Park Catering,Supplies and Services,324117,Provisions E324,01-Jun-2021,000007583889350,JR HOLLAND FOODSERVICE,5499,Catering costs - provisions,33.48,0.00,33.48
"Regeneration, Economy and Growth",Corporate Property and Land,021234,Catering - Locomotion,Supplies and Services,324117,Provisions E324,01-Jun-2021,000007583889378,HOPWELLS LTD,5811,Catering costs - provisions,81.54,13.59,67.95
"Regeneration, Economy and Growth",Corporate Property and Land,021234,Catering - Locomotion,Supplies and Services,324117,Provisions E324,01-Jun-2021,000007583889378 - 1,HOPWELLS LTD,5811,Catering costs - provisions,399.06,,399.06
"Regeneration, Economy and Growth",Corporate Property and Land,021234,Catering - Locomotion,Supplies and Services,324117,Provisions E324,01-Jun-2021,000007583889384,JR HOLLAND FOODSERVICE,5499,Catering costs - provisions,15.08,0.00,15.08
"Regeneration, Economy and Growth",Corporate Property and Land,021234,Catering - Locomotion,Supplies and Services,324117,Provisions E324,01-Jun-2021,000007583889386,JR HOLLAND FOODSERVICE,5499,Catering costs - provisions,59.43,0.00,59.43
"Regeneration, Economy and Growth",Corporate Property and Land,021234,Catering - Locomotion,Supplies and Services,324117,Provisions E324,01-Jun-2021,000007583889390,HOPWELLS LTD,5811,Catering costs - provisions,-5.56,0.00,-5.56
"Regeneration, Economy and Growth",Development and Housing,031500,Housing Solutions - Core,Supplies and Services,328041,Clothing uniforms and laundry E328,01-Jun-2021,000007583889394,ARGOS LTD,5310,Clothing uniforms and laundry,18.95,0.00,18.95
Children and Young Peoples Services,Head of Childrens Social Care,085331,New Lea Childrens Home,Supplies and Services,304999,Equipment and Materials,01-Jun-2021,000007583889456,ADAPATABILITY,5912,Misc equipment tools and materials,31.65,0.00,31.65
Children and Young Peoples Services,Head of Childrens Social Care,085341,High Etherley Satelite Home,Supplies and Services,304999,Equipment and Materials,01-Jun-2021,000007583889470,HOME BARGAINS SPENNYMO,5251,Misc equipment tools and materials,21.01,0.00,21.01
Children and Young Peoples Services,Head of Childrens Social Care,085341,High Etherley Satelite Home,Supplies and Services,324117,Provisions E324,01-Jun-2021,000007583889474,Longstaffs Family Bake,5462,Catering costs - provisions,6.00,0.00,6.00
Neighbourhoods and Climate Change,Environmental Services,010367,C&G - South Grounds Maintenance,Supplies and Services,304221,Equipment and Materials,01-Jun-2021,000007583889480,CARRS BILLINGTON SPENN,5599,Direct materials,329.54,0.00,329.54
Adult and Health Services,Head of Adults,055643,Hawthorn House LD Respite Unit,Supplies and Services,324117,Provisions E324,01-Jun-2021,000007583889528,SAINSBURYS SACAT 0776,5411,Catering costs - provisions,11.74,0.00,11.74
Neighbourhoods and Climate Change,Environmental Services,010367,C&G - South Grounds Maintenance,Supplies and Services,304221,Equipment and Materials,01-Jun-2021,000007583889566,SCREWFIX DIR LTD,5211,Direct materials,29.98,0.00,29.98
Adult and Health Services,Head of Adults,055301,Stanley Pathways,Supplies and Services,324117,Provisions E324,01-Jun-2021,000007583889572,ASDA SUPERSTORE,5411,Catering costs - provisions,4.55,0.00,4.55
Adult and Health Services,Head of Adults,055301,Stanley Pathways,Supplies and Services,324117,Provisions E324,01-Jun-2021,000007583889574,ASDA SUPERSTORE,5411,Catering costs - provisions,8.00,0.00,8.00
Children and Young Peoples Services,Head of Childrens Social Care,085351,Framwellgate Moor CU,Supplies and Services,324117,Provisions E324,01-Jun-2021,000007583889610,ASDA GROCERIES ONLINE,5411,Catering costs - provisions,102.13,0.00,102.13
Children and Young Peoples Services,Head of Childrens Social Care,085351,Framwellgate Moor CU,Supplies and Services,324117,Provisions E324,01-Jun-2021,000007583889612,ASDA GROCERIES ONLINE,5411,Catering costs - provisions,-0.73,0.00,-0.73
"Regeneration, Economy and Growth",Corporate Property and Land,030691,Catering - Durham Dales Centre,Supplies and Services,324117,Provisions E324,01-Jun-2021,000007583889618,HOPWELLS LTD,5811,Catering costs - provisions,160.63,0.00,160.63
"Regeneration, Economy and Growth",Corporate Property and Land,030691,Catering - Durham Dales Centre,Supplies and Services,324117,Provisions E324,01-Jun-2021,000007583889620,JR HOLLAND FOODSERVICE,5499,Catering costs - provisions,91.52,0.00,91.52
"Regeneration, Economy and Growth",Corporate Property and Land,030691,Catering - Durham Dales Centre,Supplies and Services,324117,Provisions E324,01-Jun-2021,000007583889624,HOPWELLS LTD,5811,Catering costs - provisions,-39.07,0.00,-39.07
Children and Young Peoples Services,Head of Childrens Social Care,085332,Middlestone Moor CU,Supplies and Services,304259,Equipment and Materials,01-Jun-2021,000007583889632,DOLPHIN CENTRE,9399,Equipment-purchase and rental,18.55,0.00,18.55
Adult and Health Services,Head of Adults,055643,Hawthorn House LD Respite Unit,Supplies and Services,324117,Provisions E324,01-Jun-2021,000007583889658,HOPWELLS LTD,5811,Catering costs - provisions,1.50,0.25,1.25
Adult and Health Services,Head of Adults,055643,Hawthorn House LD Respite Unit,Supplies and Services,324117,Provisions E324,01-Jun-2021,000007583889658 - 1,HOPWELLS LTD,5811,Catering costs - provisions,54.26,,54.26
Adult and Health Services,Head of Adults,055643,Hawthorn House LD Respite Unit,Supplies and Services,324117,Provisions E324,01-Jun-2021,000007583889662,JR HOLLAND FOODSERVICE,5499,Catering costs - provisions,-43.34,0.00,-43.34
Children and Young Peoples Services,Head of Early Help Inclusion & Vulnerable Children.,088115,Young Parents Programme 088115,Supplies and Services,384302,Miscellaneous Expenses,01-Jun-2021,000007583889702,AMZNMKTPLACE AMAZON.CO,5999,Activity expenses,20.23,3.37,16.86
Resources BK0010,Digital and Customer Services,065335,School Services - Implementations,Supplies and Services,304999,Equipment and Materials,01-Jun-2021,000007583889716,TOOLSTATION UK,5251,Misc equipment tools and materials,27.41,0.00,27.41
Resources BK0010,Procurement Sales & Business Services,065503,Business Support - Spectrum,Transport,235057,Public Transport,01-Jun-2021,000007583889754,WWW.GONORTHEAST.CO.UK,4111,Staff travelling,25.00,0.00,25.00
Children and Young Peoples Services,Head of Childrens Social Care,085332,Middlestone Moor CU,Supplies and Services,304999,Equipment and Materials,01-Jun-2021,000007583889780,Microsoft Console 1-Mo,5816,Misc equipment tools and materials,7.99,0.00,7.99
"Regeneration, Economy and Growth",Development and Housing,031576,B& B - Temp Accom,Transport,235073,Public Transport,01-Jun-2021,000007583889794,BLUELINE TAXIS,4121,Travel-clients/students/children,6.80,0.00,6.80
Children and Young Peoples Services,Head of Childrens Social Care,085351,Framwellgate Moor CU,Supplies and Services,324117,Provisions E324,01-Jun-2021,000007583889810,FRAMWELLGATE CONVENIEN,5411,Catering costs - provisions,34.86,0.00,34.86
Children and Young Peoples Services,Head of Childrens Social Care,085351,Framwellgate Moor CU,Supplies and Services,324117,Provisions E324,01-Jun-2021,000007583889814,ECSI LTD,5499,Catering costs - provisions,9.00,0.00,9.00
Children and Young Peoples Services,Head of Childrens Social Care,085351,Framwellgate Moor CU,Supplies and Services,324117,Provisions E324,01-Jun-2021,000007583889818,CAFE C,5811,Catering costs - provisions,30.38,0.00,30.38
Children and Young Peoples Services,Head of Childrens Social Care,085351,Framwellgate Moor CU,Supplies and Services,324117,Provisions E324,01-Jun-2021,000007583889820,M & M `S WORLD. LONDON,5441,Catering costs - provisions,35.57,0.00,35.57
Children and Young Peoples Services,Head of Childrens Social Care,085351,Framwellgate Moor CU,Transport,235057,Public Transport,01-Jun-2021,000007583889824,TFL TRAVEL CH,4111,Staff travelling,7.20,0.00,7.20
Children and Young Peoples Services,Head of Childrens Social Care,085351,Framwellgate Moor CU,Transport,235057,Public Transport,01-Jun-2021,000007583889828,LUL TICKET MACHINE,4112,Staff travelling,25.00,0.00,25.00
Children and Young Peoples Services,Head of Childrens Social Care,085351,Framwellgate Moor CU,Supplies and Services,348037,Subsistence E348,01-Jun-2021,000007583889832,ANGUS STEAK HOUSE,5812,Subsistence,99.45,0.00,99.45
Children and Young Peoples Services,Head of Childrens Social Care,085351,Framwellgate Moor CU,Supplies and Services,348037,Subsistence E348,01-Jun-2021,000007583889834,MCDONALDS,5812,Subsistence,14.75,0.00,14.75
Children and Young Peoples Services,Head of Education and Skills,071802,Louisa Cent Nursery,Supplies and Services,324117,Provisions E324,01-Jun-2021,000007583889840,ASDA SUPERSTORE,5411,Catering costs - provisions,16.53,0.00,16.53
"Regeneration, Economy and Growth",Development and Housing,031576,B& B - Temp Accom,Supplies and Services,364320,Grants to Voluntary Organisations,01-Jun-2021,000007583889930,TOAST LETTINGS,7011,Accommodation assistance,350.00,0.00,350.00
"Regeneration, Economy and Growth",Development and Housing,031576,B& B - Temp Accom,Supplies and Services,364320,Grants to Voluntary Organisations,01-Jun-2021,000007583889934,TOAST LETTINGS,7011,Accommodation assistance,350.00,0.00,350.00
Adult and Health Services,Head of Adults,055310,Positive Journeys (Tudhoe),Supplies and Services,304999,Equipment and Materials,01-Jun-2021,000007583890006,CHARLES DICKENS (SPENN,5251,Misc equipment tools and materials,5.49,0.00,5.49
"Regeneration, Economy and Growth",Corporate Property and Land,021235,Catering - Wharton Park,Supplies and Services,324117,Provisions E324,01-Jun-2021,000007583890022,HOPWELLS LTD,5811,Catering costs - provisions,128.64,21.44,107.20
"Regeneration, Economy and Growth",Corporate Property and Land,021235,Catering - Wharton Park,Supplies and Services,324117,Provisions E324,01-Jun-2021,000007583890022 - 1,HOPWELLS LTD,5811,Catering costs - provisions,45.08,,45.08
"Regeneration, Economy and Growth",Corporate Property and Land,021235,Catering - Wharton Park,Supplies and Services,324117,Provisions E324,01-Jun-2021,000007583890028,JR HOLLAND FOODSERVICE,5499,Catering costs - provisions,22.51,0.00,22.51
"Regeneration, Economy and Growth",Corporate Property and Land,021235,Catering - Wharton Park,Supplies and Services,324117,Provisions E324,01-Jun-2021,000007583890032,HOPWELLS LTD,5811,Catering costs - provisions,-21.95,0.00,-21.95
"Regeneration, Economy and Growth",Corporate Property and Land,021235,Catering - Wharton Park,Supplies and Services,324117,Provisions E324,01-Jun-2021,000007583890034,HOPWELLS LTD,5811,Catering costs - provisions,-9.07,0.00,-9.07
Adult and Health Services,Head of Adults,055309,Peterlee Pathways,Supplies and Services,304999,Equipment and Materials,01-Jun-2021,000007583890050,HOME BARGAINS PETERLEE,5251,Misc equipment tools and materials,3.78,0.63,3.15
Adult and Health Services,Head of Adults,055309,Peterlee Pathways,Supplies and Services,324117,Provisions E324,01-Jun-2021,000007583890052,LIDL GB,5411,Catering costs - provisions,5.16,0.86,4.30
Children and Young Peoples Services,Head of Childrens Social Care,085551,Short Break Services-Park Hse Sher,Supplies and Services,348037,Subsistence E348,01-Jun-2021,000007583890074,FLAMINGOLAND LTD,5812,Subsistence,25.90,4.32,21.58
Children and Young Peoples Services,Head of Childrens Social Care,085332,Middlestone Moor CU,Supplies and Services,348037,Subsistence E348,01-Jun-2021,000007583890100,WETHERBY COSTA,5812,Subsistence,14.79,0.00,14.79
Children and Young Peoples Services,Head of Childrens Social Care,085332,Middlestone Moor CU,Supplies and Services,324117,Provisions E324,01-Jun-2021,000007583890104,M&S SIMPLY FOOD,5499,Catering costs - provisions,35.25,0.00,35.25
Children and Young Peoples Services,Head of Childrens Social Care,085332,Middlestone Moor CU,Supplies and Services,328041,Clothing uniforms and laundry E328,01-Jun-2021,000007583890108,TK MAXX,5331,Clothing uniforms and laundry,21.76,0.00,21.76
Children and Young Peoples Services,Head of Childrens Social Care,085332,Middlestone Moor CU,Supplies and Services,348037,Subsistence E348,01-Jun-2021,000007583890114,IZ HCP GELATI LTD,5812,Subsistence,20.90,0.00,20.90
Children and Young Peoples Services,Head of Childrens Social Care,085332,Middlestone Moor CU,Supplies and Services,348037,Subsistence E348,01-Jun-2021,000007583890118,LA PORCHETTA POLLO BAR,5812,Subsistence,44.77,0.00,44.77
Children and Young Peoples Services,Head of Childrens Social Care,085332,Middlestone Moor CU,Transport,235057,Public Transport,01-Jun-2021,000007583890122,LUL TICKET MACHINE,4112,Staff travelling,45.00,0.00,45.00
Children and Young Peoples Services,Head of Childrens Social Care,085332,Middlestone Moor CU,Supplies and Services,348037,Subsistence E348,01-Jun-2021,000007583890124,MCDONALDS,5814,Subsistence,2.19,0.00,2.19
Children and Young Peoples Services,Head of Childrens Social Care,085333,Coxhoe Satelite Home,Supplies and Services,304221,Equipment and Materials,01-Jun-2021,000007583890144,NEW COXHOE NURSERY,5261,Direct materials,35.00,0.00,35.00
Neighbourhoods and Climate Change,Environmental Services,031221,North Pennines - Bowlees,Supplies and Services,304221,Equipment and Materials,01-Jun-2021,000007586743402,A AND K HOSIERY LTD,5099,Direct materials,401.58,0.00,401.58
Children and Young Peoples Services,Head of Early Help Inclusion & Vulnerable Children.,085956,Lumley,Supplies and Services,384302,Miscellaneous Expenses,01-Jun-2021,000007586743420,AMZNMKTPLACE AMAZON.CO,5999,Activity expenses,15.24,2.54,12.70
Children and Young Peoples Services,Head of Early Help Inclusion & Vulnerable Children.,085956,Lumley,Supplies and Services,384302,Miscellaneous Expenses,01-Jun-2021,000007586743420 - 1,AMZNMKTPLACE AMAZON.CO,5999,Activity expenses,0.04,,0.04
Neighbourhoods and Climate Change,Environmental Services,011060,C&G - Hardwick Park Catering,Supplies and Services,324117,Provisions E324,01-Jun-2021,000007586743440,BATLEYS PERTH,5300,Catering costs - provisions,497.22,82.87,414.35
Neighbourhoods and Climate Change,Environmental Services,011060,C&G - Hardwick Park Catering,Supplies and Services,324117,Provisions E324,01-Jun-2021,000007586743440 - 1,BATLEYS PERTH,5300,Catering costs - provisions,165.41,,165.41
Neighbourhoods and Climate Change,Environmental Services,011060,C&G - Hardwick Park Catering,Supplies and Services,324117,Provisions E324,01-Jun-2021,000007586743442,BATLEYS PERTH,5300,Catering costs - provisions,326.64,54.44,272.20
Neighbourhoods and Climate Change,Environmental Services,011060,C&G - Hardwick Park Catering,Supplies and Services,324117,Provisions E324,01-Jun-2021,000007586743442 - 1,BATLEYS PERTH,5300,Catering costs - provisions,34.68,,34.68
Children and Young Peoples Services,Head of Childrens Social Care,085351,Framwellgate Moor CU,Supplies and Services,352001,Conference Expenses,01-Jun-2021,000007586743544,CENTRAL PARK HOTEL,7011,Conferencesseminars fees etc,229.00,0.00,229.00
Children and Young Peoples Services,Head of Childrens Social Care,085351,Framwellgate Moor CU,Supplies and Services,352001,Conference Expenses,01-Jun-2021,000007586743546,CENTRAL PARK HOTEL,7011,Conferencesseminars fees etc,10.00,0.00,10.00
Children and Young Peoples Services,Head of Childrens Social Care,085351,Framwellgate Moor CU,Supplies and Services,352001,Conference Expenses,01-Jun-2021,000007586743548,CENTRAL PARK HOTEL,7011,Conferencesseminars fees etc,109.00,0.00,109.00
"Regeneration, Economy and Growth",Business Durham CL0850,030689,Inward Investment and Aftercare,Supplies and Services,304403,Equipment and Materials,02-Jun-2021,000007586743260,ADOBE CREATIVE CLOUD,5734,Other consumables,49.94,0.00,49.94
"Regeneration, Economy and Growth",Business Durham CL0850,030689,Inward Investment and Aftercare,Supplies and Services,342222,Computers and Communications,02-Jun-2021,000007586743262,FASTHOSTS INTERNET,4816,Comp hardware purch-network servers,67.20,0.00,67.20
"Regeneration, Economy and Growth",Business Durham CL0850,030689,Inward Investment and Aftercare,Supplies and Services,342222,Computers and Communications,02-Jun-2021,000007586743264,FASTHOSTS INTERNET,4816,Comp hardware purch-network servers,72.66,0.00,72.66
Children and Young Peoples Services,Head of Education and Skills,071801,Selby Cottage Childcare Centre,Supplies and Services,324117,Provisions E324,02-Jun-2021,000007586743272,TESCO STORES 2371,5411,Catering costs - provisions,72.50,0.00,72.50
Children and Young Peoples Services,Head of Education and Skills,071801,Selby Cottage Childcare Centre,Supplies and Services,308011,Furniture,02-Jun-2021,000007586743274,IKEA LTD 143 GATESHEAD,5712,Furniture repair and replacement,67.00,0.00,67.00
"Regeneration, Economy and Growth",Development and Housing,031576,B& B - Temp Accom,Supplies and Services,364320,Grants to Voluntary Organisations,02-Jun-2021,000007586743278,TOAST LETTINGS,7011,Accommodation assistance,490.00,0.00,490.00
"Regeneration, Economy and Growth",Development and Housing,031576,B& B - Temp Accom,Supplies and Services,364320,Grants to Voluntary Organisations,02-Jun-2021,000007586743280,TOAST LETTINGS,7011,Accommodation assistance,490.00,0.00,490.00
"Regeneration, Economy and Growth",Development and Housing,031576,B& B - Temp Accom,Supplies and Services,364320,Grants to Voluntary Organisations,02-Jun-2021,000007586743282,TOAST LETTINGS,7011,Accommodation assistance,490.00,0.00,490.00
Adult and Health Services,Head of Adults,055302,Durham Pathways,Supplies and Services,324117,Provisions E324,02-Jun-2021,000007586743290,SAINSBURYS 0776,5411,Catering costs - provisions,10.20,0.00,10.20
Adult and Health Services,Head of Adults,055302,Durham Pathways,Supplies and Services,324117,Provisions E324,02-Jun-2021,000007586743292,SAINSBURYS 0776,5411,Catering costs - provisions,17.30,0.00,17.30
"Regeneration, Economy and Growth",Culture Sport and Tourism,030712,VCD - Project Delivery,Supplies and Services,384199,Miscellaneous Expenses,02-Jun-2021,000007586743294,MAILCHIMP MONTHLY,5968,Other hired and contracted services,199.45,0.00,199.45
Children and Young Peoples Services,Head of Childrens Social Care,085342,16 Hickstead Rise (previously 9 Cedar Ave),Supplies and Services,328041,Clothing uniforms and laundry E328,02-Jun-2021,000007586743312,PARISIA,5691,Clothing uniforms and laundry,10.10,0.00,10.10
Children and Young Peoples Services,Head of Childrens Social Care,085342,16 Hickstead Rise (previously 9 Cedar Ave),Supplies and Services,324117,Provisions E324,02-Jun-2021,000007586743314,MARKS&SPENCER PLC SACA,5411,Catering costs - provisions,4.10,0.00,4.10
Children and Young Peoples Services,Head of Childrens Social Care,085342,16 Hickstead Rise (previously 9 Cedar Ave),Supplies and Services,304403,Equipment and Materials,02-Jun-2021,000007586743316,CLINTONS 1225,5947,Other consumables,5.00,0.00,5.00
Children and Young Peoples Services,Head of Childrens Social Care,085342,16 Hickstead Rise (previously 9 Cedar Ave),Supplies and Services,312009,Newspapers books and periodicals E312,02-Jun-2021,000007586743318,WH SMITH,5994,Newspapers books and periodicals,1.00,0.00,1.00
Children and Young Peoples Services,Head of Childrens Social Care,085342,16 Hickstead Rise (previously 9 Cedar Ave),Supplies and Services,324117,Provisions E324,02-Jun-2021,000007586743320,WM MORRISONS STORE,5411,Catering costs - provisions,24.85,0.00,24.85
Children and Young Peoples Services,Head of Childrens Social Care,085342,16 Hickstead Rise (previously 9 Cedar Ave),Supplies and Services,348037,Subsistence E348,02-Jun-2021,000007586743322,GREGGS,5812,Subsistence,5.39,0.00,5.39
Children and Young Peoples Services,Head of Childrens Social Care,085342,16 Hickstead Rise (previously 9 Cedar Ave),Supplies and Services,304259,Equipment and Materials,02-Jun-2021,000007586743324,J D SPORTS 152,5941,Equipment-purchase and rental,55.10,0.00,55.10
Children and Young Peoples Services,Head of Childrens Social Care,085332,Middlestone Moor CU,Supplies and Services,384999,Miscellaneous Expenses,02-Jun-2021,000007586743326,AMZNMKTPLACE AMAZON.CO,5999,Other expenses,85.62,14.27,71.35
Children and Young Peoples Services,Head of Childrens Social Care,085332,Middlestone Moor CU,Supplies and Services,324117,Provisions E324,02-Jun-2021,000007586743328,SAINSBURYS 2199,5411,Catering costs - provisions,42.45,0.00,42.45
Children and Young Peoples Services,Head of Childrens Social Care,085332,Middlestone Moor CU,Supplies and Services,304999,Equipment and Materials,02-Jun-2021,000007586743330,TK MAXX,5331,Misc equipment tools and materials,16.99,0.00,16.99
Children and Young Peoples Services,Head of Childrens Social Care,085332,Middlestone Moor CU,Supplies and Services,324117,Provisions E324,02-Jun-2021,000007586743332,TESCO STORES 2916,5411,Catering costs - provisions,10.23,0.00,10.23
Children and Young Peoples Services,Head of Childrens Social Care,085341,High Etherley Satelite Home,Supplies and Services,324117,Provisions E324,02-Jun-2021,000007586743340,STEVENAGE PACKAGING,5399,Catering costs - provisions,45.85,0.00,45.85
Children and Young Peoples Services,Head of Childrens Social Care,085341,High Etherley Satelite Home,Supplies and Services,328041,Clothing uniforms and laundry E328,02-Jun-2021,000007586743342,ARGOS LTD,5310,Clothing uniforms and laundry,24.00,0.00,24.00
Children and Young Peoples Services,Head of Childrens Social Care,085357,LAC Bespoke Placements,Premises,145051,Cleaning and Domestic Supplies,02-Jun-2021,000007586743344,COMPLETE CARE SHOP,5047,Refuse collection etc.,57.80,0.00,57.80
"Regeneration, Economy and Growth",Development and Housing,030776,LINKCD Flexible Fund,Transport,235057,Public Transport,02-Jun-2021,000007586743352,WWW.GONORTHEAST.CO.UK,4111,Staff travelling,7.00,0.00,7.00
Children and Young Peoples Services,Head of Childrens Social Care,085380,Operations Manager LAC Resources,Supplies and Services,328041,Clothing uniforms and laundry E328,02-Jun-2021,000007586743358,ARGOS LTD,5310,Clothing uniforms and laundry,160.00,0.00,160.00
Children and Young Peoples Services,Head of Childrens Social Care,085380,Operations Manager LAC Resources,Supplies and Services,328041,Clothing uniforms and laundry E328,02-Jun-2021,000007586743360,ARGOS LTD,5310,Clothing uniforms and laundry,178.95,0.00,178.95
Children and Young Peoples Services,Head of Early Help Inclusion & Vulnerable Children.,079599,Psychological-HQ,Supplies and Services,372009,Subscriptions E372,02-Jun-2021,000007586743370,BACP,7299,Subscriptions 372009,275.00,0.00,275.00
Children and Young Peoples Services,Head of Early Help Inclusion & Vulnerable Children.,085965,Barnard,Supplies and Services,384999,Miscellaneous Expenses,02-Jun-2021,000007586743372,SMYTHSTOYS.COM,5945,Other expenses,49.99,0.00,49.99
Children and Young Peoples Services,Head of Early Help Inclusion & Vulnerable Children.,085965,Barnard,Supplies and Services,304403,Equipment and Materials,02-Jun-2021,000007586743374,AMZNMktplace,5999,Other consumables,15.99,0.00,15.99
Children and Young Peoples Services,Head of Childrens Social Care,085362,LAC & Permanence Team 2,Supplies and Services,338045,Services,02-Jun-2021,000007586743376,CITY OF YORK COUNC,9399,Legal expenses 338045,11.00,0.00,11.00
Children and Young Peoples Services,Head of Childrens Social Care,085361,LAC & Permanence Team 1,Supplies and Services,338045,Services,02-Jun-2021,000007586743378,GEN REGISTER OFFICE,9399,Legal expenses 338045,11.00,0.00,11.00
Children and Young Peoples Services,Head of Childrens Social Care,085361,LAC & Permanence Team 1,Supplies and Services,338045,Services,02-Jun-2021,000007586743380,GEN REGISTER OFFICE,9399,Legal expenses 338045,14.00,0.00,14.00
"Regeneration, Economy and Growth",Culture Sport and Tourism,011217,Commercial Management 011217,Supplies and Services,332047,Printing Stationery and Gen Off Exps,02-Jun-2021,000007586743382,WWW.UKPOS.COM,5943,Stationery,147.04,0.00,147.04
"Regeneration, Economy and Growth",Development and Housing,031576,B& B - Temp Accom,Supplies and Services,364320,Grants to Voluntary Organisations,02-Jun-2021,000007586743386,TRAVELODGE,3615,Accommodation assistance,93.57,0.00,93.57
"Regeneration, Economy and Growth",Development and Housing,031576,B& B - Temp Accom,Supplies and Services,364320,Grants to Voluntary Organisations,02-Jun-2021,000007586743388,TRAVELODGE,3615,Accommodation assistance,80.82,0.00,80.82
"Regeneration, Economy and Growth",Development and Housing,031576,B& B - Temp Accom,Supplies and Services,364320,Grants to Voluntary Organisations,02-Jun-2021,000007586743390,TRAVELODGE,3615,Accommodation assistance,79.80,0.00,79.80
Children and Young Peoples Services,Head of Childrens Social Care,085334,West Rainton Satelite Home,Supplies and Services,324117,Provisions E324,02-Jun-2021,000007586743404,TESCO STORES 2371,5411,Catering costs - provisions,172.44,0.00,172.44
Children and Young Peoples Services,Head of Childrens Social Care,085334,West Rainton Satelite Home,Transport,215995,Running Costs of Vehicles,02-Jun-2021,000007586743406,GULF WEST RAINTON,5541,Vehicle running expenses,54.00,0.00,54.00
Children and Young Peoples Services,Head of Childrens Social Care,085334,West Rainton Satelite Home,Supplies and Services,304259,Equipment and Materials,02-Jun-2021,000007586743408,EVANS CYCLES LTD,5940,Equipment-purchase and rental,14.99,0.00,14.99
Neighbourhoods and Climate Change,Environmental Services,026591,C&G - Hardwick Park,Supplies and Services,304337,Equipment and Materials,02-Jun-2021,000007586743410,eBay O 19-07149-72265,5311,Consumables/items for resale,59.80,0.00,59.80
Neighbourhoods and Climate Change,Environmental Services,026591,C&G - Hardwick Park,Supplies and Services,304337,Equipment and Materials,02-Jun-2021,000007586743412,WWW.KEYCRAFTUK.COM,5945,Consumables/items for resale,299.67,0.00,299.67
"Regeneration, Economy and Growth",Development and Housing,031576,B& B - Temp Accom,Supplies and Services,364320,Grants to Voluntary Organisations,02-Jun-2021,000007586743414,CROXDALE INN,5812,Accommodation assistance,135.00,0.00,135.00
"Regeneration, Economy and Growth",Development and Housing,031623,Rough Sleeping,Transport,235057,Public Transport,02-Jun-2021,000007586743418,BLUE LINE TAXIS,4121,Staff travelling,12.10,0.00,12.10
Children and Young Peoples Services,Head of Early Help Inclusion & Vulnerable Children.,085956,Lumley,Transfer Payments,515002,Social Services Clients,02-Jun-2021,000007586743422,MISSYEMPIRE,5691,Pocket money,10.29,0.00,10.29
Children and Young Peoples Services,Head of Early Help Inclusion & Vulnerable Children.,085956,Lumley,Transfer Payments,515002,Social Services Clients,02-Jun-2021,000007586743424,SP ISAWITFIRST.COM,5691,Pocket money,13.50,0.00,13.50
Children and Young Peoples Services,Head of Early Help Inclusion & Vulnerable Children.,085956,Lumley,Transfer Payments,515002,Social Services Clients,02-Jun-2021,000007586743426,SP REBELLIOUS FASHIO,5691,Pocket money,11.98,0.00,11.98
Children and Young Peoples Services,Head of Early Help Inclusion & Vulnerable Children.,085956,Lumley,Transfer Payments,515002,Social Services Clients,02-Jun-2021,000007586743428,PRETTYLITTLETHING.COM,5691,Pocket money,25.00,0.00,25.00
Children and Young Peoples Services,Head of Early Help Inclusion & Vulnerable Children.,085962,Aycliffe Secure - Durham,Supplies and Services,324117,Provisions E324,02-Jun-2021,000007586743430,TESCO STORES 6329,5411,Catering costs - provisions,96.29,0.00,96.29
Children and Young Peoples Services,Head of Early Help Inclusion & Vulnerable Children.,085962,Aycliffe Secure - Durham,Transfer Payments,515002,Social Services Clients,02-Jun-2021,000007586743432,Amazon.co.uk 2T34B77B4,5969,Pocket money,69.97,11.67,58.30
Children and Young Peoples Services,Head of Early Help Inclusion & Vulnerable Children.,085956,Lumley,Transfer Payments,515002,Social Services Clients,02-Jun-2021,000007586743434,www.asos.com,5651,Pocket money,132.55,0.00,132.55
Children and Young Peoples Services,Head of Early Help Inclusion & Vulnerable Children.,085956,Lumley,Transfer Payments,515002,Social Services Clients,02-Jun-2021,000007586743436,JD SPORTS INTERNET,5941,Pocket money,140.00,0.00,140.00
Children and Young Peoples Services,Head of Early Help Inclusion & Vulnerable Children.,088112,Seaham & Central Durham 0-19 Targeted Family Support,Supplies and Services,384999,Miscellaneous Expenses,02-Jun-2021,000007586743438,Amazon.co.uk 2T0DC8DN4,5969,Other expenses,55.70,0.00,55.70
Resources BK0010,People & Talent Management,010984,Training and Development,Employees,040149,Recruitment Instruction and Training,02-Jun-2021,000007586743444,WWW.JIB.ORG.UK,8699,Training-all costs,250.00,0.00,250.00
"Regeneration, Economy and Growth",Corporate Property and Land,021234,Catering - Locomotion,Supplies and Services,324117,Provisions E324,02-Jun-2021,000007586743446,ON A ROLL SANDWICH COM,5499,Catering costs - provisions,137.16,0.00,137.16
"Regeneration, Economy and Growth",Corporate Property and Land,021234,Catering - Locomotion,Supplies and Services,324117,Provisions E324,02-Jun-2021,000007586743448,ON A ROLL SANDWICH COM,5499,Catering costs - provisions,68.51,0.00,68.51
"Regeneration, Economy and Growth",Corporate Property and Land,021234,Catering - Locomotion,Supplies and Services,324117,Provisions E324,02-Jun-2021,000007586743450,JR HOLLAND FOODSERVICE,5499,Catering costs - provisions,3.24,0.00,3.24
"Regeneration, Economy and Growth",Development and Housing,030771,Durham Advance Flexible Fund,Supplies and Services,328041,Clothing uniforms and laundry E328,02-Jun-2021,000007586743452,ARGOS LTD,5310,Clothing uniforms and laundry,53.90,0.00,53.90
Children and Young Peoples Services,Head of Early Help Inclusion & Vulnerable Children.,088106,Ferryhill & N.Aycliffe 0-19 Targeted Family Support,Supplies and Services,384302,Miscellaneous Expenses,02-Jun-2021,000007586743456,LIDL GB BSHP AUCKLAND,5411,Activity expenses,60.72,0.00,60.72
Children and Young Peoples Services,Head of Childrens Social Care,085331,New Lea Childrens Home,Supplies and Services,328041,Clothing uniforms and laundry E328,02-Jun-2021,000007586743458,TJ HUGHES DURHAM,5311,Clothing uniforms and laundry,8.09,0.00,8.09
Children and Young Peoples Services,Head of Childrens Social Care,085331,New Lea Childrens Home,Supplies and Services,324117,Provisions E324,02-Jun-2021,000007586743460,SPAR - GEM WEST AUCKLA,5411,Catering costs - provisions,17.43,0.00,17.43
Children and Young Peoples Services,Head of Childrens Social Care,085331,New Lea Childrens Home,Transport,235057,Public Transport,02-Jun-2021,000007586743462,PRINCE BISHOP SHOPPING,7523,Staff travelling,2.10,0.00,2.10
Children and Young Peoples Services,Head of Childrens Social Care,085331,New Lea Childrens Home,Supplies and Services,328041,Clothing uniforms and laundry E328,02-Jun-2021,000007586743464,NEXT RETAIL LTD,5651,Clothing uniforms and laundry,6.50,0.00,6.50
Children and Young Peoples Services,Head of Childrens Social Care,085331,New Lea Childrens Home,Supplies and Services,328041,Clothing uniforms and laundry E328,02-Jun-2021,000007586743466,NEXT RETAIL LTD,5651,Clothing uniforms and laundry,66.10,0.00,66.10
Children and Young Peoples Services,Head of Childrens Social Care,085331,New Lea Childrens Home,Supplies and Services,304999,Equipment and Materials,02-Jun-2021,000007586743468,BOOTS/0561,5912,Misc equipment tools and materials,6.00,0.00,6.00
Children and Young Peoples Services,Head of Childrens Social Care,085331,New Lea Childrens Home,Supplies and Services,304999,Equipment and Materials,02-Jun-2021,000007586743470,SAVERS HEALTH & BEAUTY,5912,Misc equipment tools and materials,13.98,0.00,13.98
Children and Young Peoples Services,Head of Childrens Social Care,085331,New Lea Childrens Home,Supplies and Services,328041,Clothing uniforms and laundry E328,02-Jun-2021,000007586743472,POUNDLAND LTD,5310,Clothing uniforms and laundry,3.00,0.00,3.00
Children and Young Peoples Services,Head of Childrens Social Care,085331,New Lea Childrens Home,Supplies and Services,304259,Equipment and Materials,02-Jun-2021,000007586743474,J D SPORTS 026,5941,Equipment-purchase and rental,46.00,0.00,46.00
Neighbourhoods and Climate Change,Environmental Services,010367,C&G - South Grounds Maintenance,Supplies and Services,304221,Equipment and Materials,02-Jun-2021,000007586743480,BREWERS,5211,Direct materials,144.88,0.00,144.88
Adult and Health Services,Head of Adults,055643,Hawthorn House LD Respite Unit,Supplies and Services,324117,Provisions E324,02-Jun-2021,000007586743486,CO-OP GROUP FOOD,5411,Catering costs - provisions,6.00,0.00,6.00
"Regeneration, Economy and Growth",Corporate Property and Land,030691,Catering - Durham Dales Centre,Supplies and Services,324117,Provisions E324,02-Jun-2021,000007586743506,JR HOLLAND FOODSERVICE,5499,Catering costs - provisions,59.71,0.00,59.71
Adult and Health Services,Head of Adults,055643,Hawthorn House LD Respite Unit,Supplies and Services,324117,Provisions E324,02-Jun-2021,000007586743508,JR HOLLAND FOODSERVICE,5499,Catering costs - provisions,8.01,0.00,8.01
Adult and Health Services,Head of Adults,055643,Hawthorn House LD Respite Unit,Supplies and Services,324117,Provisions E324,02-Jun-2021,000007586743510,JR HOLLAND FOODSERVICE,5499,Catering costs - provisions,20.16,0.00,20.16
"Regeneration, Economy and Growth",Culture Sport and Tourism,054604,Seven Hills Spennymoor,Supplies and Services,384999,Miscellaneous Expenses,02-Jun-2021,000007586743512,Amazon.co.uk 2T1KA6SZ4,5969,Other expenses,12.99,2.17,10.82
"Regeneration, Economy and Growth",Culture Sport and Tourism,054604,Seven Hills Spennymoor,Supplies and Services,384999,Miscellaneous Expenses,02-Jun-2021,000007586743514,Amazon.co.uk 2T1WJ32S4,5969,Other expenses,15.58,0.00,15.58
Children and Young Peoples Services,Head of Childrens Social Care,085334,West Rainton Satelite Home,Supplies and Services,384999,Miscellaneous Expenses,02-Jun-2021,000007586743516,GAME RETAIL,5945,Other expenses,27.99,0.00,27.99
Children and Young Peoples Services,Head of Childrens Social Care,085334,West Rainton Satelite Home,Supplies and Services,324117,Provisions E324,02-Jun-2021,000007586743518,SWEETS GALORE,5441,Catering costs - provisions,17.43,0.00,17.43
Children and Young Peoples Services,Head of Childrens Social Care,085334,West Rainton Satelite Home,Supplies and Services,384999,Miscellaneous Expenses,02-Jun-2021,000007586743520,BUILD-A-BEAR WORKSHOP,5945,Other expenses,51.50,0.00,51.50
Children and Young Peoples Services,Head of Childrens Social Care,085334,West Rainton Satelite Home,Supplies and Services,348037,Subsistence E348,02-Jun-2021,000007586743522,BURGER KING,5812,Subsistence,21.16,0.00,21.16
Children and Young Peoples Services,Head of Childrens Social Care,085342,16 Hickstead Rise (previously 9 Cedar Ave),Supplies and Services,324117,Provisions E324,02-Jun-2021,000007586743526,TESCO STORES 2916,5411,Catering costs - provisions,21.40,0.00,21.40
Children and Young Peoples Services,Head of Childrens Social Care,085342,16 Hickstead Rise (previously 9 Cedar Ave),Supplies and Services,304403,Equipment and Materials,02-Jun-2021,000007586743528,CARD FACTORY,5947,Other consumables,5.24,0.00,5.24
Resources BK0010,Procurement Sales & Business Services,065503,Business Support - Spectrum,Supplies and Services,304403,Equipment and Materials,02-Jun-2021,000007586743536,AMZNMktplace,5999,Other consumables,46.93,7.82,39.11
Children and Young Peoples Services,Head of Childrens Social Care,085351,Framwellgate Moor CU,Supplies and Services,384999,Miscellaneous Expenses,02-Jun-2021,000007586743538,Retail 3,7922,Other expenses,30.00,0.00,30.00
Children and Young Peoples Services,Head of Childrens Social Care,085351,Framwellgate Moor CU,Supplies and Services,384999,Miscellaneous Expenses,02-Jun-2021,000007586743540,Tavern 2,7922,Other expenses,28.00,0.00,28.00
Children and Young Peoples Services,Head of Childrens Social Care,085351,Framwellgate Moor CU,Transport,235057,Public Transport,02-Jun-2021,000007586743542,TFL TRAVEL CH,4111,Staff travelling,4.80,0.00,4.80
Children and Young Peoples Services,Head of Education and Skills,071802,Louisa Cent Nursery,Supplies and Services,328041,Clothing uniforms and laundry E328,02-Jun-2021,000007586743550,POUNDLAND LTD 1597,5310,Clothing uniforms and laundry,8.50,0.00,8.50
Children and Young Peoples Services,Head of Education and Skills,071802,Louisa Cent Nursery,Supplies and Services,324117,Provisions E324,02-Jun-2021,000007586743552,ALDI STORES,5411,Catering costs - provisions,27.76,0.00,27.76
"Regeneration, Economy and Growth",Corporate Property and Land,021235,Catering - Wharton Park,Supplies and Services,324117,Provisions E324,02-Jun-2021,000007586743564,JR HOLLAND FOODSERVICE,5499,Catering costs - provisions,36.11,0.00,36.11
Neighbourhoods and Climate Change,Environmental Services,010383,C&G - South Street Cleansing,Supplies and Services,304403,Equipment and Materials,02-Jun-2021,000007586743566,AMZNMktplace,5999,Other consumables,101.44,0.00,101.44
Adult and Health Services,Head of Adults,055309,Peterlee Pathways,Supplies and Services,324117,Provisions E324,02-Jun-2021,000007586743568,ASDA SUPERSTORE 4987,5411,Catering costs - provisions,3.20,0.00,3.20
Children and Young Peoples Services,Head of Childrens Social Care,085332,Middlestone Moor CU,Supplies and Services,384999,Miscellaneous Expenses,02-Jun-2021,000007586743574,Merlin Attractions Ope,7922,Other expenses,25.00,0.00,25.00
Children and Young Peoples Services,Head of Childrens Social Care,085332,Middlestone Moor CU,Supplies and Services,348037,Subsistence E348,02-Jun-2021,000007586743576,WAGAMAMA GREAT MARLBOR,5812,Subsistence,136.05,0.00,136.05
Children and Young Peoples Services,Head of Childrens Social Care,085332,Middlestone Moor CU,Supplies and Services,324117,Provisions E324,02-Jun-2021,000007586743578,ZZ FOOD EXPRESS,5411,Catering costs - provisions,24.06,0.00,24.06
Children and Young Peoples Services,Head of Childrens Social Care,085332,Middlestone Moor CU,Supplies and Services,348037,Subsistence E348,02-Jun-2021,000007586743580,IZ HCP GELATI LTD,5812,Subsistence,47.40,0.00,47.40
Children and Young Peoples Services,Head of Childrens Social Care,085332,Middlestone Moor CU,Transport,235057,Public Transport,02-Jun-2021,000007586743582,LUL TICKET MACHINE,4112,Staff travelling,10.00,0.00,10.00
Children and Young Peoples Services,Head of Childrens Social Care,085332,Middlestone Moor CU,Transport,235057,Public Transport,02-Jun-2021,000007586743584,LUL TICKET MACHINE,4112,Staff travelling,10.00,0.00,10.00
Children and Young Peoples Services,Head of Childrens Social Care,085332,Middlestone Moor CU,Transport,235057,Public Transport,02-Jun-2021,000007586743586,LUL TICKET MACHINE,4112,Staff travelling,10.00,0.00,10.00
Children and Young Peoples Services,Head of Childrens Social Care,085332,Middlestone Moor CU,Supplies and Services,328041,Clothing uniforms and laundry E328,02-Jun-2021,000007586743588,HAMLEY`S OF LONDON,5311,Clothing uniforms and laundry,5.95,0.00,5.95
Children and Young Peoples Services,Head of Childrens Social Care,085332,Middlestone Moor CU,Supplies and Services,348037,Subsistence E348,02-Jun-2021,000007586743590,GREGGS PLC,5812,Subsistence,13.15,0.00,13.15
"Regeneration, Economy and Growth",Development and Housing,030770,Durham Advance,Supplies and Services,304403,Equipment and Materials,02-Jun-2021,000007586743594,AMZNMKTPLACE AMAZON.CO,5999,Other consumables,39.94,0.00,39.94
Resources BK0010,Digital and Customer Services,065219,Covid-Reinstatement of Services,Supplies and Services,304403,Equipment and Materials,02-Jun-2021,000007590201246,AMZNMKTPLACE AMAZON.CO,5999,Other consumables,41.47,6.91,34.56
Resources BK0010,Digital and Customer Services,065219,Covid-Reinstatement of Services,Supplies and Services,304403,Equipment and Materials,02-Jun-2021,000007590201248,AMZNMKTPLACE AMAZON.CO,5999,Other consumables,21.99,3.67,18.32
Resources BK0010,Digital and Customer Services,065219,Covid-Reinstatement of Services,Supplies and Services,304403,Equipment and Materials,02-Jun-2021,000007590201250,AMZNMKTPLACE AMAZON.CO,5999,Other consumables,52.95,8.84,44.11
Children and Young Peoples Services,Head of Childrens Social Care,085357,LAC Bespoke Placements,Supplies and Services,304999,Equipment and Materials,02-Jun-2021,000007590201258,YPS GATESHEADS HIDDEN,6513,Misc equipment tools and materials,860.00,0.00,860.00
Children and Young Peoples Services,Head of Childrens Social Care,085342,16 Hickstead Rise (previously 9 Cedar Ave),Supplies and Services,328041,Clothing uniforms and laundry E328,02-Jun-2021,000007590201264,PRIMARK,5651,Clothing uniforms and laundry,60.50,0.00,60.50
Children and Young Peoples Services,Head of Childrens Social Care,085342,16 Hickstead Rise (previously 9 Cedar Ave),Supplies and Services,328041,Clothing uniforms and laundry E328,02-Jun-2021,000007590201266,PRIMARK,5651,Clothing uniforms and laundry,11.00,0.00,11.00
Children and Young Peoples Services,Head of Childrens Social Care,085351,Framwellgate Moor CU,Supplies and Services,348037,Subsistence E348,02-Jun-2021,000007590201476,PREMIER INN 44033690,5812,Subsistence,19.98,0.00,19.98
"Regeneration, Economy and Growth",Business Durham CL0850,030689,Inward Investment and Aftercare,Supplies and Services,342033,Computers and Communications,03-Jun-2021,000007586743266,AdRoll_EMEA,7372,Computer hardware,97.93,0.00,97.93
"Regeneration, Economy and Growth",Business Durham CL0850,030689,Inward Investment and Aftercare,Supplies and Services,342033,Computers and Communications,03-Jun-2021,000007586743268,AdRoll_EMEA,7372,Computer hardware,2.69,0.00,2.69
Children and Young Peoples Services,Head of Education and Skills,071801,Selby Cottage Childcare Centre,Supplies and Services,324117,Provisions E324,03-Jun-2021,000007590201218,B&M 688 WASHINGTON,5399,Catering costs - provisions,47.94,0.00,47.94
Children and Young Peoples Services,Head of Education and Skills,071801,Selby Cottage Childcare Centre,Supplies and Services,304403,Equipment and Materials,03-Jun-2021,000007590201222,AMZNMktplace,5999,Other consumables,12.95,2.16,10.79
Children and Young Peoples Services,Head of Education and Skills,071801,Selby Cottage Childcare Centre,Supplies and Services,304403,Equipment and Materials,03-Jun-2021,000007590201224,AMZNMktplace,5999,Other consumables,84.54,14.09,70.45
"Regeneration, Economy and Growth",Development and Housing,031576,B& B - Temp Accom,Supplies and Services,352001,Conference Expenses,03-Jun-2021,000007590201236,H52STANLEY,7011,Conferencesseminars fees etc,302.00,0.00,302.00
"Regeneration, Economy and Growth",Development and Housing,031576,B& B - Temp Accom,Supplies and Services,348037,Subsistence E348,03-Jun-2021,000007590201238,RUSTICA TRATTORIA AND,5812,Subsistence,31.80,0.00,31.80
Children and Young Peoples Services,Head of Childrens Social Care,085341,High Etherley Satelite Home,Supplies and Services,304403,Equipment and Materials,03-Jun-2021,000007590201252,AMZNMKTPLACE AMAZON.CO,5999,Other consumables,162.90,27.15,135.75
Resources BK0010,Legal & Democratic Services,067910,Democratic Representation 067910,Supplies and Services,304403,Equipment and Materials,03-Jun-2021,000007590201254,AMZNMKTPLACE AMAZON.CO,5999,Other consumables,17.99,3.00,14.99
Resources BK0010,Digital and Customer Services,065481,Technical Services 065481,Supplies and Services,304403,Equipment and Materials,03-Jun-2021,000007590201256,AMZNMktplace,5999,Other consumables,19.98,3.34,16.64
Children and Young Peoples Services,Head of Childrens Social Care,085357,LAC Bespoke Placements,Supplies and Services,304999,Equipment and Materials,03-Jun-2021,000007590201260,YPS SOUTH SHIELDS HIDD,6513,Misc equipment tools and materials,860.00,0.00,860.00
"Regeneration, Economy and Growth",Culture Sport and Tourism,030705,Visit County Durham 030705,Supplies and Services,342033,Computers and Communications,03-Jun-2021,000007590201262,FASTHOSTS INTERNET,4816,Computer hardware,6.34,1.06,5.28
Children and Young Peoples Services,Head of Childrens Social Care,085341,High Etherley Satelite Home,Supplies and Services,332047,Printing Stationery and Gen Off Exps,03-Jun-2021,000007590201268,Vue Entertainment Ltd,7832,Stationery,9.98,0.00,9.98
Children and Young Peoples Services,Head of Childrens Social Care,085341,High Etherley Satelite Home,Supplies and Services,332047,Printing Stationery and Gen Off Exps,03-Jun-2021,000007590201270,Vue Entertainment Ltd,7832,Stationery,4.99,0.00,4.99
Children and Young Peoples Services,Head of Childrens Social Care,085331,New Lea Childrens Home,Supplies and Services,324117,Provisions E324,03-Jun-2021,000007590201280,ASDA SUPERSTORE,5411,Catering costs - provisions,2.18,0.00,2.18
Children and Young Peoples Services,Head of Childrens Social Care,085331,New Lea Childrens Home,Supplies and Services,324117,Provisions E324,03-Jun-2021,000007590201282,WM MORRISONS STORE,5411,Catering costs - provisions,0.75,0.00,0.75
"Regeneration, Economy and Growth",Development and Housing,030544,Rural Employability - Client Engagement,Employees,040149,Recruitment Instruction and Training,03-Jun-2021,000007590201290,WWW.MOBILETESTING.UK.C,8220,Training-all costs,185.00,0.00,185.00
"Regeneration, Economy and Growth",Culture Sport and Tourism,054233,Bishop Auckland Town Hall Library,Supplies and Services,324117,Provisions E324,03-Jun-2021,000007590201292,HERON FOODS BISHOP AUC,5411,Catering costs - provisions,20.90,0.00,20.90
Neighbourhoods and Climate Change,Environmental Services,031221,North Pennines - Bowlees,Employees,040149,Recruitment Instruction and Training,03-Jun-2021,000007590201328,RSPB SALES LTD,8398,Training-all costs,56.96,0.00,56.96
Neighbourhoods and Climate Change,Environmental Services,031221,North Pennines - Bowlees,Third Party Payments,430100,Rendered by Private Contractors,03-Jun-2021,000007590201330,HSD ONLINE,1520,Payments to sub-contractors,71.99,0.00,71.99
Neighbourhoods and Climate Change,Environmental Services,031221,North Pennines - Bowlees,Supplies and Services,308011,Furniture,03-Jun-2021,000007590201332,AMZ HSD online,5719,Furniture repair and replacement,-71.99,0.00,-71.99
Children and Young Peoples Services,Head of Childrens Social Care,085334,West Rainton Satelite Home,Supplies and Services,324117,Provisions E324,03-Jun-2021,000007590201334,TESCO STORES 2371,5411,Catering costs - provisions,58.73,0.00,58.73
Children and Young Peoples Services,Head of Childrens Social Care,085334,West Rainton Satelite Home,Supplies and Services,324117,Provisions E324,03-Jun-2021,000007590201336,TESCO STORES 2371,5411,Catering costs - provisions,9.70,0.00,9.70
"Regeneration, Economy and Growth",Culture Sport and Tourism,011207,Physical Activity 011207,Supplies and Services,304403,Equipment and Materials,03-Jun-2021,000007590201342,www.cotswoldoutdoor.co,5691,Other consumables,75.00,0.00,75.00
"Regeneration, Economy and Growth",Development and Housing,031623,Rough Sleeping,Supplies and Services,352001,Conference Expenses,03-Jun-2021,000007590201344,AYCLIFFE BIZ,7011,Conferencesseminars fees etc,266.00,0.00,266.00
"Regeneration, Economy and Growth",Development and Housing,031623,Rough Sleeping,Supplies and Services,352001,Conference Expenses,03-Jun-2021,000007590201346,AYCLIFFE BIZ,7011,Conferencesseminars fees etc,418.00,0.00,418.00
"Regeneration, Economy and Growth",Development and Housing,031623,Rough Sleeping,Supplies and Services,352001,Conference Expenses,03-Jun-2021,000007590201350,AYCLIFFE BIZ,7011,Conferencesseminars fees etc,418.00,0.00,418.00
Children and Young Peoples Services,Head of Early Help Inclusion & Vulnerable Children.,085956,Lumley,Transfer Payments,515002,Social Services Clients,03-Jun-2021,000007590201352,AMZNMktplace,5999,Pocket money,6.99,1.17,5.82
Children and Young Peoples Services,Head of Early Help Inclusion & Vulnerable Children.,085956,Lumley,Transfer Payments,515002,Social Services Clients,03-Jun-2021,000007590201354,AMZNMktplace,5999,Pocket money,4.79,0.80,3.99
Children and Young Peoples Services,Head of Early Help Inclusion & Vulnerable Children.,085957,Secure Management,Supplies and Services,324117,Provisions E324,03-Jun-2021,000007590201356,TESCO STORES 6329,5411,Catering costs - provisions,42.75,0.00,42.75
Neighbourhoods and Climate Change,Environmental Services,011060,C&G - Hardwick Park Catering,Supplies and Services,324117,Provisions E324,03-Jun-2021,000007590201360,JR HOLLAND FOODSERVICE,5499,Catering costs - provisions,39.57,0.00,39.57
Children and Young Peoples Services,Head of Education and Skills,075021,DurhamWorks Progression and Learning,Supplies and Services,364301,Grants to Voluntary Organisations,03-Jun-2021,000007590201362,WWW.GONORTHEAST.CO.UK,4111,Hardship,4.50,0.00,4.50
Children and Young Peoples Services,Head of Education and Skills,075021,DurhamWorks Progression and Learning,Supplies and Services,364301,Grants to Voluntary Organisations,03-Jun-2021,000007590201366,WWW.GONORTHEAST.CO.UK,4111,Hardship,4.50,0.00,4.50
Children and Young Peoples Services,Head of Education and Skills,075021,DurhamWorks Progression and Learning,Supplies and Services,364301,Grants to Voluntary Organisations,03-Jun-2021,000007590201368,WWW.GONORTHEAST.CO.UK,4111,Hardship,4.50,0.00,4.50
Children and Young Peoples Services,Head of Education and Skills,075021,DurhamWorks Progression and Learning,Supplies and Services,364301,Grants to Voluntary Organisations,03-Jun-2021,000007590201370,WWW.GONORTHEAST.CO.UK,4111,Hardship,68.00,0.00,68.00
Children and Young Peoples Services,Head of Education and Skills,075021,DurhamWorks Progression and Learning,Supplies and Services,364301,Grants to Voluntary Organisations,03-Jun-2021,000007590201372,SPORTSDIRECT.COM,5691,Hardship,31.98,0.00,31.98
Children and Young Peoples Services,Head of Education and Skills,075021,DurhamWorks Progression and Learning,Supplies and Services,364301,Grants to Voluntary Organisations,03-Jun-2021,000007590201374,AMZNMktplace,5999,Hardship,40.90,6.82,34.08
Children and Young Peoples Services,Head of Education and Skills,075021,DurhamWorks Progression and Learning,Supplies and Services,364301,Grants to Voluntary Organisations,03-Jun-2021,000007590201376,SCREWFIX DIRECT,5211,Hardship,4.98,0.83,4.15
Children and Young Peoples Services,Head of Education and Skills,075021,DurhamWorks Progression and Learning,Supplies and Services,364301,Grants to Voluntary Organisations,03-Jun-2021,000007590201376 - 1,SCREWFIX DIRECT,5211,Hardship,16.01,,16.01
Children and Young Peoples Services,Head of Education and Skills,075021,DurhamWorks Progression and Learning,Supplies and Services,364301,Grants to Voluntary Organisations,03-Jun-2021,000007590201378,SCREWFIX DIRECT,5211,Hardship,26.94,4.49,22.45
Children and Young Peoples Services,Head of Education and Skills,075021,DurhamWorks Progression and Learning,Supplies and Services,364301,Grants to Voluntary Organisations,03-Jun-2021,000007590201378 - 1,SCREWFIX DIRECT,5211,Hardship,0.04,,0.04
Children and Young Peoples Services,Head of Education and Skills,075021,DurhamWorks Progression and Learning,Supplies and Services,364301,Grants to Voluntary Organisations,03-Jun-2021,000007590201380,SCREWFIX DIRECT,5211,Hardship,71.64,11.94,59.70
Children and Young Peoples Services,Head of Education and Skills,075021,DurhamWorks Progression and Learning,Supplies and Services,364301,Grants to Voluntary Organisations,03-Jun-2021,000007590201380 - 1,SCREWFIX DIRECT,5211,Hardship,29.03,,29.03
"Regeneration, Economy and Growth",Corporate Property and Land,021234,Catering - Locomotion,Supplies and Services,324117,Provisions E324,03-Jun-2021,000007590201382,JR HOLLAND FOODSERVICE,5499,Catering costs - provisions,-3.39,0.00,-3.39
"Regeneration, Economy and Growth",Development and Housing,031500,Housing Solutions - Core,Supplies and Services,352001,Conference Expenses,03-Jun-2021,000007590201384,PREMIER LODGE NORTH,7011,Conferencesseminars fees etc,"1,250.00",0.00,1250.00
"Regeneration, Economy and Growth",Development and Housing,031576,B& B - Temp Accom,Supplies and Services,364320,Grants to Voluntary Organisations,03-Jun-2021,000007590201386,RUSTICA TRATTORIA AND,5812,Accommodation assistance,31.80,0.00,31.80
Children and Young Peoples Services,Head of Childrens Social Care,085331,New Lea Childrens Home,Supplies and Services,324117,Provisions E324,03-Jun-2021,000007590201388,ASDA SUPERSTORE,5411,Catering costs - provisions,144.43,0.00,144.43
"Regeneration, Economy and Growth",Development and Housing,031576,B& B - Temp Accom,Supplies and Services,364320,Grants to Voluntary Organisations,03-Jun-2021,000007590201390,TOAST LETTINGS,7011,Accommodation assistance,420.00,0.00,420.00
"Regeneration, Economy and Growth",Development and Housing,031576,B& B - Temp Accom,Supplies and Services,364320,Grants to Voluntary Organisations,03-Jun-2021,000007590201392,TOAST LETTINGS,7011,Accommodation assistance,640.00,0.00,640.00
"Regeneration, Economy and Growth",Development and Housing,031576,B& B - Temp Accom,Supplies and Services,364320,Grants to Voluntary Organisations,03-Jun-2021,000007590201394,TOAST LETTINGS,7011,Accommodation assistance,600.00,0.00,600.00
"Regeneration, Economy and Growth",Corporate Property and Land,020061,Bldg Serv - R&M Div 61 - Building,Supplies and Services,304221,Equipment and Materials,03-Jun-2021,000007590201396,HOWDENS - CR/CONTRL D2,5211,Direct materials,227.88,0.00,227.88
Children and Young Peoples Services,Head of Early Help Inclusion & Vulnerable Children.,088115,Young Parents Programme 088115,Supplies and Services,384302,Miscellaneous Expenses,03-Jun-2021,000007590201406,AMZNMktplace,5999,Activity expenses,32.94,5.49,27.45
Children and Young Peoples Services,Head of Early Help Inclusion & Vulnerable Children.,088115,Young Parents Programme 088115,Supplies and Services,384302,Miscellaneous Expenses,03-Jun-2021,000007590201406 - 1,AMZNMktplace,5999,Activity expenses,0.03,,0.03
Children and Young Peoples Services,Head of Early Help Inclusion & Vulnerable Children.,088106,Ferryhill & N.Aycliffe 0-19 Targeted Family Support,Supplies and Services,384302,Miscellaneous Expenses,03-Jun-2021,000007590201408,HOME BARGAINS,5251,Activity expenses,38.52,0.00,38.52
Neighbourhoods and Climate Change,Environmental Services,010367,C&G - South Grounds Maintenance,Supplies and Services,304999,Equipment and Materials,03-Jun-2021,000007590201410,RICKERBY,5251,Misc equipment tools and materials,97.97,0.00,97.97
Children and Young Peoples Services,Head of Childrens Social Care,085342,16 Hickstead Rise (previously 9 Cedar Ave),Supplies and Services,348037,Subsistence E348,03-Jun-2021,000007590201418,UNO MOMENTO DARLINGTON,5812,Subsistence,53.55,0.00,53.55
Children and Young Peoples Services,Head of Childrens Social Care,085342,16 Hickstead Rise (previously 9 Cedar Ave),Supplies and Services,324117,Provisions E324,03-Jun-2021,000007590201420,ALDI 74 774,5411,Catering costs - provisions,11.20,0.00,11.20
Children and Young Peoples Services,Head of Childrens Social Care,085351,Framwellgate Moor CU,Supplies and Services,324117,Provisions E324,03-Jun-2021,000007590201422,TESCO STORES 2371,5411,Catering costs - provisions,32.35,0.00,32.35
Children and Young Peoples Services,Head of Education and Skills,078100,Curric and Professional Development 078100,Supplies and Services,304403,Equipment and Materials,03-Jun-2021,000007590201432,ADOBE STOCK,5734,Other consumables,23.99,0.00,23.99
Neighbourhoods and Climate Change,Environmental Services,010301,C&G - North Grounds Maintenance,Supplies and Services,304403,Equipment and Materials,03-Jun-2021,000007590201434,BESCOL,5231,Other consumables,102.00,0.00,102.00
Children and Young Peoples Services,Head of Childrens Social Care,085363,LAC & Permanence Team 3,Supplies and Services,338045,Services,03-Jun-2021,000007590201436,CITY OF NEWCASTLE INTE,9399,Legal expenses 338045,22.00,0.00,22.00
Children and Young Peoples Services,Head of Childrens Social Care,085363,LAC & Permanence Team 3,Supplies and Services,338045,Services,03-Jun-2021,000007590201438,STOCKTON BOROUGH COUNC,9399,Legal expenses 338045,44.00,0.00,44.00
Children and Young Peoples Services,Head of Early Help Inclusion & Vulnerable Children.,088115,Young Parents Programme 088115,Supplies and Services,384302,Miscellaneous Expenses,03-Jun-2021,000007590201440,Amazon.co.uk 2T9O17U04,5969,Activity expenses,9.87,1.65,8.22
Children and Young Peoples Services,Head of Early Help Inclusion & Vulnerable Children.,085957,Secure Management,Supplies and Services,332047,Printing Stationery and Gen Off Exps,03-Jun-2021,000007590201442,AMZNMKTPLACE AMAZON.CO,5999,Stationery,14.95,2.50,12.45
"Regeneration, Economy and Growth",Culture Sport and Tourism,054235,Bishop Auckland Town Hall Cafe,Supplies and Services,324117,Provisions E324,03-Jun-2021,000007590201448,JR HOLLAND FOODSERVICE,5499,Catering costs - provisions,245.23,0.00,245.23
"Regeneration, Economy and Growth",Culture Sport and Tourism,054235,Bishop Auckland Town Hall Cafe,Supplies and Services,324117,Provisions E324,03-Jun-2021,000007590201450,JR HOLLAND FOODSERVICE,5499,Catering costs - provisions,8.84,0.00,8.84
"Regeneration, Economy and Growth",Transport and Contracted Services,031704,Care Connect - CCTV Countywide,Supplies and Services,384956,Miscellaneous Expenses,03-Jun-2021,000007590201452,SECURITY INDUSTRY,7393,Licences,190.00,0.00,190.00
Children and Young Peoples Services,Head of Childrens Social Care,085551,Short Break Services-Park Hse Sher,Supplies and Services,324117,Provisions E324,03-Jun-2021,000007590201458,WWW.ICELAND.CO.UK,5411,Catering costs - provisions,94.70,0.00,94.70
Children and Young Peoples Services,Head of Childrens Social Care,085332,Middlestone Moor CU,Supplies and Services,304999,Equipment and Materials,03-Jun-2021,000007590201460,BOOTS/0562,5912,Misc equipment tools and materials,6.98,0.00,6.98
Children and Young Peoples Services,Head of Childrens Social Care,085332,Middlestone Moor CU,Supplies and Services,348037,Subsistence E348,03-Jun-2021,000007590201462,GREGGS,5812,Subsistence,13.60,0.00,13.60
"Regeneration, Economy and Growth",Development and Housing,031576,B& B - Temp Accom,Supplies and Services,364320,Grants to Voluntary Organisations,03-Jun-2021,000007590201466,BUDGET H EXPRESS HOTEL,7011,Accommodation assistance,500.00,0.00,500.00
"Regeneration, Economy and Growth",Development and Housing,031576,B& B - Temp Accom,Supplies and Services,364320,Grants to Voluntary Organisations,03-Jun-2021,000007590201468,BUDGET H EXPRESS HOTEL,7011,Accommodation assistance,500.00,0.00,500.00
"Regeneration, Economy and Growth",Development and Housing,031576,B& B - Temp Accom,Supplies and Services,364320,Grants to Voluntary Organisations,03-Jun-2021,000007590201470,BUDGET H EXPRESS HOTEL,7011,Accommodation assistance,68.00,0.00,68.00
"Regeneration, Economy and Growth",Development and Housing,031576,B& B - Temp Accom,Supplies and Services,364320,Grants to Voluntary Organisations,03-Jun-2021,000007590201472,BUDGET H EXPRESS HOTEL,7011,Accommodation assistance,267.00,0.00,267.00
Children and Young Peoples Services,Head of Childrens Social Care,085351,Framwellgate Moor CU,Supplies and Services,304999,Equipment and Materials,03-Jun-2021,000007590201474,RITUAL-TERRACE RESTAUR,5817,Misc equipment tools and materials,36.10,0.00,36.10
Children and Young Peoples Services,Head of Childrens Social Care,085351,Framwellgate Moor CU,Supplies and Services,348037,Subsistence E348,03-Jun-2021,000007590201478,HTTPS://GABETO.BYTABLE,5812,Subsistence,60.40,0.00,60.40
Children and Young Peoples Services,Head of Childrens Social Care,085351,Framwellgate Moor CU,Supplies and Services,324117,Provisions E324,03-Jun-2021,000007590201480,SQ MOST14 LTD,5399,Catering costs - provisions,3.00,0.00,3.00
Children and Young Peoples Services,Head of Childrens Social Care,085351,Framwellgate Moor CU,Supplies and Services,348037,Subsistence E348,03-Jun-2021,000007590201482,J D WETHERSPOON PLC,5812,Subsistence,3.99,0.00,3.99
Children and Young Peoples Services,Head of Childrens Social Care,085351,Framwellgate Moor CU,Employees,040149,Recruitment Instruction and Training,03-Jun-2021,000007590201484,ZOO ENTERPRISES,8398,Training-all costs,6.00,0.00,6.00
Children and Young Peoples Services,Head of Childrens Social Care,085351,Framwellgate Moor CU,Employees,040149,Recruitment Instruction and Training,03-Jun-2021,000007590201486,ZOO ENTERPRISES,8398,Training-all costs,28.20,0.00,28.20
Children and Young Peoples Services,Head of Childrens Social Care,085351,Framwellgate Moor CU,Transport,235057,Public Transport,03-Jun-2021,000007590201488,TFL TRAVEL CH,4111,Staff travelling,4.05,0.00,4.05
Children and Young Peoples Services,Head of Childrens Social Care,085351,Framwellgate Moor CU,Transport,215995,Running Costs of Vehicles,03-Jun-2021,000007590201490,SHELL & WAITROSE,5541,Vehicle running expenses,6.50,0.00,6.50
Neighbourhoods and Climate Change,Environmental Services,031200,North Pennines Core,Supplies and Services,332047,Printing Stationery and Gen Off Exps,03-Jun-2021,000007590201492,PAYPAL BUMBLEBEECO,8641,Stationery,22.00,0.00,22.00
Adult and Health Services,Head of Adults,055310,Positive Journeys (Tudhoe),Supplies and Services,304403,Equipment and Materials,03-Jun-2021,000007590201494,AMZNMktplace,5999,Other consumables,11.99,2.00,9.99
Adult and Health Services,Head of Adults,055310,Positive Journeys (Tudhoe),Supplies and Services,324117,Provisions E324,03-Jun-2021,000007590201496,ASDA SUPERSTORE 4987,5411,Catering costs - provisions,1.09,0.00,1.09
Adult and Health Services,Head of Adults,055310,Positive Journeys (Tudhoe),Supplies and Services,304403,Equipment and Materials,03-Jun-2021,000007590201498,AMZNMktplace,5999,Other consumables,19.61,3.27,16.34
Children and Young Peoples Services,Head of Childrens Social Care,085332,Middlestone Moor CU,Supplies and Services,384999,Miscellaneous Expenses,03-Jun-2021,000007590201506,Legoland Windsor,7922,Other expenses,10.76,0.00,10.76
Children and Young Peoples Services,Head of Childrens Social Care,085332,Middlestone Moor CU,Supplies and Services,348037,Subsistence E348,03-Jun-2021,000007590201508,LLW Pirates Burger Kit,5812,Subsistence,6.98,0.00,6.98
Children and Young Peoples Services,Head of Childrens Social Care,085332,Middlestone Moor CU,Supplies and Services,348037,Subsistence E348,03-Jun-2021,000007590201510,LLW Pirates Burger Kit,5812,Subsistence,42.21,0.00,42.21
Children and Young Peoples Services,Head of Childrens Social Care,085332,Middlestone Moor CU,Supplies and Services,384999,Miscellaneous Expenses,03-Jun-2021,000007590201514,Big Shop,7922,Other expenses,34.37,0.00,34.37
Children and Young Peoples Services,Head of Childrens Social Care,085332,Middlestone Moor CU,Supplies and Services,384999,Miscellaneous Expenses,03-Jun-2021,000007590201516,Big Shop,7922,Other expenses,90.09,0.00,90.09
Children and Young Peoples Services,Head of Childrens Social Care,085332,Middlestone Moor CU,Supplies and Services,384999,Miscellaneous Expenses,03-Jun-2021,000007590201518,Legoland Windsor,7922,Other expenses,8.00,0.00,8.00
Children and Young Peoples Services,Head of Childrens Social Care,085332,Middlestone Moor CU,Supplies and Services,384999,Miscellaneous Expenses,03-Jun-2021,000007590201520,Legoland Windsor,7922,Other expenses,7.97,0.00,7.97
Children and Young Peoples Services,Head of Childrens Social Care,085332,Middlestone Moor CU,Supplies and Services,348037,Subsistence E348,03-Jun-2021,000007590201522,HARD ROCK PICCADYLI CA,5812,Subsistence,186.98,0.00,186.98
Resources BK0010,Digital and Customer Services,065219,Covid-Reinstatement of Services,Supplies and Services,304403,Equipment and Materials,03-Jun-2021,000009536199933,AMZNMKTPLACE AMAZON.CO,5999,Other consumables,18.98,3.16,15.82
Neighbourhoods and Climate Change,Environmental Services,011060,C&G - Hardwick Park Catering,Supplies and Services,324117,Provisions E324,03-Jun-2021,000009536200381,BATLEYS PERTH,5300,Catering costs - provisions,397.86,66.31,331.55
Neighbourhoods and Climate Change,Environmental Services,011060,C&G - Hardwick Park Catering,Supplies and Services,324117,Provisions E324,03-Jun-2021,000009536200381 - 1,BATLEYS PERTH,5300,Catering costs - provisions,52.25,,52.25
Neighbourhoods and Climate Change,Environmental Services,011060,C&G - Hardwick Park Catering,Supplies and Services,324117,Provisions E324,03-Jun-2021,000009536200387,BATLEYS PERTH,5300,Catering costs - provisions,181.14,30.19,150.95
Neighbourhoods and Climate Change,Environmental Services,011060,C&G - Hardwick Park Catering,Supplies and Services,324117,Provisions E324,03-Jun-2021,000009536200387 - 1,BATLEYS PERTH,5300,Catering costs - provisions,21.57,,21.57
Neighbourhoods and Climate Change,Environmental Services,011060,C&G - Hardwick Park Catering,Supplies and Services,324117,Provisions E324,03-Jun-2021,000009536200397,BATLEYS PERTH,5300,Catering costs - provisions,22.08,3.68,18.40
Neighbourhoods and Climate Change,Environmental Services,011060,C&G - Hardwick Park Catering,Supplies and Services,324117,Provisions E324,03-Jun-2021,000009536200397 - 1,BATLEYS PERTH,5300,Catering costs - provisions,10.74,,10.74
"Regeneration, Economy and Growth",Corporate Property and Land,030691,Catering - Durham Dales Centre,Supplies and Services,324117,Provisions E324,03-Jun-2021,000009536200593,BATLEYS PERTH,5300,Catering costs - provisions,142.56,23.76,118.80
"Regeneration, Economy and Growth",Corporate Property and Land,030691,Catering - Durham Dales Centre,Supplies and Services,324117,Provisions E324,03-Jun-2021,000009536200593 - 1,BATLEYS PERTH,5300,Catering costs - provisions,117.47,,117.47
"Regeneration, Economy and Growth",Corporate Property and Land,030691,Catering - Durham Dales Centre,Supplies and Services,324117,Provisions E324,03-Jun-2021,000009536200611,BATLEYS PERTH,5300,Catering costs - provisions,-19.20,0.00,-19.20
Children and Young Peoples Services,Head of Childrens Social Care,085332,Middlestone Moor CU,Supplies and Services,304403,Equipment and Materials,03-Jun-2021,000009536200895,HARD ROCK PICCADILLY R,5947,Other consumables,50.90,0.00,50.90
Children and Young Peoples Services,Head of Education and Skills,071801,Selby Cottage Childcare Centre,Supplies and Services,304403,Equipment and Materials,04-Jun-2021,000007590201226,AMZNMktplace,5999,Other consumables,89.98,15.00,74.98
Children and Young Peoples Services,Head of Education and Skills,071801,Selby Cottage Childcare Centre,Supplies and Services,304403,Equipment and Materials,04-Jun-2021,000007590201228,AMZNMktplace,5999,Other consumables,15.58,2.60,12.98
"Regeneration, Economy and Growth",Business Durham CL0850,030689,Inward Investment and Aftercare,Supplies and Services,342222,Computers and Communications,04-Jun-2021,000009536199899,FASTHOSTS INTERNET,4816,Comp hardware purch-network servers,7.54,0.00,7.54
Children and Young Peoples Services,Head of Education and Skills,071801,Selby Cottage Childcare Centre,Supplies and Services,304403,Equipment and Materials,04-Jun-2021,000009536199905,AMZNMktplace,5999,Other consumables,42.47,7.08,35.39
Children and Young Peoples Services,Head of Education and Skills,071801,Selby Cottage Childcare Centre,Supplies and Services,324117,Provisions E324,04-Jun-2021,000009536199909,WM MORRISONS STORE,5411,Catering costs - provisions,21.89,0.00,21.89
"Regeneration, Economy and Growth",Development and Housing,031576,B& B - Temp Accom,Supplies and Services,352001,Conference Expenses,04-Jun-2021,000009536199917,BUDGET H EXPRESS HOTEL,7011,Conferencesseminars fees etc,89.00,0.00,89.00
"Regeneration, Economy and Growth",Development and Housing,031576,B& B - Temp Accom,Supplies and Services,352001,Conference Expenses,04-Jun-2021,000009536199925,BUDGET H EXPRESS HOTEL,7011,Conferencesseminars fees etc,356.00,0.00,356.00
Children and Young Peoples Services,Head of Childrens Social Care,085347,Solo Home The Manse,Supplies and Services,342033,Computers and Communications,04-Jun-2021,000009536199939,Amazon.co.uk 2T7TG6IR4,5969,Computer hardware,364.99,60.83,304.16
Children and Young Peoples Services,Head of Education and Skills,075021,DurhamWorks Progression and Learning,Supplies and Services,364301,Grants to Voluntary Organisations,04-Jun-2021,000009536199963,DVLA DRIVER ONLINE,9399,Hardship,34.00,0.00,34.00
Adult and Health Services,Head of Adults,055302,Durham Pathways,Supplies and Services,304403,Equipment and Materials,04-Jun-2021,000009536199983,AMZNMktplace,5999,Other consumables,99.94,16.66,83.28
"Regeneration, Economy and Growth",Development and Housing,030776,LINKCD Flexible Fund,Supplies and Services,304259,Equipment and Materials,04-Jun-2021,000009536200085,Durham County CNCL,9399,Equipment-purchase and rental,11.00,0.00,11.00
"Regeneration, Economy and Growth",Development and Housing,030776,LINKCD Flexible Fund,Employees,040149,Recruitment Instruction and Training,04-Jun-2021,000009536200087,NCS CITB EXAM,8299,Training-all costs,22.00,0.00,22.00
Children and Young Peoples Services,Head of Early Help Inclusion & Vulnerable Children.,088115,Young Parents Programme 088115,Supplies and Services,384302,Miscellaneous Expenses,04-Jun-2021,000009536200107,FIRSTAID4LESS.CO.UK,5999,Activity expenses,95.52,15.92,79.60
Children and Young Peoples Services,Head of Early Help Inclusion & Vulnerable Children.,088115,Young Parents Programme 088115,Supplies and Services,384302,Miscellaneous Expenses,04-Jun-2021,000009536200111,WILKO.COM,5399,Activity expenses,52.86,8.81,44.05
Children and Young Peoples Services,Head of Early Help Inclusion & Vulnerable Children.,088115,Young Parents Programme 088115,Supplies and Services,384302,Miscellaneous Expenses,04-Jun-2021,000009536200111 - 1,WILKO.COM,5399,Activity expenses,0.14,,0.14
"Regeneration, Economy and Growth",Culture Sport and Tourism,054233,Bishop Auckland Town Hall Library,Supplies and Services,324117,Provisions E324,04-Jun-2021,000009536200153,HERON FOODS BISHOP AUC,5411,Catering costs - provisions,9.76,0.00,9.76
Children and Young Peoples Services,Head of Childrens Social Care,085342,16 Hickstead Rise (previously 9 Cedar Ave),Supplies and Services,348037,Subsistence E348,04-Jun-2021,000009536200233,Reds Fish Bar,5812,Subsistence,25.90,0.00,25.90
"Regeneration, Economy and Growth",Culture Sport and Tourism,054813,Gala Theatre - Technical,Supplies and Services,304259,Equipment and Materials,04-Jun-2021,000009536200267,AMZNMktplace,5999,Equipment-purchase and rental,17.98,0.00,17.98
Children and Young Peoples Services,Head of Childrens Social Care,085334,West Rainton Satelite Home,Employees,040149,Recruitment Instruction and Training,04-Jun-2021,000009536200281,PARENTPAY E-COM R,8220,Training-all costs,6.00,0.00,6.00
"Regeneration, Economy and Growth",Development and Housing,031576,B& B - Temp Accom,Supplies and Services,364320,Grants to Voluntary Organisations,04-Jun-2021,000009536200343,CROXDALE INN,5812,Accommodation assistance,135.00,0.00,135.00
Neighbourhoods and Climate Change,Environmental Services,011060,C&G - Hardwick Park Catering,Supplies and Services,324117,Provisions E324,04-Jun-2021,000009536200399,FREEMAN CATERING BUTCH,5422,Catering costs - provisions,100.90,0.00,100.90
Neighbourhoods and Climate Change,Environmental Services,011060,C&G - Hardwick Park Catering,Premises,145009,Cleaning and Domestic Supplies,04-Jun-2021,000009536200403,ALLIANCE DISPOSABLES L,2842,Other cleaning and domestic costs,118.90,19.82,99.08
Neighbourhoods and Climate Change,Environmental Services,011060,C&G - Hardwick Park Catering,Premises,145009,Cleaning and Domestic Supplies,04-Jun-2021,000009536200409,ALLIANCE DISPOSABLES L,2842,Other cleaning and domestic costs,48.62,8.10,40.52
Neighbourhoods and Climate Change,Environmental Services,011060,C&G - Hardwick Park Catering,Supplies and Services,324117,Provisions E324,04-Jun-2021,000009536200413,JR HOLLAND FOODSERVICE,5499,Catering costs - provisions,23.44,0.00,23.44
Neighbourhoods and Climate Change,Environmental Services,011060,C&G - Hardwick Park Catering,Supplies and Services,324117,Provisions E324,04-Jun-2021,000009536200421,JR HOLLAND FOODSERVICE,5499,Catering costs - provisions,52.97,0.00,52.97
Resources BK0010,People & Talent Management,010984,Training and Development,Employees,040149,Recruitment Instruction and Training,04-Jun-2021,000009536200437,WWW.JIB.ORG.UK,8699,Training-all costs,240.00,0.00,240.00
"Regeneration, Economy and Growth",Corporate Property and Land,021234,Catering - Locomotion,Supplies and Services,324117,Provisions E324,04-Jun-2021,000009536200461,FREEMAN CATERING BUTCH,5422,Catering costs - provisions,33.66,0.00,33.66
"Regeneration, Economy and Growth",Corporate Property and Land,021234,Catering - Locomotion,Supplies and Services,324117,Provisions E324,04-Jun-2021,000009536200463,JR HOLLAND FOODSERVICE,5499,Catering costs - provisions,58.52,0.00,58.52
"Regeneration, Economy and Growth",Corporate Property and Land,021234,Catering - Locomotion,Supplies and Services,324117,Provisions E324,04-Jun-2021,000009536200467,JR HOLLAND FOODSERVICE,5499,Catering costs - provisions,10.92,0.00,10.92
"Regeneration, Economy and Growth",Corporate Property and Land,021234,Catering - Locomotion,Supplies and Services,324117,Provisions E324,04-Jun-2021,000009536200471,JR HOLLAND FOODSERVICE,5499,Catering costs - provisions,7.84,0.00,7.84
Children and Young Peoples Services,Head of Childrens Social Care,085331,New Lea Childrens Home,Supplies and Services,348037,Subsistence E348,04-Jun-2021,000009536200479,UNO MOMENTO,5812,Subsistence,35.15,0.00,35.15
Children and Young Peoples Services,Head of Childrens Social Care,085331,New Lea Childrens Home,Transport,235057,Public Transport,04-Jun-2021,000009536200481,PRINCE BISHOP SHOPPING,7523,Staff travelling,2.10,0.00,2.10
Children and Young Peoples Services,Head of Childrens Social Care,085331,New Lea Childrens Home,Supplies and Services,304259,Equipment and Materials,04-Jun-2021,000009536200487,J D SPORTS,5941,Equipment-purchase and rental,74.10,0.00,74.10
Children and Young Peoples Services,Head of Early Help Inclusion & Vulnerable Children.,088106,Ferryhill & N.Aycliffe 0-19 Targeted Family Support,Supplies and Services,364301,Grants to Voluntary Organisations,04-Jun-2021,000009536200545,ASDA GEORGE COM LEEDS,5411,Hardship,31.45,0.00,31.45
Neighbourhoods and Climate Change,Environmental Services,010367,C&G - South Grounds Maintenance,Supplies and Services,304221,Equipment and Materials,04-Jun-2021,000009536200559,B & Q 1120,5200,Direct materials,22.30,0.00,22.30
Neighbourhoods and Climate Change,Environmental Services,010367,C&G - South Grounds Maintenance,Supplies and Services,304221,Equipment and Materials,04-Jun-2021,000009536200561,B & Q 1120,5200,Direct materials,10.47,0.00,10.47
"Regeneration, Economy and Growth",Corporate Property and Land,036327,SPM-Inv Prop-Freemans Reach - Energy Centre Phase 1,Premises,108099,Service Repairs and Maintenance,04-Jun-2021,000009536200569,PAYPAL OPIE OILS,5169,General repairs 108099,62.19,10.37,51.82
Children and Young Peoples Services,Head of Childrens Social Care,085342,16 Hickstead Rise (previously 9 Cedar Ave),Supplies and Services,384999,Miscellaneous Expenses,04-Jun-2021,000009536200585,Amazon.co.uk 2T2I20I54,5969,Other expenses,68.00,0.00,68.00
"Regeneration, Economy and Growth",Corporate Property and Land,030691,Catering - Durham Dales Centre,Supplies and Services,324117,Provisions E324,04-Jun-2021,000009536200605,FREEMAN CATERING BUTCH,5422,Catering costs - provisions,73.87,0.00,73.87
"Regeneration, Economy and Growth",Corporate Property and Land,030691,Catering - Durham Dales Centre,Supplies and Services,324117,Provisions E324,04-Jun-2021,000009536200607,JR HOLLAND FOODSERVICE,5499,Catering costs - provisions,87.91,0.00,87.91
Children and Young Peoples Services,Head of Childrens Social Care,085332,Middlestone Moor CU,Supplies and Services,384999,Miscellaneous Expenses,04-Jun-2021,000009536200617,BODYCARE,5977,Other expenses,3.98,0.00,3.98
Children and Young Peoples Services,Head of Childrens Social Care,085332,Middlestone Moor CU,Supplies and Services,348037,Subsistence E348,04-Jun-2021,000009536200621,STARBUCKS,5814,Subsistence,10.90,0.00,10.90
Children and Young Peoples Services,Head of Childrens Social Care,085332,Middlestone Moor CU,Supplies and Services,348037,Subsistence E348,04-Jun-2021,000009536200623,GREGGS,5812,Subsistence,1.60,0.00,1.60
Children and Young Peoples Services,Head of Childrens Social Care,085332,Middlestone Moor CU,Supplies and Services,348037,Subsistence E348,04-Jun-2021,000009536200625,TGI FRIDAYS UK,5812,Subsistence,67.20,0.00,67.20
Children and Young Peoples Services,Head of Childrens Social Care,085332,Middlestone Moor CU,Supplies and Services,328041,Clothing uniforms and laundry E328,04-Jun-2021,000009536200629,PRIMARK 670 GATESHEAD,5651,Clothing uniforms and laundry,9.50,0.00,9.50
Adult and Health Services,Head of Adults,055643,Hawthorn House LD Respite Unit,Supplies and Services,324117,Provisions E324,04-Jun-2021,000009536200645,FREEMAN CATERING BUTCH,5422,Catering costs - provisions,34.61,0.00,34.61
Adult and Health Services,Head of Adults,055643,Hawthorn House LD Respite Unit,Supplies and Services,324117,Provisions E324,04-Jun-2021,000009536200651,JR HOLLAND FOODSERVICE,5499,Catering costs - provisions,18.43,0.00,18.43
Adult and Health Services,Head of Adults,055643,Hawthorn House LD Respite Unit,Supplies and Services,324117,Provisions E324,04-Jun-2021,000009536200653,JR HOLLAND FOODSERVICE,5499,Catering costs - provisions,19.38,0.00,19.38
"Regeneration, Economy and Growth",Culture Sport and Tourism,054604,Seven Hills Spennymoor,Supplies and Services,384999,Miscellaneous Expenses,04-Jun-2021,000009536200657,Amazon.co.uk 2T2R75IH4,5969,Other expenses,29.98,0.00,29.98
Children and Young Peoples Services,Head of Childrens Social Care,085334,West Rainton Satelite Home,Supplies and Services,328041,Clothing uniforms and laundry E328,04-Jun-2021,000009536200683,ARGOS LTD,5310,Clothing uniforms and laundry,-17.00,0.00,-17.00
Children and Young Peoples Services,Head of Early Help Inclusion & Vulnerable Children.,088102,Consett & Stanley 0-19 Targeted Family Support,Supplies and Services,340001,Postages E340,04-Jun-2021,000009536200685,POST OFFICE COUNTER,9402,Postages,2.69,0.00,2.69
Children and Young Peoples Services,Head of Childrens Social Care,085363,LAC & Permanence Team 3,Supplies and Services,338045,Services,04-Jun-2021,000009536200687,Durham County CNCL,9399,Legal expenses 338045,22.00,0.00,22.00
Children and Young Peoples Services,Head of Childrens Social Care,085372,Young Peoples Service Team 2,Supplies and Services,338045,Services,04-Jun-2021,000009536200715,HM PASSPORT OFFICE,9399,Legal expenses 338045,85.00,0.00,85.00
"Regeneration, Economy and Growth",Culture Sport and Tourism,054235,Bishop Auckland Town Hall Cafe,Supplies and Services,324117,Provisions E324,04-Jun-2021,000009536200717,JR HOLLAND FOODSERVICE,5499,Catering costs - provisions,55.90,0.00,55.90
Children and Young Peoples Services,Head of Childrens Social Care,085332,Middlestone Moor CU,Supplies and Services,304403,Equipment and Materials,04-Jun-2021,000009536200727,CEX,5065,Other consumables,22.00,0.00,22.00
Children and Young Peoples Services,Head of Childrens Social Care,085332,Middlestone Moor CU,Supplies and Services,348037,Subsistence E348,04-Jun-2021,000009536200729,GREGGS,5812,Subsistence,9.99,0.00,9.99
Neighbourhoods and Climate Change,Environmental Services,010301,C&G - North Grounds Maintenance,Supplies and Services,304221,Equipment and Materials,04-Jun-2021,000009536200735,GREENHAM TRADING LTD,5085,Direct materials,133.68,22.28,111.40
Neighbourhoods and Climate Change,Environmental Services,010301,C&G - North Grounds Maintenance,Supplies and Services,304221,Equipment and Materials,04-Jun-2021,000009536200737,TOOLSTATION LTD,5211,Direct materials,192.95,0.00,192.95
Children and Young Peoples Services,Head of Childrens Social Care,085351,Framwellgate Moor CU,Supplies and Services,348037,Subsistence E348,04-Jun-2021,000009536200741,FERRYBRIDGE GREGGS,5812,Subsistence,16.15,0.00,16.15
Children and Young Peoples Services,Head of Childrens Social Care,085351,Framwellgate Moor CU,Supplies and Services,348037,Subsistence E348,04-Jun-2021,000009536200747,PETERBOROUGH COSTA,5812,Subsistence,11.25,0.00,11.25
Children and Young Peoples Services,Head of Education and Skills,071802,Louisa Cent Nursery,Supplies and Services,324117,Provisions E324,04-Jun-2021,000009536200753,ASDA GROCERIES ONLINE,5411,Catering costs - provisions,202.04,0.00,202.04
Children and Young Peoples Services,Head of Education and Skills,071802,Louisa Cent Nursery,Supplies and Services,324117,Provisions E324,04-Jun-2021,000009536200757,ASDA GROCERIES ONLINE,5411,Catering costs - provisions,-1.00,0.00,-1.00
Resources BK0010,Procurement Sales & Business Services,069800,Corporate Procurement 069800,Employees,040149,Recruitment Instruction and Training,04-Jun-2021,000009536200785,WWW.CIPS.ORG,8699,Training-all costs,187.00,0.00,187.00
Adult and Health Services,Head of Adults,052229,Countywide AMHP Team,Supplies and Services,338048,Services,04-Jun-2021,000009536200815,HMCOURTS-SERVICE.G,9222,Court costs 338048,75.00,0.00,75.00
"Regeneration, Economy and Growth",Corporate Property and Land,021235,Catering - Wharton Park,Supplies and Services,324117,Provisions E324,04-Jun-2021,000009536200845,JR HOLLAND FOODSERVICE,5499,Catering costs - provisions,56.41,0.00,56.41
Neighbourhoods and Climate Change,Environmental Services,010383,C&G - South Street Cleansing,Supplies and Services,338099,Services,04-Jun-2021,000009536200869,FLAMINGOLAND,7033,Other services,105.00,0.00,105.00
Neighbourhoods and Climate Change,Environmental Services,010383,C&G - South Street Cleansing,Supplies and Services,384999,Miscellaneous Expenses,04-Jun-2021,000009536200875,WWW.BEAMISH.ORG.UK,7922,Other expenses,51.00,0.00,51.00
Children and Young Peoples Services,Head of Childrens Social Care,085332,Middlestone Moor CU,Supplies and Services,348037,Subsistence E348,04-Jun-2021,000009536200901,SUBWAY RESTAURANT,5814,Subsistence,22.44,0.00,22.44
Children and Young Peoples Services,Head of Childrens Social Care,085332,Middlestone Moor CU,Transport,235057,Public Transport,04-Jun-2021,000009536200905,TFL TRAVEL CH,4111,Staff travelling,2.40,0.00,2.40
Children and Young Peoples Services,Head of Childrens Social Care,085332,Middlestone Moor CU,Transport,235057,Public Transport,04-Jun-2021,000009536200913,LUL TICKET MACHINE,4112,Staff travelling,5.00,0.00,5.00
Neighbourhoods and Climate Change,Environmental Services,011060,C&G - Hardwick Park Catering,Supplies and Services,324117,Provisions E324,04-Jun-2021,000009541123887,BATLEYS PERTH,5300,Catering costs - provisions,380.46,63.41,317.05
Neighbourhoods and Climate Change,Environmental Services,011060,C&G - Hardwick Park Catering,Supplies and Services,324117,Provisions E324,04-Jun-2021,000009541123887 - 1,BATLEYS PERTH,5300,Catering costs - provisions,155.21,,155.21
"Regeneration, Economy and Growth",Corporate Property and Land,021234,Catering - Locomotion,Supplies and Services,324117,Provisions E324,04-Jun-2021,000009541123913,BATLEYS PERTH,5300,Catering costs - provisions,45.00,7.50,37.50
"Regeneration, Economy and Growth",Corporate Property and Land,021234,Catering - Locomotion,Supplies and Services,324117,Provisions E324,04-Jun-2021,000009541123913 - 1,BATLEYS PERTH,5300,Catering costs - provisions,0.05,,0.05
Adult and Health Services,Head of Adults,055643,Hawthorn House LD Respite Unit,Supplies and Services,324117,Provisions E324,04-Jun-2021,000009541124103,BATLEYS PERTH,5300,Catering costs - provisions,31.56,5.26,26.30
Adult and Health Services,Head of Adults,055643,Hawthorn House LD Respite Unit,Supplies and Services,324117,Provisions E324,04-Jun-2021,000009541124103 - 1,BATLEYS PERTH,5300,Catering costs - provisions,61.29,,61.29
"Regeneration, Economy and Growth",Business Durham CL0850,030689,Inward Investment and Aftercare,Supplies and Services,336005,Advertising E336,05-Jun-2021,000009536199885,GOOGLE ADS6853017821,7311,Advertising other than for staff,172.99,0.00,172.99
Children and Young Peoples Services,Head of Education and Skills,071801,Selby Cottage Childcare Centre,Supplies and Services,304999,Equipment and Materials,05-Jun-2021,000009536199913,APPLE.COM/BILL,5815,Misc equipment tools and materials,9.99,0.00,9.99
Resources BK0010,Digital and Customer Services,065212,Digital Durham,Supplies and Services,342053,Computers and Communications,05-Jun-2021,000009536199943,HOO HOOTSUITE INC,7399,Computer software,500.99,0.00,500.99
Resources BK0010,Digital and Customer Services,065219,Covid-Reinstatement of Services,Supplies and Services,304403,Equipment and Materials,05-Jun-2021,000009536199945,AMZNMktplace,5999,Other consumables,59.94,9.99,49.95
Children and Young Peoples Services,Head of Early Help Inclusion & Vulnerable Children.,088115,Young Parents Programme 088115,Supplies and Services,384302,Miscellaneous Expenses,05-Jun-2021,000009536200121,AMZNMktplace,5999,Activity expenses,10.47,1.77,8.70
Children and Young Peoples Services,Head of Childrens Social Care,085342,16 Hickstead Rise (previously 9 Cedar Ave),Supplies and Services,324117,Provisions E324,05-Jun-2021,000009536200237,TESCO STORES 2916,5411,Catering costs - provisions,88.53,0.00,88.53
Children and Young Peoples Services,Head of Education and Skills,071732,Dean Bank Childcare,Supplies and Services,324117,Provisions E324,05-Jun-2021,000009536200259,CO-OP GROUP 010503,5411,Catering costs - provisions,14.99,0.00,14.99
Children and Young Peoples Services,Head of Education and Skills,071732,Dean Bank Childcare,Supplies and Services,324117,Provisions E324,05-Jun-2021,000009536200263,SAINSBURYS SACAT (2303,5411,Catering costs - provisions,59.90,0.00,59.90
Children and Young Peoples Services,Head of Education and Skills,071732,Dean Bank Childcare,Supplies and Services,304403,Equipment and Materials,05-Jun-2021,000009536200265,AMZNMKTPLACE AMAZON.CO,5999,Other consumables,59.96,0.00,59.96
Children and Young Peoples Services,Head of Childrens Social Care,085334,West Rainton Satelite Home,Supplies and Services,328041,Clothing uniforms and laundry E328,05-Jun-2021,000009536200271,SPORTSDIRECT.COM,5691,Clothing uniforms and laundry,40.99,0.00,40.99
Children and Young Peoples Services,Head of Childrens Social Care,085334,West Rainton Satelite Home,Supplies and Services,304403,Equipment and Materials,05-Jun-2021,000009536200277,AMZNMktplace,5999,Other consumables,16.99,0.00,16.99
Children and Young Peoples Services,Head of Childrens Social Care,085334,West Rainton Satelite Home,Supplies and Services,308011,Furniture,05-Jun-2021,000009536200293,FACTORY CARPETS & LAMI,5713,Furniture repair and replacement,400.00,0.00,400.00
Children and Young Peoples Services,Head of Childrens Social Care,085332,Middlestone Moor CU,Supplies and Services,348037,Subsistence E348,05-Jun-2021,000009536200303,MCDONALDS,5812,Subsistence,10.39,0.00,10.39
Children and Young Peoples Services,Head of Childrens Social Care,085332,Middlestone Moor CU,Supplies and Services,348037,Subsistence E348,05-Jun-2021,000009536200307,KFC WEST AUCKLAND,5814,Subsistence,9.47,0.00,9.47
Children and Young Peoples Services,Head of Childrens Social Care,085332,Middlestone Moor CU,Supplies and Services,324001,Provisions E324,05-Jun-2021,000009536200311,PP CLASSICPIZZ,5921,Bar supplies,34.35,0.00,34.35
Children and Young Peoples Services,Head of Early Help Inclusion & Vulnerable Children.,085956,Lumley,Supplies and Services,324117,Provisions E324,05-Jun-2021,000009536200359,TESCO STORES 6329,5411,Catering costs - provisions,75.61,0.00,75.61
Children and Young Peoples Services,Head of Education and Skills,071802,Louisa Cent Nursery,Supplies and Services,304999,Equipment and Materials,05-Jun-2021,000009536200759,HOME BARGAINS CONSETT,5251,Misc equipment tools and materials,5.63,0.00,5.63
Children and Young Peoples Services,Head of Childrens Social Care,085341,High Etherley Satelite Home,Supplies and Services,384302,Miscellaneous Expenses,05-Jun-2021,000009536200857,Vue Entertainment Ltd,7832,Activity expenses,11.98,0.00,11.98
Children and Young Peoples Services,Head of Childrens Social Care,085341,High Etherley Satelite Home,Supplies and Services,324117,Provisions E324,05-Jun-2021,000009536200863,TESCO STORES 6329,5411,Catering costs - provisions,54.35,0.00,54.35
"Regeneration, Economy and Growth",Business Durham CL0850,030689,Inward Investment and Aftercare,Supplies and Services,342033,Computers and Communications,06-Jun-2021,000009536199893,STK Shutterstock,7333,Computer hardware,19.00,0.00,19.00
"Regeneration, Economy and Growth",Development and Housing,031576,B& B - Temp Accom,Supplies and Services,364320,Grants to Voluntary Organisations,06-Jun-2021,000009536199953,TRAVELODGE,3615,Accommodation assistance,9.30,1.55,7.75
"Regeneration, Economy and Growth",Development and Housing,031576,B& B - Temp Accom,Supplies and Services,364320,Grants to Voluntary Organisations,06-Jun-2021,000009536199953 - 1,TRAVELODGE,3615,Accommodation assistance,26.64,,26.64
Children and Young Peoples Services,Head of Childrens Social Care,085342,16 Hickstead Rise (previously 9 Cedar Ave),Supplies and Services,304221,Equipment and Materials,06-Jun-2021,000009536200025,WINDLESTONE NURSERY LT,5261,Direct materials,8.98,0.00,8.98
Children and Young Peoples Services,Head of Early Help Inclusion & Vulnerable Children.,088115,Young Parents Programme 088115,Supplies and Services,384302,Miscellaneous Expenses,06-Jun-2021,000009536200123,AMZNMKTPLACE AMAZON.CO,5999,Activity expenses,19.56,3.28,16.28
Children and Young Peoples Services,Head of Early Help Inclusion & Vulnerable Children.,088115,Young Parents Programme 088115,Supplies and Services,384302,Miscellaneous Expenses,06-Jun-2021,000009536200129,AMZNMKTPLACE AMAZON.CO,5999,Activity expenses,15.90,2.65,13.25
Children and Young Peoples Services,Head of Early Help Inclusion & Vulnerable Children.,088115,Young Parents Programme 088115,Supplies and Services,384302,Miscellaneous Expenses,06-Jun-2021,000009536200129 - 1,AMZNMKTPLACE AMAZON.CO,5999,Activity expenses,0.05,,0.05
Children and Young Peoples Services,Head of Early Help Inclusion & Vulnerable Children.,088115,Young Parents Programme 088115,Supplies and Services,384302,Miscellaneous Expenses,06-Jun-2021,000009536200135,AMZNMKTPLACE AMAZON.CO,5999,Activity expenses,53.16,8.86,44.30
Children and Young Peoples Services,Head of Early Help Inclusion & Vulnerable Children.,088115,Young Parents Programme 088115,Supplies and Services,384302,Miscellaneous Expenses,06-Jun-2021,000009536200135 - 1,AMZNMKTPLACE AMAZON.CO,5999,Activity expenses,0.14,,0.14
Children and Young Peoples Services,Head of Childrens Social Care,085511,Emergency Duty Team,Supplies and Services,324117,Provisions E324,06-Jun-2021,000009536200195,CO-OP GROUP 010981,5411,Catering costs - provisions,10.00,0.00,10.00
Children and Young Peoples Services,Head of Childrens Social Care,085334,West Rainton Satelite Home,Supplies and Services,384237,Miscellaneous Expenses,06-Jun-2021,000009536200287,WWW.4MOTIONDARLINGTON.,7999,Recreational exps outings parties,7.00,0.00,7.00
"Regeneration, Economy and Growth",Development and Housing,030771,Durham Advance Flexible Fund,Transport,235057,Public Transport,06-Jun-2021,000009536200357,WWW.GONORTHEAST.CO.UK,4111,Staff travelling,25.00,0.00,25.00
Children and Young Peoples Services,Head of Early Help Inclusion & Vulnerable Children.,085954,Walworth,Supplies and Services,324117,Provisions E324,06-Jun-2021,000009536200365,TESCO STORES 6329,5411,Catering costs - provisions,57.70,0.00,57.70
Resources BK0010,People & Talent Management,066895,Advice & Guidance,Supplies and Services,384999,Miscellaneous Expenses,06-Jun-2021,000009536200447,Amazon.co.uk 2T1PQ5W74,5969,Other expenses,27.00,0.00,27.00
Resources BK0010,People & Talent Management,066895,Advice & Guidance,Supplies and Services,384999,Miscellaneous Expenses,06-Jun-2021,000009536200455,Amazon.co.uk 2T6K80WQ4,5969,Other expenses,27.00,0.00,27.00
Children and Young Peoples Services,Head of Childrens Social Care,085332,Middlestone Moor CU,Supplies and Services,324117,Provisions E324,06-Jun-2021,000009536200631,ASDA SUPERSTORE 4987,5411,Catering costs - provisions,20.57,0.00,20.57
"Regeneration, Economy and Growth",Culture Sport and Tourism,054604,Seven Hills Spennymoor,Supplies and Services,384999,Miscellaneous Expenses,06-Jun-2021,000009536200661,Amazon.co.uk 2T60Z3WL4,5969,Other expenses,93.86,0.00,93.86
"Regeneration, Economy and Growth",Culture Sport and Tourism,054604,Seven Hills Spennymoor,Supplies and Services,384999,Miscellaneous Expenses,06-Jun-2021,000009536200665,Amazon.co.uk 2T9PV3W84,5969,Other expenses,10.99,0.00,10.99
"Regeneration, Economy and Growth",Culture Sport and Tourism,054604,Seven Hills Spennymoor,Supplies and Services,384999,Miscellaneous Expenses,06-Jun-2021,000009536200669,Amazon.co.uk 2T4O46YO4,5969,Other expenses,10.99,0.00,10.99
Children and Young Peoples Services,Head of Early Help Inclusion & Vulnerable Children.,085957,Secure Management,Supplies and Services,304403,Equipment and Materials,06-Jun-2021,000009536200701,AMZNMktplace,5999,Other consumables,13.80,2.30,11.50
Children and Young Peoples Services,Head of Childrens Social Care,085332,Middlestone Moor CU,Supplies and Services,328041,Clothing uniforms and laundry E328,06-Jun-2021,000009536200789,ALIEXPRESS.COM aliexpr,5311,Clothing uniforms and laundry,11.28,0.00,11.28
Children and Young Peoples Services,Head of Childrens Social Care,085332,Middlestone Moor CU,Supplies and Services,342033,Computers and Communications,06-Jun-2021,000009536200793,WWW.ALIEXPRESS.COM,5964,Computer hardware,14.78,0.00,14.78
Children and Young Peoples Services,Head of Childrens Social Care,085332,Middlestone Moor CU,Supplies and Services,304999,Equipment and Materials,06-Jun-2021,000009536200795,SUPERDRUG STORES PLC,5912,Misc equipment tools and materials,11.93,0.00,11.93
Children and Young Peoples Services,Head of Childrens Social Care,085332,Middlestone Moor CU,Supplies and Services,324117,Provisions E324,06-Jun-2021,000009536200799,WM MORRISONS STORE,5411,Catering costs - provisions,28.20,0.00,28.20
Children and Young Peoples Services,Head of Childrens Social Care,085332,Middlestone Moor CU,Supplies and Services,348037,Subsistence E348,06-Jun-2021,000009536200805,MCDONALD`S,5812,Subsistence,5.23,0.00,5.23
Children and Young Peoples Services,Head of Childrens Social Care,085332,Middlestone Moor CU,Supplies and Services,304259,Equipment and Materials,06-Jun-2021,000009536200809,SPORTSDIRECT 368,5941,Equipment-purchase and rental,80.20,0.00,80.20
Children and Young Peoples Services,Head of Early Help Inclusion & Vulnerable Children.,088115,Young Parents Programme 088115,Supplies and Services,384302,Miscellaneous Expenses,06-Jun-2021,000009541123629,AMZNMKTPLACE AMAZON.CO,5999,Activity expenses,8.49,1.42,7.07
Children and Young Peoples Services,Head of Early Help Inclusion & Vulnerable Children.,088115,Young Parents Programme 088115,Supplies and Services,384302,Miscellaneous Expenses,06-Jun-2021,000009541123633,AMZNMKTPLACE AMAZON.CO,5999,Activity expenses,111.84,18.64,93.20
Children and Young Peoples Services,Head of Early Help Inclusion & Vulnerable Children.,088115,Young Parents Programme 088115,Supplies and Services,384302,Miscellaneous Expenses,06-Jun-2021,000009541123633 - 1,AMZNMKTPLACE AMAZON.CO,5999,Activity expenses,0.08,,0.08
Children and Young Peoples Services,Head of Early Help Inclusion & Vulnerable Children.,088115,Young Parents Programme 088115,Supplies and Services,384302,Miscellaneous Expenses,06-Jun-2021,000009541123635,AMZNMKTPLACE AMAZON.CO,5999,Activity expenses,43.93,7.32,36.61
Children and Young Peoples Services,Head of Childrens Social Care,085561,Social Work Academy,Supplies and Services,384999,Miscellaneous Expenses,07-Jun-2021,000009536199949,Amazon.co.uk 2T2VS7YG4,5969,Other expenses,149.01,24.84,124.17
Resources BK0010,Digital and Customer Services,065212,Digital Durham,Supplies and Services,384999,Miscellaneous Expenses,07-Jun-2021,000009536199951,HOO HOOTSUITE INC,7399,Other expenses,13.78,0.00,13.78
Children and Young Peoples Services,Head of Early Help Inclusion & Vulnerable Children.,088115,Young Parents Programme 088115,Supplies and Services,384302,Miscellaneous Expenses,07-Jun-2021,000009536200137,AMZNMktplace,5999,Activity expenses,6.99,1.17,5.82
"Regeneration, Economy and Growth",Business Durham CL0850,030689,Inward Investment and Aftercare,Supplies and Services,336005,Advertising E336,07-Jun-2021,000009541123501,LINKEDIN IRELAND,7311,Advertising other than for staff,57.60,0.00,57.60
Children and Young Peoples Services,Head of Education and Skills,071801,Selby Cottage Childcare Centre,Supplies and Services,384999,Miscellaneous Expenses,07-Jun-2021,000009541123503,Amazon.co.uk 2888Y3C54,5969,Other expenses,19.35,0.00,19.35
"Regeneration, Economy and Growth",Transport and Contracted Services,032250,Traffic Signals and UTMC 032250,Supplies and Services,384999,Miscellaneous Expenses,07-Jun-2021,000009541123507,Amazon.co.uk 280SB6CE4,5969,Other expenses,29.75,0.00,29.75
Resources BK0010,Digital and Customer Services,065432,Web Development Group,Supplies and Services,342033,Computers and Communications,07-Jun-2021,000009541123509,WPMU DEV INCSUBFEE.COM,7372,Computer hardware,13.49,0.00,13.49
Resources BK0010,Finance & Transactional Services,065182,Business Rates,Supplies and Services,344033,Telephones,07-Jun-2021,000009541123511,BIRMINGHAM TELECOMMUNI,4812,Telephones general-all costs,56.33,9.39,46.94
"Regeneration, Economy and Growth",Development and Housing,031576,B& B - Temp Accom,Supplies and Services,364320,Grants to Voluntary Organisations,07-Jun-2021,000009541123519,TRAVELODGE,3615,Accommodation assistance,43.62,7.27,36.35
"Regeneration, Economy and Growth",Development and Housing,031576,B& B - Temp Accom,Supplies and Services,364320,Grants to Voluntary Organisations,07-Jun-2021,000009541123519 - 1,TRAVELODGE,3615,Accommodation assistance,117.25,,117.25
Children and Young Peoples Services,Head of Childrens Social Care,085501,Child Care Cases Legal Expenses,Supplies and Services,304403,Equipment and Materials,07-Jun-2021,000009541123527,GATESHEAD COUNCIL MOTO,9399,Other consumables,11.00,0.00,11.00
"Regeneration, Economy and Growth",Development and Housing,030773,CLLD North,Transport,235057,Public Transport,07-Jun-2021,000009541123529,WWW.GONORTHEAST.CO.UK,4111,Staff travelling,95.00,0.00,95.00
"Regeneration, Economy and Growth",Culture Sport and Tourism,054812,Gala Theatre - Catering etc,Supplies and Services,324117,Provisions E324,07-Jun-2021,000009541123537,Amazon.co.uk 283QR8C64,5969,Catering costs - provisions,39.98,6.66,33.32
"Regeneration, Economy and Growth",Culture Sport and Tourism,011265,Empire Theatre (Operations),Supplies and Services,304252,Equipment and Materials,07-Jun-2021,000009541123539,Amazon.co.uk 287604OL4,5969,Equipment-repairsserviceinsurance,19.99,3.33,16.66
"Regeneration, Economy and Growth",Culture Sport and Tourism,054820,Gala Theatre - Overheads,Supplies and Services,304252,Equipment and Materials,07-Jun-2021,000009541123541,AMZNMktplace,5999,Equipment-repairsserviceinsurance,13.99,2.33,11.66
"Regeneration, Economy and Growth",Culture Sport and Tourism,054735,Killhope Cafe,Supplies and Services,304403,Equipment and Materials,07-Jun-2021,000009541123543,AMZNMktplace,5999,Other consumables,28.99,4.83,24.16
Children and Young Peoples Services,Head of Childrens Social Care,085342,16 Hickstead Rise (previously 9 Cedar Ave),Supplies and Services,324117,Provisions E324,07-Jun-2021,000009541123545,TESCO STORES 2916,5411,Catering costs - provisions,21.90,0.00,21.90
Dedicated Schools Grant BG0015,DSG High Needs Block,079050,SENSS-Sensory,Supplies and Services,384999,Miscellaneous Expenses,07-Jun-2021,000009541123547,Amazon.co.uk 286WD8OO4,5969,Other expenses,24.98,4.16,20.82
Neighbourhoods and Climate Change,Environmental Services,010367,C&G - South Grounds Maintenance,Supplies and Services,304221,Equipment and Materials,07-Jun-2021,000009541123613,MKM PETERLEE,5211,Direct materials,26.14,0.00,26.14
"Regeneration, Economy and Growth",Development and Housing,030776,LINKCD Flexible Fund,Employees,040149,Recruitment Instruction and Training,07-Jun-2021,000009541123621,SUNDERLAND LGV DRIVER,8220,Training-all costs,12.00,0.00,12.00
Children and Young Peoples Services,Head of Early Help Inclusion & Vulnerable Children.,088115,Young Parents Programme 088115,Supplies and Services,384302,Miscellaneous Expenses,07-Jun-2021,000009541123627,Amazon.co.uk 281Z44C34,5969,Activity expenses,28.00,4.68,23.32
"Regeneration, Economy and Growth",Development and Housing,030544,Rural Employability - Client Engagement,Transport,235057,Public Transport,07-Jun-2021,000009541123637,WWW.GONORTHEAST.CO.UK,4111,Staff travelling,20.00,0.00,20.00
"Regeneration, Economy and Growth",Culture Sport and Tourism,054233,Bishop Auckland Town Hall Library,Supplies and Services,324117,Provisions E324,07-Jun-2021,000009541123641,HERON FOODS BISHOP AUC,5411,Catering costs - provisions,15.25,0.00,15.25
"Regeneration, Economy and Growth",Development and Housing,031576,B& B - Temp Accom,Supplies and Services,364320,Grants to Voluntary Organisations,07-Jun-2021,000009541123659,H52STANLEY,7011,Accommodation assistance,225.00,0.00,225.00
"Regeneration, Economy and Growth",Development and Housing,031576,B& B - Temp Accom,Supplies and Services,364320,Grants to Voluntary Organisations,07-Jun-2021,000009541123661,H52STANLEY,7011,Accommodation assistance,65.00,0.00,65.00
"Regeneration, Economy and Growth",Development and Housing,031576,B& B - Temp Accom,Supplies and Services,364320,Grants to Voluntary Organisations,07-Jun-2021,000009541123663,H52STANLEY,7011,Accommodation assistance,485.00,0.00,485.00
Children and Young Peoples Services,Head of Early Help Inclusion & Vulnerable Children.,073998,TTF-Co-ordinator Grant,Transfer Payments,525033,Other,07-Jun-2021,000009541123705,MAGUIRES,5713,Grants to individuals,190.00,0.00,190.00
"Regeneration, Economy and Growth",Development and Housing,031576,B& B - Temp Accom,Supplies and Services,364320,Grants to Voluntary Organisations,07-Jun-2021,000009541123727,TRAVELODGE,3615,Accommodation assistance,110.13,0.00,110.13
Children and Young Peoples Services,Head of Education and Skills,071732,Dean Bank Childcare,Supplies and Services,324117,Provisions E324,07-Jun-2021,000009541123759,ASDA GROCERIES ONLINE,5411,Catering costs - provisions,62.89,0.00,62.89
Children and Young Peoples Services,Head of Education and Skills,071732,Dean Bank Childcare,Supplies and Services,324117,Provisions E324,07-Jun-2021,000009541123761,ASDA GROCERIES ONLINE,5411,Catering costs - provisions,54.21,0.00,54.21
Children and Young Peoples Services,Head of Education and Skills,071732,Dean Bank Childcare,Supplies and Services,324117,Provisions E324,07-Jun-2021,000009541123763,ASDA GROCERIES ONLINE,5411,Catering costs - provisions,17.30,0.00,17.30
Children and Young Peoples Services,Head of Education and Skills,071732,Dean Bank Childcare,Supplies and Services,324117,Provisions E324,07-Jun-2021,000009541123767,ASDA GROCERIES ONLINE,5411,Catering costs - provisions,-0.03,0.00,-0.03
Neighbourhoods and Climate Change,Environmental Services,031221,North Pennines - Bowlees,Supplies and Services,324117,Provisions E324,07-Jun-2021,000009541123769,TESCO STORES 4358,5411,Catering costs - provisions,7.50,0.00,7.50
Neighbourhoods and Climate Change,Environmental Services,026591,C&G - Hardwick Park,Supplies and Services,304337,Equipment and Materials,07-Jun-2021,000009541123773,WWW.KEYCRAFTUK.COM,5945,Consumables/items for resale,194.84,0.00,194.84
Neighbourhoods and Climate Change,Environmental Services,026591,C&G - Hardwick Park,Supplies and Services,304337,Equipment and Materials,07-Jun-2021,000009541123775,ANGEL WHOLESALE,5970,Consumables/items for resale,93.45,0.00,93.45
Neighbourhoods and Climate Change,Environmental Services,026591,C&G - Hardwick Park,Supplies and Services,304337,Equipment and Materials,07-Jun-2021,000009541123777,WWW.CUTPRICEWHOLESALER,5251,Consumables/items for resale,80.39,0.00,80.39
Neighbourhoods and Climate Change,Environmental Services,026591,C&G - Hardwick Park,Supplies and Services,304083,Equipment and Materials,07-Jun-2021,000009541123779,WWW.NISBETS.COM,5964,Catering equipment,143.97,0.00,143.97
Neighbourhoods and Climate Change,Environmental Services,026591,C&G - Hardwick Park,Supplies and Services,304083,Equipment and Materials,07-Jun-2021,000009541123781,WWW.NISBETS.COM,5964,Catering equipment,35.98,0.00,35.98
Neighbourhoods and Climate Change,Environmental Services,026591,C&G - Hardwick Park,Supplies and Services,304337,Equipment and Materials,07-Jun-2021,000009541123785,GLS EDUCATIONAL SU,8220,Consumables/items for resale,155.88,0.00,155.88
"Regeneration, Economy and Growth",Development and Housing,031500,Housing Solutions - Core,Supplies and Services,352001,Conference Expenses,07-Jun-2021,000009541123797,TOAST LETTINGS,7011,Conferencesseminars fees etc,490.00,0.00,490.00
"Regeneration, Economy and Growth",Development and Housing,031500,Housing Solutions - Core,Supplies and Services,352001,Conference Expenses,07-Jun-2021,000009541123801,TOAST LETTINGS,7011,Conferencesseminars fees etc,490.00,0.00,490.00
"Regeneration, Economy and Growth",Development and Housing,031500,Housing Solutions - Core,Supplies and Services,352001,Conference Expenses,07-Jun-2021,000009541123805,TOAST LETTINGS,7011,Conferencesseminars fees etc,490.00,0.00,490.00
"Regeneration, Economy and Growth",Development and Housing,031500,Housing Solutions - Core,Supplies and Services,352001,Conference Expenses,07-Jun-2021,000009541123809,TOAST LETTINGS,7011,Conferencesseminars fees etc,490.00,0.00,490.00
"Regeneration, Economy and Growth",Development and Housing,031500,Housing Solutions - Core,Supplies and Services,352001,Conference Expenses,07-Jun-2021,000009541123813,TOAST LETTINGS,7011,Conferencesseminars fees etc,490.00,0.00,490.00
"Regeneration, Economy and Growth",Development and Housing,031500,Housing Solutions - Core,Supplies and Services,352001,Conference Expenses,07-Jun-2021,000009541123817,TOAST LETTINGS,7011,Conferencesseminars fees etc,490.00,0.00,490.00
"Regeneration, Economy and Growth",Development and Housing,031500,Housing Solutions - Core,Supplies and Services,352001,Conference Expenses,07-Jun-2021,000009541123819,TOAST LETTINGS,7011,Conferencesseminars fees etc,490.00,0.00,490.00
"Regeneration, Economy and Growth",Development and Housing,031500,Housing Solutions - Core,Supplies and Services,352001,Conference Expenses,07-Jun-2021,000009541123821,TOAST LETTINGS,7011,Conferencesseminars fees etc,490.00,0.00,490.00
"Regeneration, Economy and Growth",Development and Housing,031500,Housing Solutions - Core,Supplies and Services,352001,Conference Expenses,07-Jun-2021,000009541123825,TOAST LETTINGS,7011,Conferencesseminars fees etc,490.00,0.00,490.00
"Regeneration, Economy and Growth",Development and Housing,031500,Housing Solutions - Core,Supplies and Services,352001,Conference Expenses,07-Jun-2021,000009541123827,TOAST LETTINGS,7011,Conferencesseminars fees etc,500.00,0.00,500.00
Children and Young Peoples Services,Head of Childrens Social Care,085332,Middlestone Moor CU,Supplies and Services,324117,Provisions E324,07-Jun-2021,000009541123831,MCQUEENS DAIRIES LTD,5451,Catering costs - provisions,79.60,0.00,79.60
Children and Young Peoples Services,Head of Early Help Inclusion & Vulnerable Children.,085952,Secure Education,Supplies and Services,324117,Provisions E324,07-Jun-2021,000009541123865,TESCO STORES 6329,5411,Catering costs - provisions,4.65,0.00,4.65
Neighbourhoods and Climate Change,Environmental Services,031228,North Pennines - Fellfoot Forward,Supplies and Services,348037,Subsistence E348,07-Jun-2021,000009541123883,THE OLD VILLAGE BAKERY,5812,Subsistence,4.75,0.00,4.75
Children and Young Peoples Services,Head of Education and Skills,075021,DurhamWorks Progression and Learning,Supplies and Services,364301,Grants to Voluntary Organisations,07-Jun-2021,000009541123893,AMZ sakclothing,5999,Hardship,-46.90,-7.82,-39.08
Resources BK0010,People & Talent Management,066895,Advice & Guidance,Employees,040149,Recruitment Instruction and Training,07-Jun-2021,000009541123895,CIPD MEMBERSHIP RENEWA,8999,Training-all costs,163.00,0.00,163.00
Resources BK0010,People & Talent Management,010984,Training and Development,Supplies and Services,304259,Equipment and Materials,07-Jun-2021,000009541123897,GATESHEAD COUNCIL INT,9399,Equipment-purchase and rental,175.00,0.00,175.00
Children and Young Peoples Services,Head of Early Help Inclusion & Vulnerable Children.,088119,Durham 0-19 Community Family Hub,Supplies and Services,324117,Provisions E324,07-Jun-2021,000009541123921,CO-OP GROUP 010460,5411,Catering costs - provisions,6.45,0.00,6.45
Children and Young Peoples Services,Head of Early Help Inclusion & Vulnerable Children.,088115,Young Parents Programme 088115,Supplies and Services,384302,Miscellaneous Expenses,07-Jun-2021,000009541123969,AMZNMKTPLACE AMAZON.CO,5999,Activity expenses,12.20,2.04,10.16
Children and Young Peoples Services,Head of Early Help Inclusion & Vulnerable Children.,088115,Young Parents Programme 088115,Supplies and Services,384302,Miscellaneous Expenses,07-Jun-2021,000009541123973,AMZNMKTPLACE AMAZON.CO,5999,Activity expenses,19.99,3.33,16.66
Children and Young Peoples Services,Head of Early Help Inclusion & Vulnerable Children.,088115,Young Parents Programme 088115,Supplies and Services,384302,Miscellaneous Expenses,07-Jun-2021,000009541123975,AMZNMKTPLACE AMAZON.CO,5999,Activity expenses,63.54,10.59,52.95
Children and Young Peoples Services,Head of Early Help Inclusion & Vulnerable Children.,088115,Young Parents Programme 088115,Supplies and Services,384302,Miscellaneous Expenses,07-Jun-2021,000009541123975 - 1,AMZNMKTPLACE AMAZON.CO,5999,Activity expenses,0.13,,0.13
Children and Young Peoples Services,Head of Early Help Inclusion & Vulnerable Children.,088115,Young Parents Programme 088115,Supplies and Services,384302,Miscellaneous Expenses,07-Jun-2021,000009541123985,Amazon.co.uk 284PX9C24,5969,Activity expenses,7.60,1.28,6.32
Children and Young Peoples Services,Head of Childrens Social Care,085342,16 Hickstead Rise (previously 9 Cedar Ave),Transfer Payments,515140,Social Services Clients,07-Jun-2021,000009541124041,POUNDSTRETCHER 128,5331,Clothing allowances,10.51,0.00,10.51
Children and Young Peoples Services,Head of Childrens Social Care,085342,16 Hickstead Rise (previously 9 Cedar Ave),Supplies and Services,324117,Provisions E324,07-Jun-2021,000009541124045,ALDI 74 774,5411,Catering costs - provisions,42.03,0.00,42.03
Children and Young Peoples Services,Head of Childrens Social Care,085342,16 Hickstead Rise (previously 9 Cedar Ave),Supplies and Services,304259,Equipment and Materials,07-Jun-2021,000009541124049,PHOTOTRONICS SCHOLASTI,7221,Equipment-purchase and rental,19.00,0.00,19.00
Children and Young Peoples Services,Head of Childrens Social Care,085351,Framwellgate Moor CU,Transport,215995,Running Costs of Vehicles,07-Jun-2021,000009541124065,SAINSBURYS PFS0232,5541,Vehicle running expenses,44.61,0.00,44.61
"Regeneration, Economy and Growth",Corporate Property and Land,030691,Catering - Durham Dales Centre,Supplies and Services,324117,Provisions E324,07-Jun-2021,000009541124069,JR HOLLAND FOODSERVICE,5499,Catering costs - provisions,149.69,0.00,149.69
Adult and Health Services,Head of Adults,055643,Hawthorn House LD Respite Unit,Supplies and Services,324117,Provisions E324,07-Jun-2021,000009541124107,JR HOLLAND FOODSERVICE,5499,Catering costs - provisions,15.98,0.00,15.98
Children and Young Peoples Services,Head of Childrens Social Care,085334,West Rainton Satelite Home,Supplies and Services,324117,Provisions E324,07-Jun-2021,000009541124111,TESCO STORES 2371,5411,Catering costs - provisions,199.80,0.00,199.80
Children and Young Peoples Services,Head of Childrens Social Care,085342,16 Hickstead Rise (previously 9 Cedar Ave),Supplies and Services,384999,Miscellaneous Expenses,07-Jun-2021,000009541124135,Amazon.co.uk 283AC9OJ4,5969,Other expenses,110.95,0.00,110.95
Children and Young Peoples Services,Head of Early Help Inclusion & Vulnerable Children.,085957,Secure Management,Premises,108099,Service Repairs and Maintenance,07-Jun-2021,000009541124149,MILES TOOL & MACH CTRE,5251,General repairs 108099,70.40,11.73,58.67
Children and Young Peoples Services,Head of Early Help Inclusion & Vulnerable Children.,085957,Secure Management,Supplies and Services,304335,Equipment and Materials,07-Jun-2021,000009541124153,AMZ Amazon.co.uk,5999,ICT supplies etc,-16.42,-2.74,-13.68
Children and Young Peoples Services,Head of Early Help Inclusion & Vulnerable Children.,085957,Secure Management,Supplies and Services,304335,Equipment and Materials,07-Jun-2021,000009541124157,AMZ Amazon.co.uk,5999,ICT supplies etc,-16.42,-2.74,-13.68
Children and Young Peoples Services,Head of Childrens Social Care,085371,Young Peoples Service Team 1,Supplies and Services,338045,Services,07-Jun-2021,000009541124165,GATESHEAD COUNCIL MOTO,9399,Legal expenses 338045,11.00,0.00,11.00
"Regeneration, Economy and Growth",Culture Sport and Tourism,054235,Bishop Auckland Town Hall Cafe,Supplies and Services,324117,Provisions E324,07-Jun-2021,000009541124173,JR HOLLAND FOODSERVICE,5499,Catering costs - provisions,159.08,0.00,159.08
Children and Young Peoples Services,Head of Childrens Social Care,085332,Middlestone Moor CU,Supplies and Services,304403,Equipment and Materials,07-Jun-2021,000009541124177,AMZNMktplace,5999,Other consumables,179.18,0.00,179.18
Neighbourhoods and Climate Change,Environmental Services,010301,C&G - North Grounds Maintenance,Supplies and Services,324117,Provisions E324,07-Jun-2021,000009541124185,B&M 681 - DURHAM,5399,Catering costs - provisions,139.00,0.00,139.00
Neighbourhoods and Climate Change,Environmental Services,010301,C&G - North Grounds Maintenance,Supplies and Services,328041,Clothing uniforms and laundry E328,07-Jun-2021,000009541124189,THOMAS OWEN & SONS /N/,5611,Clothing uniforms and laundry,252.29,0.00,252.29
Children and Young Peoples Services,Head of Childrens Social Care,085344,Childrens Residential Emergency Staffing,Supplies and Services,324117,Provisions E324,07-Jun-2021,000009541124199,TESCO STORES 2916,5411,Catering costs - provisions,312.48,0.00,312.48
Children and Young Peoples Services,Head of Childrens Social Care,085342,16 Hickstead Rise (previously 9 Cedar Ave),Supplies and Services,324117,Provisions E324,07-Jun-2021,000009541124203,TESCO STORES 2916,5411,Catering costs - provisions,126.29,0.00,126.29
"Regeneration, Economy and Growth",Development and Housing,031576,B& B - Temp Accom,Supplies and Services,364320,Grants to Voluntary Organisations,07-Jun-2021,000009541124249,H52STANLEY,7011,Accommodation assistance,419.60,0.00,419.60
Children and Young Peoples Services,Head of Childrens Social Care,085331,New Lea Childrens Home,Premises,120037,Energy Costs,07-Jun-2021,000009541124269,SCOTTISHPOWER,4900,Other fuels,83.63,0.00,83.63
Resources BK0010,Strategy,060105,Corporate Performance Management,Supplies and Services,384999,Miscellaneous Expenses,07-Jun-2021,000009541124277,Amazon.co.uk 286Q13CQ4,5969,Other expenses,13.40,2.23,11.17
Resources BK0010,Corporate Finance & Commercial Services,066820,Occupational Health Service,Employees,040149,Recruitment Instruction and Training,07-Jun-2021,000009541124279,WWW.FOM.AC.UK,8699,Training-all costs,540.00,0.00,540.00
Resources BK0010,Strategy,060105,Corporate Performance Management,Supplies and Services,384999,Miscellaneous Expenses,07-Jun-2021,000009541124285,Amazon.co.uk 286DJ3OV4,5969,Other expenses,13.40,2.23,11.17
"Regeneration, Economy and Growth",Corporate Property and Land,021235,Catering - Wharton Park,Supplies and Services,324117,Provisions E324,07-Jun-2021,000009541124311,JR HOLLAND FOODSERVICE,5499,Catering costs - provisions,8.86,0.00,8.86
Adult and Health Services,Head of Adults,055309,Peterlee Pathways,Supplies and Services,304999,Equipment and Materials,07-Jun-2021,000009541124319,HOME BARGAINS PETERLEE,5251,Misc equipment tools and materials,7.47,1.25,6.22
"Regeneration, Economy and Growth",Development and Housing,030776,LINKCD Flexible Fund,Supplies and Services,328041,Clothing uniforms and laundry E328,07-Jun-2021,000009543960903,MATALAN.CO.UK,5691,Clothing uniforms and laundry,32.95,0.00,32.95
Adult and Health Services,Head of Adults,052750,Learning Disability Management,Supplies and Services,364320,Grants to Voluntary Organisations,07-Jun-2021,000009543960945,THE KINGSLODGE INN,7011,Accommodation assistance,766.00,0.00,766.00
Neighbourhoods and Climate Change,Environmental Services,010367,C&G - South Grounds Maintenance,Supplies and Services,304403,Equipment and Materials,07-Jun-2021,000009543960977,FERRYDEC,5231,Other consumables,65.00,0.00,65.00
"Regeneration, Economy and Growth",Development and Housing,030772,CLLD South,Employees,040149,Recruitment Instruction and Training,07-Jun-2021,000009543961031,NCS CITB EXAM,8299,Training-all costs,22.00,0.00,22.00
"Regeneration, Economy and Growth",Culture Sport and Tourism,011215,Museums Heritage & Collections 011215,Supplies and Services,308011,Furniture,07-Jun-2021,000009543961179,Dunelm,5712,Furniture repair and replacement,23.95,0.00,23.95
"Regeneration, Economy and Growth",Development and Housing,031623,Rough Sleeping,Supplies and Services,352001,Conference Expenses,07-Jun-2021,000009543961215,AYCLIFFE BIZ,7011,Conferencesseminars fees etc,266.00,0.00,266.00
"Regeneration, Economy and Growth",Development and Housing,031623,Rough Sleeping,Supplies and Services,352001,Conference Expenses,07-Jun-2021,000009543961217,AYCLIFFE BIZ,7011,Conferencesseminars fees etc,266.00,0.00,266.00
"Regeneration, Economy and Growth",Development and Housing,031623,Rough Sleeping,Supplies and Services,352001,Conference Expenses,07-Jun-2021,000009543961221,AYCLIFFE BIZ,7011,Conferencesseminars fees etc,266.00,0.00,266.00
Children and Young Peoples Services,Head of Early Help Inclusion & Vulnerable Children.,088115,Young Parents Programme 088115,Supplies and Services,384302,Miscellaneous Expenses,07-Jun-2021,000009543961515,AMZNMKTPLACE AMAZON.CO,5999,Activity expenses,60.26,10.04,50.22
Children and Young Peoples Services,Head of Early Help Inclusion & Vulnerable Children.,088115,Young Parents Programme 088115,Supplies and Services,384302,Miscellaneous Expenses,07-Jun-2021,000009543961523,AMZNMKTPLACE AMAZON.CO,5999,Activity expenses,25.44,4.24,21.20
Children and Young Peoples Services,Head of Early Help Inclusion & Vulnerable Children.,088115,Young Parents Programme 088115,Supplies and Services,384302,Miscellaneous Expenses,07-Jun-2021,000009543961525,AMZNMKTPLACE AMAZON.CO,5999,Activity expenses,39.84,6.64,33.20
Resources BK0010,Digital and Customer Services,065335,School Services - Implementations,Supplies and Services,328041,Clothing uniforms and laundry E328,07-Jun-2021,000009543961679,ALIEXPRESS,5311,Clothing uniforms and laundry,62.48,0.00,62.48
"Regeneration, Economy and Growth",Business Durham CL0850,030690,Durham Dales Centre - Tourist Information Centre,Supplies and Services,304221,Equipment and Materials,07-Jun-2021,000009543961763,A AND K HOSIERY LTD,5099,Direct materials,711.45,0.00,711.45
"Regeneration, Economy and Growth",Development and Housing,031576,B& B - Temp Accom,Supplies and Services,364320,Grants to Voluntary Organisations,07-Jun-2021,000009547438991,CROXDALE INN,5812,Accommodation assistance,135.00,0.00,135.00
"Regeneration, Economy and Growth",Development and Housing,031500,Housing Solutions - Core,Supplies and Services,348037,Subsistence E348,07-Jun-2021,000009547439721,CROXDALE INN,5812,Subsistence,45.00,0.00,45.00
"Regeneration, Economy and Growth",Culture Sport and Tourism,054812,Gala Theatre - Catering etc,Supplies and Services,324117,Provisions E324,07-Jun-2021,000009551144425,BATLEYS PERTH,5300,Catering costs - provisions,86.76,0.00,86.76
Neighbourhoods and Climate Change,Environmental Services,011060,C&G - Hardwick Park Catering,Supplies and Services,324117,Provisions E324,07-Jun-2021,000009551144709,BATLEYS PERTH,5300,Catering costs - provisions,-35.84,-5.97,-29.87
"Regeneration, Economy and Growth",Corporate Property and Land,030691,Catering - Durham Dales Centre,Supplies and Services,324117,Provisions E324,07-Jun-2021,000009551145053,BATLEYS PERTH,5300,Catering costs - provisions,154.02,25.67,128.35
"Regeneration, Economy and Growth",Corporate Property and Land,030691,Catering - Durham Dales Centre,Supplies and Services,324117,Provisions E324,07-Jun-2021,000009551145053 - 1,BATLEYS PERTH,5300,Catering costs - provisions,100.54,,100.54
"Regeneration, Economy and Growth",Corporate Property and Land,021235,Catering - Wharton Park,Supplies and Services,324117,Provisions E324,07-Jun-2021,000009551145549,BATLEYS PERTH,5300,Catering costs - provisions,435.12,72.52,362.60
"Regeneration, Economy and Growth",Corporate Property and Land,021235,Catering - Wharton Park,Supplies and Services,324117,Provisions E324,07-Jun-2021,000009551145549 - 1,BATLEYS PERTH,5300,Catering costs - provisions,32.51,,32.51
Resources BK0010,Digital and Customer Services,065432,Web Development Group,Supplies and Services,342033,Computers and Communications,08-Jun-2021,000009541123513,WPMU DEV INCSUBFEE.COM,7372,Computer hardware,0.37,0.00,0.37
Resources BK0010,Strategy,060105,Corporate Performance Management,Supplies and Services,384999,Miscellaneous Expenses,08-Jun-2021,000009541124283,Amazon.co.uk 285D56OQ4,5969,Other expenses,23.39,3.90,19.49
Children and Young Peoples Services,Head of Childrens Social Care,085633,Families First Chester-Le-Street,Supplies and Services,364340,Grants to Voluntary Organisations,08-Jun-2021,000009543960673,WWW.GONORTHEAST.CO.UK,4111,Contact expenses,25.00,0.00,25.00
Children and Young Peoples Services,Head of Education and Skills,071801,Selby Cottage Childcare Centre,Supplies and Services,304999,Equipment and Materials,08-Jun-2021,000009543960683,Amazon Prime 283W00FV4,5968,Misc equipment tools and materials,7.99,0.00,7.99
Children and Young Peoples Services,Head of Education and Skills,071801,Selby Cottage Childcare Centre,Supplies and Services,304403,Equipment and Materials,08-Jun-2021,000009543960685,AMZNMktplace,5999,Other consumables,36.50,6.08,30.42
Children and Young Peoples Services,Head of Education and Skills,071801,Selby Cottage Childcare Centre,Supplies and Services,304403,Equipment and Materials,08-Jun-2021,000009543960689,AMZNMktplace,5999,Other consumables,14.16,2.36,11.80
Children and Young Peoples Services,Head of Education and Skills,071801,Selby Cottage Childcare Centre,Supplies and Services,304403,Equipment and Materials,08-Jun-2021,000009543960691,AMZNMktplace,5999,Other consumables,21.95,0.00,21.95
Children and Young Peoples Services,Head of Education and Skills,071801,Selby Cottage Childcare Centre,Supplies and Services,324117,Provisions E324,08-Jun-2021,000009543960695,TESCO STORES 2278,5411,Catering costs - provisions,6.25,0.00,6.25
Children and Young Peoples Services,Head of Education and Skills,071801,Selby Cottage Childcare Centre,Supplies and Services,324117,Provisions E324,08-Jun-2021,000009543960697,TESCO STORES 2371,5411,Catering costs - provisions,111.96,0.00,111.96
Children and Young Peoples Services,Head of Education and Skills,071801,Selby Cottage Childcare Centre,Supplies and Services,304403,Equipment and Materials,08-Jun-2021,000009543960701,AMZNMktplace,5999,Other consumables,9.98,1.66,8.32
Children and Young Peoples Services,Head of Childrens Social Care,085561,Social Work Academy,Supplies and Services,384999,Miscellaneous Expenses,08-Jun-2021,000009543960721,SP SPIFFY,5691,Other expenses,119.90,0.00,119.90
"Regeneration, Economy and Growth",Development and Housing,030771,Durham Advance Flexible Fund,Supplies and Services,304403,Equipment and Materials,08-Jun-2021,000009543960745,AMZNMktplace,5999,Other consumables,6.95,1.16,5.79
"Regeneration, Economy and Growth",Development and Housing,030771,Durham Advance Flexible Fund,Supplies and Services,304403,Equipment and Materials,08-Jun-2021,000009543960749,AMZNMktplace,5999,Other consumables,35.98,6.00,29.98
"Regeneration, Economy and Growth",Development and Housing,030771,Durham Advance Flexible Fund,Supplies and Services,304403,Equipment and Materials,08-Jun-2021,000009543960753,AMZNMktplace,5999,Other consumables,11.99,2.00,9.99
"Regeneration, Economy and Growth",Development and Housing,030771,Durham Advance Flexible Fund,Supplies and Services,304221,Equipment and Materials,08-Jun-2021,000009543960755,B&Q DIRECT,5200,Direct materials,100.00,0.00,100.00
Children and Young Peoples Services,Head of Childrens Social Care,085501,Child Care Cases Legal Expenses,Supplies and Services,304403,Equipment and Materials,08-Jun-2021,000009543960771,DARLINGTON BC INTERNET,9399,Other consumables,11.00,0.00,11.00
Adult and Health Services,Head of Adults,055302,Durham Pathways,Supplies and Services,304403,Equipment and Materials,08-Jun-2021,000009543960779,AMZNMktplace,5999,Other consumables,21.23,0.00,21.23
Adult and Health Services,Head of Adults,055302,Durham Pathways,Supplies and Services,324117,Provisions E324,08-Jun-2021,000009543960783,WILKO RETAIL LIMITED,5399,Catering costs - provisions,5.50,0.00,5.50
"Regeneration, Economy and Growth",Culture Sport and Tourism,030712,VCD - Project Delivery,Supplies and Services,384199,Miscellaneous Expenses,08-Jun-2021,000009543960789,PAYPAL WEBALON,5817,Other hired and contracted services,5.54,0.00,5.54
Children and Young Peoples Services,Head of Childrens Social Care,085332,Middlestone Moor CU,Supplies and Services,324117,Provisions E324,08-Jun-2021,000009543960817,TESCO STORES 2371,5411,Catering costs - provisions,135.28,0.00,135.28
Children and Young Peoples Services,Head of Early Help Inclusion & Vulnerable Children.,071569,Woodhouse Close Childrens Centre,Supplies and Services,304259,Equipment and Materials,08-Jun-2021,000009543960917,ARGOS LTD,5310,Equipment-purchase and rental,233.95,38.99,194.96
Neighbourhoods and Climate Change,Environmental Services,010367,C&G - South Grounds Maintenance,Supplies and Services,304221,Equipment and Materials,08-Jun-2021,000009543960981,JT ATKINSON & SONS LTD,5211,Direct materials,5.52,0.00,5.52
"Regeneration, Economy and Growth",Culture Sport and Tourism,054812,Gala Theatre - Catering etc,Supplies and Services,324117,Provisions E324,08-Jun-2021,000009543960985,JR HOLLAND FOODSERVICE,5499,Catering costs - provisions,26.68,0.00,26.68
Children and Young Peoples Services,Head of Early Help Inclusion & Vulnerable Children.,085956,Lumley,Supplies and Services,304403,Equipment and Materials,08-Jun-2021,000009543961005,AMZNMktplace,5999,Other consumables,9.99,1.67,8.32
Children and Young Peoples Services,Head of Early Help Inclusion & Vulnerable Children.,085956,Lumley,Supplies and Services,304403,Equipment and Materials,08-Jun-2021,000009543961011,AMZNMKTPLACE AMAZON.CO,5999,Other consumables,17.99,3.00,14.99
Children and Young Peoples Services,Head of Early Help Inclusion & Vulnerable Children.,085956,Lumley,Supplies and Services,304403,Equipment and Materials,08-Jun-2021,000009543961015,AMZNMKTPLACE AMAZON.CO,5999,Other consumables,10.99,1.83,9.16
Children and Young Peoples Services,Head of Early Help Inclusion & Vulnerable Children.,085956,Lumley,Supplies and Services,304403,Equipment and Materials,08-Jun-2021,000009543961017,AMZNMKTPLACE AMAZON.CO,5999,Other consumables,45.74,7.63,38.11
Children and Young Peoples Services,Head of Early Help Inclusion & Vulnerable Children.,085952,Secure Education,Supplies and Services,324117,Provisions E324,08-Jun-2021,000009543961021,TESCO STORES 6329,5411,Catering costs - provisions,66.24,0.00,66.24
Children and Young Peoples Services,Head of Childrens Social Care,085362,LAC & Permanence Team 2,Supplies and Services,338045,Services,08-Jun-2021,000009543961035,HM PASSPORT OFFICE,9399,Legal expenses 338045,49.00,0.00,49.00
Children and Young Peoples Services,Head of Childrens Social Care,085362,LAC & Permanence Team 2,Supplies and Services,338045,Services,08-Jun-2021,000009543961039,LONDON BOROUGH OF NEWH,9399,Legal expenses 338045,38.00,0.00,38.00
Children and Young Peoples Services,Head of Childrens Social Care,085551,Short Break Services-Park Hse Sher,Supplies and Services,324117,Provisions E324,08-Jun-2021,000009543961101,TESCO STORES 2371,5411,Catering costs - provisions,8.20,0.00,8.20
Children and Young Peoples Services,Head of Childrens Social Care,085551,Short Break Services-Park Hse Sher,Supplies and Services,324117,Provisions E324,08-Jun-2021,000009543961107,TESCO STORES 2371,5411,Catering costs - provisions,16.50,0.00,16.50
Children and Young Peoples Services,Head of Education and Skills,071732,Dean Bank Childcare,Supplies and Services,304403,Equipment and Materials,08-Jun-2021,000009543961127,AMZNMktplace,5999,Other consumables,14.68,0.00,14.68
Children and Young Peoples Services,Head of Education and Skills,071732,Dean Bank Childcare,Supplies and Services,324117,Provisions E324,08-Jun-2021,000009543961133,CO-OP GROUP 010503,5411,Catering costs - provisions,11.43,0.00,11.43
Children and Young Peoples Services,Head of Childrens Social Care,085334,West Rainton Satelite Home,Supplies and Services,324117,Provisions E324,08-Jun-2021,000009543961145,CO-OP GROUP 010486,5411,Catering costs - provisions,23.77,0.00,23.77
Children and Young Peoples Services,Head of Childrens Social Care,085334,West Rainton Satelite Home,Transport,215995,Running Costs of Vehicles,08-Jun-2021,000009543961149,GULF WEST RAINTON,5541,Vehicle running expenses,56.00,0.00,56.00
Neighbourhoods and Climate Change,Environmental Services,026591,C&G - Hardwick Park,Supplies and Services,304337,Equipment and Materials,08-Jun-2021,000009543961151,MYWIPE,2842,Consumables/items for resale,63.85,0.00,63.85
"Regeneration, Economy and Growth",Development and Housing,031576,B& B - Temp Accom,Supplies and Services,364320,Grants to Voluntary Organisations,08-Jun-2021,000009543961183,AYCLIFFE BIZ,7011,Accommodation assistance,266.00,0.00,266.00
"Regeneration, Economy and Growth",Business Durham CL0850,030714,Salvus House,Supplies and Services,304403,Equipment and Materials,08-Jun-2021,000009543961201,AMZNMKTPLACE AMAZON.CO,5999,Other consumables,39.71,0.00,39.71
"Regeneration, Economy and Growth",Development and Housing,031623,Rough Sleeping,Transport,235057,Public Transport,08-Jun-2021,000009543961205,BLUE LINE TAXIS,4121,Staff travelling,14.00,0.00,14.00
"Regeneration, Economy and Growth",Development and Housing,031623,Rough Sleeping,Transport,235057,Public Transport,08-Jun-2021,000009543961211,BLUE LINE TAXIS,4121,Staff travelling,14.50,0.00,14.50
"Regeneration, Economy and Growth",Development and Housing,031623,Rough Sleeping,Supplies and Services,352001,Conference Expenses,08-Jun-2021,000009543961225,HI NEWCASTLE WASHI,7011,Conferencesseminars fees etc,450.00,0.00,450.00
"Regeneration, Economy and Growth",Development and Housing,031623,Rough Sleeping,Supplies and Services,352001,Conference Expenses,08-Jun-2021,000009543961229,HI NEWCASTLE WASHI,7011,Conferencesseminars fees etc,450.00,0.00,450.00
"Regeneration, Economy and Growth",Development and Housing,031623,Rough Sleeping,Supplies and Services,352001,Conference Expenses,08-Jun-2021,000009543961233,HI NEWCASTLE WASHI,7011,Conferencesseminars fees etc,220.00,0.00,220.00
"Regeneration, Economy and Growth",Development and Housing,031623,Rough Sleeping,Supplies and Services,304259,Equipment and Materials,08-Jun-2021,000009543961237,WWW.DURHAM.GOV.UK,9399,Equipment-purchase and rental,11.00,0.00,11.00
Children and Young Peoples Services,Head of Early Help Inclusion & Vulnerable Children.,085956,Lumley,Transfer Payments,515002,Social Services Clients,08-Jun-2021,000009543961243,M and M Direct Ltd,5941,Pocket money,49.98,0.00,49.98
Children and Young Peoples Services,Head of Early Help Inclusion & Vulnerable Children.,085962,Aycliffe Secure - Durham,Transfer Payments,515002,Social Services Clients,08-Jun-2021,000009543961249,AMZNMktplace,5999,Pocket money,32.99,5.50,27.49
Children and Young Peoples Services,Head of Early Help Inclusion & Vulnerable Children.,085956,Lumley,Transfer Payments,515002,Social Services Clients,08-Jun-2021,000009543961251,SHEIN.COM,5691,Pocket money,16.48,0.00,16.48
Children and Young Peoples Services,Head of Early Help Inclusion & Vulnerable Children.,085962,Aycliffe Secure - Durham,Transfer Payments,515002,Social Services Clients,08-Jun-2021,000009543961255,CEX LTD,5065,Pocket money,24.30,0.00,24.30
Children and Young Peoples Services,Head of Early Help Inclusion & Vulnerable Children.,085956,Lumley,Transfer Payments,515002,Social Services Clients,08-Jun-2021,000009543961261,PRETTYLITTLETHING.COM,5691,Pocket money,31.00,0.00,31.00
Children and Young Peoples Services,Head of Early Help Inclusion & Vulnerable Children.,085956,Lumley,Transfer Payments,515002,Social Services Clients,08-Jun-2021,000009543961265,SUPERDRUG STORES PLC,5912,Pocket money,27.37,0.00,27.37
Children and Young Peoples Services,Head of Early Help Inclusion & Vulnerable Children.,085962,Aycliffe Secure - Durham,Transfer Payments,515002,Social Services Clients,08-Jun-2021,000009543961271,AMZNMktplace,5999,Pocket money,3.88,0.00,3.88
Children and Young Peoples Services,Head of Early Help Inclusion & Vulnerable Children.,085956,Lumley,Transfer Payments,515002,Social Services Clients,08-Jun-2021,000009543961289,JD SPORTS INTERNET,5941,Pocket money,18.99,0.00,18.99
Children and Young Peoples Services,Head of Early Help Inclusion & Vulnerable Children.,085965,Barnard,Transfer Payments,515002,Social Services Clients,08-Jun-2021,000009543961291,JD SPORTS INTERNET,5941,Pocket money,-115.00,0.00,-115.00
Neighbourhoods and Climate Change,Environmental Services,011060,C&G - Hardwick Park Catering,Premises,145009,Cleaning and Domestic Supplies,08-Jun-2021,000009543961315,ALLIANCE DISPOSABLES L,2842,Other cleaning and domestic costs,38.66,6.44,32.22
Neighbourhoods and Climate Change,Environmental Services,011060,C&G - Hardwick Park Catering,Supplies and Services,324117,Provisions E324,08-Jun-2021,000009543961319,JR HOLLAND FOODSERVICE,5499,Catering costs - provisions,9.28,0.00,9.28
Children and Young Peoples Services,Head of Education and Skills,075021,DurhamWorks Progression and Learning,Supplies and Services,364301,Grants to Voluntary Organisations,08-Jun-2021,000009543961331,WWW.DURHAM.GOV.UK,9399,Hardship,11.00,0.00,11.00
"Regeneration, Economy and Growth",Corporate Property and Land,021234,Catering - Locomotion,Supplies and Services,324117,Provisions E324,08-Jun-2021,000009543961355,ON A ROLL SANDWICH COM,5499,Catering costs - provisions,271.37,0.00,271.37
Children and Young Peoples Services,Head of Childrens Social Care,085344,Childrens Residential Emergency Staffing,Supplies and Services,328041,Clothing uniforms and laundry E328,08-Jun-2021,000009543961363,ARGOS LTD,5310,Clothing uniforms and laundry,140.73,0.00,140.73
"Regeneration, Economy and Growth",Development and Housing,031500,Housing Solutions - Core,Supplies and Services,352001,Conference Expenses,08-Jun-2021,000009543961369,HI NEWCASTLE WASHI,7011,Conferencesseminars fees etc,450.00,0.00,450.00
"Regeneration, Economy and Growth",Development and Housing,031500,Housing Solutions - Core,Supplies and Services,352001,Conference Expenses,08-Jun-2021,000009543961371,HI NEWCASTLE WASHI,7011,Conferencesseminars fees etc,450.00,0.00,450.00
"Regeneration, Economy and Growth",Development and Housing,031500,Housing Solutions - Core,Supplies and Services,352001,Conference Expenses,08-Jun-2021,000009543961377,HI NEWCASTLE WASHI,7011,Conferencesseminars fees etc,220.00,0.00,220.00
Children and Young Peoples Services,Head of Childrens Social Care,085331,New Lea Childrens Home,Supplies and Services,324117,Provisions E324,08-Jun-2021,000009543961393,ASDA SUPERSTORE,5411,Catering costs - provisions,69.91,0.00,69.91
Children and Young Peoples Services,Head of Childrens Social Care,085551,Short Break Services-Park Hse Sher,Supplies and Services,340001,Postages E340,08-Jun-2021,000009543961491,POST OFFICE COUNTER,9402,Postages,4.25,0.00,4.25
Children and Young Peoples Services,Head of Childrens Social Care,085551,Short Break Services-Park Hse Sher,Supplies and Services,324117,Provisions E324,08-Jun-2021,000009543961497,J FREEMAN & SONS LTD,5499,Catering costs - provisions,155.30,0.00,155.30
Children and Young Peoples Services,Head of Childrens Social Care,085551,Short Break Services-Park Hse Sher,Supplies and Services,324117,Provisions E324,08-Jun-2021,000009543961501,JR HOLLAND FOODSERVICE,5499,Catering costs - provisions,311.87,0.00,311.87
Children and Young Peoples Services,Head of Childrens Social Care,085551,Short Break Services-Park Hse Sher,Supplies and Services,304999,Equipment and Materials,08-Jun-2021,000009543961503,HOME BARGAINS SPENNYMO,5251,Misc equipment tools and materials,16.44,0.00,16.44
Children and Young Peoples Services,Head of Childrens Social Care,085551,Short Break Services-Park Hse Sher,Supplies and Services,324117,Provisions E324,08-Jun-2021,000009543961507,ALDI 59 774,5411,Catering costs - provisions,114.78,0.00,114.78
Neighbourhoods and Climate Change,Environmental Services,010367,C&G - South Grounds Maintenance,Supplies and Services,304221,Equipment and Materials,08-Jun-2021,000009543961553,BREWERS,5211,Direct materials,98.39,0.00,98.39
Children and Young Peoples Services,Head of Childrens Social Care,085342,16 Hickstead Rise (previously 9 Cedar Ave),Supplies and Services,324117,Provisions E324,08-Jun-2021,000009543961605,TESCO STORES 6329,5411,Catering costs - provisions,4.00,0.00,4.00
Children and Young Peoples Services,Head of Childrens Social Care,085351,Framwellgate Moor CU,Supplies and Services,324117,Provisions E324,08-Jun-2021,000009543961627,SAINSBURYS 0776,5411,Catering costs - provisions,164.55,0.00,164.55
Resources BK0010,Digital and Customer Services,065335,School Services - Implementations,Supplies and Services,304259,Equipment and Materials,08-Jun-2021,000009543961685,REPLACEBASE,5732,Equipment-purchase and rental,98.04,0.00,98.04
Resources BK0010,Digital and Customer Services,065335,School Services - Implementations,Supplies and Services,304403,Equipment and Materials,08-Jun-2021,000009543961689,AMZNMktplace,5999,Other consumables,21.93,3.66,18.27
Children and Young Peoples Services,Head of Early Help Inclusion & Vulnerable Children.,085957,Secure Management,Supplies and Services,384302,Miscellaneous Expenses,08-Jun-2021,000009543961723,Amazon MP3,5735,Activity expenses,3.92,0.00,3.92
Children and Young Peoples Services,Head of Childrens Social Care,085372,Young Peoples Service Team 2,Supplies and Services,364354,Grants to Voluntary Organisations,08-Jun-2021,000009543961735,ASDA GEORGE COM LEEDS,5411,Supervised Spend - Setting Up Home Allowance,62.95,0.00,62.95
Resources BK0010,Procurement Sales & Business Services,065503,Business Support - Spectrum,Supplies and Services,324117,Provisions E324,08-Jun-2021,000009543961749,ASDA STORES LTD,5411,Catering costs - provisions,32.06,0.00,32.06
Children and Young Peoples Services,Head of Education and Skills,071903,Early Years Sustainability,Supplies and Services,312009,Newspapers books and periodicals E312,08-Jun-2021,000009543961771,HTTP://WWW.QUAYBOOKS.C,5942,Newspapers books and periodicals,56.70,0.00,56.70
Children and Young Peoples Services,Head of Education and Skills,071903,Early Years Sustainability,Supplies and Services,384999,Miscellaneous Expenses,08-Jun-2021,000009543961779,Amazon.co.uk 280KA3FT4,5969,Other expenses,12.99,2.17,10.82
"Regeneration, Economy and Growth",Culture Sport and Tourism,054235,Bishop Auckland Town Hall Cafe,Supplies and Services,324117,Provisions E324,08-Jun-2021,000009543961783,JR HOLLAND FOODSERVICE,5499,Catering costs - provisions,40.90,0.00,40.90
Children and Young Peoples Services,Head of Childrens Social Care,085332,Middlestone Moor CU,Supplies and Services,324117,Provisions E324,08-Jun-2021,000009543961789,KEN WARNE LTD (O5),5411,Catering costs - provisions,5.83,0.00,5.83
Children and Young Peoples Services,Head of Childrens Social Care,085342,16 Hickstead Rise (previously 9 Cedar Ave),Supplies and Services,324117,Provisions E324,08-Jun-2021,000009543961823,WALKERS BUTCHERS & BAK,5499,Catering costs - provisions,38.44,0.00,38.44
Children and Young Peoples Services,Head of Childrens Social Care,085332,Middlestone Moor CU,Transport,235057,Public Transport,08-Jun-2021,000009543961871,ARRIVA UK BUS,4131,Staff travelling,11.90,0.00,11.90
Children and Young Peoples Services,Head of Early Help Inclusion & Vulnerable Children.,088107,Ferryhill & Newton Aycliffe 0-19 Community Family Hub,Supplies and Services,324117,Provisions E324,08-Jun-2021,000009543961877,ASDA GROCERIES ONLINE,5411,Catering costs - provisions,71.60,0.00,71.60
Children and Young Peoples Services,Head of Early Help Inclusion & Vulnerable Children.,088107,Ferryhill & Newton Aycliffe 0-19 Community Family Hub,Supplies and Services,324117,Provisions E324,08-Jun-2021,000009543961885,ASDA GROCERIES ONLINE,5411,Catering costs - provisions,-1.07,0.00,-1.07
"Regeneration, Economy and Growth",Development and Housing,031576,B& B - Temp Accom,Supplies and Services,364320,Grants to Voluntary Organisations,08-Jun-2021,000009543961891,HI NEWCASTLE WASHI,7011,Accommodation assistance,450.00,0.00,450.00
"Regeneration, Economy and Growth",Development and Housing,031576,B& B - Temp Accom,Supplies and Services,364320,Grants to Voluntary Organisations,08-Jun-2021,000009543961897,HI NEWCASTLE WASHI,7011,Accommodation assistance,450.00,0.00,450.00
"Regeneration, Economy and Growth",Development and Housing,031576,B& B - Temp Accom,Supplies and Services,364320,Grants to Voluntary Organisations,08-Jun-2021,000009543961901,HI NEWCASTLE WASHI,7011,Accommodation assistance,50.00,0.00,50.00
"Regeneration, Economy and Growth",Culture Sport and Tourism,054233,Bishop Auckland Town Hall Library,Supplies and Services,324117,Provisions E324,08-Jun-2021,000009543961905,HERON FOODS BISHOP AUC,5411,Catering costs - provisions,10.55,0.00,10.55
Children and Young Peoples Services,Head of Childrens Social Care,085331,New Lea Childrens Home,Supplies and Services,384999,Miscellaneous Expenses,08-Jun-2021,000009543961923,Amazon.co.uk 280ME9FP4,5969,Other expenses,41.94,6.99,34.95
Children and Young Peoples Services,Head of Childrens Social Care,085331,New Lea Childrens Home,Supplies and Services,384999,Miscellaneous Expenses,08-Jun-2021,000009543961923 - 1,Amazon.co.uk 280ME9FP4,5969,Other expenses,0.03,,0.03
Children and Young Peoples Services,Head of Childrens Social Care,085331,New Lea Childrens Home,Supplies and Services,384999,Miscellaneous Expenses,08-Jun-2021,000009543961927,Amazon.co.uk 281FM7F74,5969,Other expenses,41.94,6.99,34.95
Children and Young Peoples Services,Head of Childrens Social Care,085331,New Lea Childrens Home,Supplies and Services,384999,Miscellaneous Expenses,08-Jun-2021,000009543961927 - 1,Amazon.co.uk 281FM7F74,5969,Other expenses,0.03,,0.03
Resources BK0010,Strategy,060105,Corporate Performance Management,Supplies and Services,384999,Miscellaneous Expenses,08-Jun-2021,000009543961945,Amazon.co.uk 280X30OJ4,5969,Other expenses,9.99,1.67,8.32
Resources BK0010,Procurement Sales & Business Services,065501,Business Support - Executive Support,Supplies and Services,304403,Equipment and Materials,08-Jun-2021,000009543961949,AMZNMktplace,5999,Other consumables,113.94,0.00,113.94
Resources BK0010,Procurement Sales & Business Services,065501,Business Support - Executive Support,Supplies and Services,304403,Equipment and Materials,08-Jun-2021,000009543961951,AMZNMktplace,5999,Other consumables,93.06,0.00,93.06
Neighbourhoods and Climate Change,Technical Services CM0300,010010,Gilesgate DSHI 08/09,Employees,040149,Recruitment Instruction and Training,08-Jun-2021,000009543961955,CREATIVE_FED,8699,Training-all costs,25.00,0.00,25.00
Resources BK0010,Procurement Sales & Business Services,065501,Business Support - Executive Support,Supplies and Services,304403,Equipment and Materials,08-Jun-2021,000009543961959,AMZNMktplace,5999,Other consumables,39.98,6.66,33.32
Resources BK0010,Procurement Sales & Business Services,065501,Business Support - Executive Support,Supplies and Services,304403,Equipment and Materials,08-Jun-2021,000009543961963,AMZNMktplace,5999,Other consumables,60.16,0.00,60.16
Resources BK0010,Procurement Sales & Business Services,065501,Business Support - Executive Support,Supplies and Services,304403,Equipment and Materials,08-Jun-2021,000009543961967,AMZNMktplace,5999,Other consumables,62.81,0.00,62.81
Resources BK0010,Procurement Sales & Business Services,065501,Business Support - Executive Support,Supplies and Services,304403,Equipment and Materials,08-Jun-2021,000009543961971,AMZNMktplace,5999,Other consumables,5.75,0.00,5.75
Adult and Health Services,Head of Adults,055309,Peterlee Pathways,Supplies and Services,304403,Equipment and Materials,08-Jun-2021,000009543962021,AMZNMktplace,5999,Other consumables,85.70,14.30,71.40
Children and Young Peoples Services,Head of Childrens Social Care,085551,Short Break Services-Park Hse Sher,Supplies and Services,324117,Provisions E324,08-Jun-2021,000009543962035,LIDL GB DURHAM,5411,Catering costs - provisions,12.25,0.00,12.25
Children and Young Peoples Services,Head of Childrens Social Care,085551,Short Break Services-Park Hse Sher,Supplies and Services,324117,Provisions E324,08-Jun-2021,000009543962039,WWW.ICELAND.CO.UK,5411,Catering costs - provisions,120.60,0.00,120.60
Children and Young Peoples Services,Head of Childrens Social Care,085551,Short Break Services-Park Hse Sher,Supplies and Services,324117,Provisions E324,08-Jun-2021,000009543962047,WWW.ICELAND.CO.UK,5411,Catering costs - provisions,-5.00,0.00,-5.00
Children and Young Peoples Services,Head of Childrens Social Care,085561,Social Work Academy,Supplies and Services,304403,Equipment and Materials,08-Jun-2021,000009547438421,AMZNMKTPLACE AMAZON.CO,5999,Other consumables,143.70,24.00,119.70
Children and Young Peoples Services,Head of Childrens Social Care,085561,Social Work Academy,Supplies and Services,304403,Equipment and Materials,08-Jun-2021,000009547438423,AMZNMKTPLACE AMAZON.CO,5999,Other consumables,86.88,14.48,72.40
Children and Young Peoples Services,Head of Childrens Social Care,085561,Social Work Academy,Supplies and Services,304403,Equipment and Materials,08-Jun-2021,000009547438423 - 1,AMZNMKTPLACE AMAZON.CO,5999,Other consumables,0.16,,0.16
Children and Young Peoples Services,Head of Early Help Inclusion & Vulnerable Children.,088106,Ferryhill & N.Aycliffe 0-19 Targeted Family Support,Supplies and Services,364301,Grants to Voluntary Organisations,08-Jun-2021,000009547439197,ARGOS LTD,5310,Hardship,15.99,0.00,15.99
"Regeneration, Economy and Growth",Development and Housing,031500,Housing Solutions - Core,Supplies and Services,348037,Subsistence E348,08-Jun-2021,000009547439713,CROXDALE INN,5812,Subsistence,70.00,0.00,70.00
"Regeneration, Economy and Growth",Culture Sport and Tourism,054812,Gala Theatre - Catering etc,Supplies and Services,324117,Provisions E324,08-Jun-2021,000009551144445,BATLEYS PERTH,5300,Catering costs - provisions,-15.07,0.00,-15.07
"Regeneration, Economy and Growth",Corporate Property and Land,021234,Catering - Locomotion,Supplies and Services,324117,Provisions E324,08-Jun-2021,000009551144777,BATLEYS PERTH,5300,Catering costs - provisions,264.42,44.07,220.35
"Regeneration, Economy and Growth",Corporate Property and Land,021234,Catering - Locomotion,Supplies and Services,324117,Provisions E324,08-Jun-2021,000009551144777 - 1,BATLEYS PERTH,5300,Catering costs - provisions,41.07,,41.07
"Regeneration, Economy and Growth",Culture Sport and Tourism,054235,Bishop Auckland Town Hall Cafe,Supplies and Services,324117,Provisions E324,08-Jun-2021,000009551145319,BATLEYS PERTH,5300,Catering costs - provisions,37.20,6.20,31.00
"Regeneration, Economy and Growth",Culture Sport and Tourism,054235,Bishop Auckland Town Hall Cafe,Supplies and Services,324117,Provisions E324,08-Jun-2021,000009551145319 - 1,BATLEYS PERTH,5300,Catering costs - provisions,134.73,,134.73
Children and Young Peoples Services,Head of Education and Skills,071801,Selby Cottage Childcare Centre,Supplies and Services,304403,Equipment and Materials,09-Jun-2021,000009543960703,AMZNMktplace,5999,Other consumables,26.93,4.49,22.44
Children and Young Peoples Services,Head of Early Help Inclusion & Vulnerable Children.,085956,Lumley,Transfer Payments,515002,Social Services Clients,09-Jun-2021,000009543961277,AMZNMktplace,5999,Pocket money,3.99,0.67,3.32
Children and Young Peoples Services,Head of Early Help Inclusion & Vulnerable Children.,085956,Lumley,Transfer Payments,515002,Social Services Clients,09-Jun-2021,000009543961283,AMZNMktplace,5999,Pocket money,23.82,3.98,19.84
Children and Young Peoples Services,Head of Early Help Inclusion & Vulnerable Children.,085957,Secure Management,Supplies and Services,384302,Miscellaneous Expenses,09-Jun-2021,000009543961729,Microsoft Ultimate 1 M,5816,Activity expenses,10.99,0.00,10.99
"Regeneration, Economy and Growth",Business Durham CL0850,030689,Inward Investment and Aftercare,Supplies and Services,304999,Equipment and Materials,09-Jun-2021,000009547438401,MAILCHIMP MONTHLY,5968,Misc equipment tools and materials,74.78,0.00,74.78
Children and Young Peoples Services,Head of Childrens Social Care,085561,Social Work Academy,Supplies and Services,304403,Equipment and Materials,09-Jun-2021,000009547438427,AMZNMKTPLACE AMAZON.CO,5999,Other consumables,34.00,5.67,28.33
Children and Young Peoples Services,Head of Childrens Social Care,085561,Social Work Academy,Supplies and Services,304403,Equipment and Materials,09-Jun-2021,000009547438431,AMZNMKTPLACE AMAZON.CO,5999,Other consumables,34.00,5.67,28.33
Children and Young Peoples Services,Head of Childrens Social Care,085561,Social Work Academy,Supplies and Services,304403,Equipment and Materials,09-Jun-2021,000009547438437,AMZNMKTPLACE AMAZON.CO,5999,Other consumables,34.00,5.67,28.33
Children and Young Peoples Services,Head of Childrens Social Care,085561,Social Work Academy,Supplies and Services,384999,Miscellaneous Expenses,09-Jun-2021,000009547438439,Amazon.co.uk 281GK44X4,5969,Other expenses,59.98,10.00,49.98
Children and Young Peoples Services,Head of Childrens Social Care,085561,Social Work Academy,Supplies and Services,384999,Miscellaneous Expenses,09-Jun-2021,000009547438441,Amazon.co.uk 281P234J4,5969,Other expenses,18.12,3.02,15.10
Children and Young Peoples Services,Head of Childrens Social Care,085561,Social Work Academy,Supplies and Services,384999,Miscellaneous Expenses,09-Jun-2021,000009547438441 - 1,Amazon.co.uk 281P234J4,5969,Other expenses,71.83,,71.83
Children and Young Peoples Services,Head of Childrens Social Care,085561,Social Work Academy,Supplies and Services,384999,Miscellaneous Expenses,09-Jun-2021,000009547438445,Amazon.co.uk 283TS74W4,5969,Other expenses,18.11,3.02,15.09
Children and Young Peoples Services,Head of Childrens Social Care,085561,Social Work Academy,Supplies and Services,384999,Miscellaneous Expenses,09-Jun-2021,000009547438449,Amazon.co.uk 284IB34D4,5969,Other expenses,381.45,0.00,381.45
Children and Young Peoples Services,Head of Childrens Social Care,085561,Social Work Academy,Supplies and Services,384999,Miscellaneous Expenses,09-Jun-2021,000009547438453,Amazon.co.uk 286AI94C4,5969,Other expenses,172.00,0.00,172.00
Children and Young Peoples Services,Head of Childrens Social Care,085561,Social Work Academy,Supplies and Services,384999,Miscellaneous Expenses,09-Jun-2021,000009547438455,Amazon.co.uk 286SQ74O4,5969,Other expenses,389.57,64.94,324.63
Children and Young Peoples Services,Head of Childrens Social Care,085561,Social Work Academy,Supplies and Services,384999,Miscellaneous Expenses,09-Jun-2021,000009547438459,Amazon.co.uk 287DA04U4,5969,Other expenses,59.98,10.00,49.98
Children and Young Peoples Services,Head of Childrens Social Care,085561,Social Work Academy,Supplies and Services,384999,Miscellaneous Expenses,09-Jun-2021,000009547438463,Amazon.co.uk 287OF84D4,5969,Other expenses,41.87,10.00,31.87
Children and Young Peoples Services,Head of Childrens Social Care,085561,Social Work Academy,Supplies and Services,384999,Miscellaneous Expenses,09-Jun-2021,000009547438465,Amazon.co.uk 288OP64T4,5969,Other expenses,18.11,10.00,8.11
Children and Young Peoples Services,Head of Childrens Social Care,085561,Social Work Academy,Supplies and Services,384999,Miscellaneous Expenses,09-Jun-2021,000009547438469,Amazon.co.uk 289A364Z4,5969,Other expenses,59.98,10.00,49.98
Children and Young Peoples Services,Head of Childrens Social Care,085561,Social Work Academy,Supplies and Services,384999,Miscellaneous Expenses,09-Jun-2021,000009547438471,Amazon.co.uk 289CB8474,5969,Other expenses,244.36,40.76,203.60
Children and Young Peoples Services,Head of Childrens Social Care,085561,Social Work Academy,Supplies and Services,384999,Miscellaneous Expenses,09-Jun-2021,000009547438473,Amazon.co.uk 2892R7484,5969,Other expenses,172.60,0.00,172.60
Children and Young Peoples Services,Head of Childrens Social Care,085561,Social Work Academy,Supplies and Services,304403,Equipment and Materials,09-Jun-2021,000009547438475,AMZNMktplace,5999,Other consumables,34.00,5.67,28.33
Children and Young Peoples Services,Head of Childrens Social Care,085561,Social Work Academy,Supplies and Services,304403,Equipment and Materials,09-Jun-2021,000009547438479,AMZNMktplace,5999,Other consumables,34.00,5.67,28.33
Children and Young Peoples Services,Head of Childrens Social Care,085561,Social Work Academy,Supplies and Services,384999,Miscellaneous Expenses,09-Jun-2021,000009547438483,Amazon.co.uk 284MI0L84,5969,Other expenses,159.90,0.00,159.90
Resources BK0010,Procurement Sales & Business Services,065505,Business Support - HQ,Supplies and Services,304403,Equipment and Materials,09-Jun-2021,000009547438485,AMZNMktplace,5999,Other consumables,16.98,2.84,14.14
Neighbourhoods and Climate Change,Environmental Services,010341,Nei.Prot - N. Wardens,Supplies and Services,304403,Equipment and Materials,09-Jun-2021,000009547438489,AMZNMktplace,5999,Other consumables,6.99,1.17,5.82
Children and Young Peoples Services,Head of Childrens Social Care,085561,Social Work Academy,Supplies and Services,304403,Equipment and Materials,09-Jun-2021,000009547438493,AMZ SuperBookDealsEU,5999,Other consumables,-16.04,0.00,-16.04
"Regeneration, Economy and Growth",Development and Housing,030771,Durham Advance Flexible Fund,Supplies and Services,304403,Equipment and Materials,09-Jun-2021,000009547438503,AMZNMktplace,5999,Other consumables,7.99,1.33,6.66
"Regeneration, Economy and Growth",Development and Housing,030771,Durham Advance Flexible Fund,Supplies and Services,304403,Equipment and Materials,09-Jun-2021,000009547438507,AMZNMktplace,5999,Other consumables,68.52,11.42,57.10
"Regeneration, Economy and Growth",Development and Housing,030771,Durham Advance Flexible Fund,Supplies and Services,304403,Equipment and Materials,09-Jun-2021,000009547438507 - 1,AMZNMktplace,5999,Other consumables,52.93,,52.93
"Regeneration, Economy and Growth",Development and Housing,030771,Durham Advance Flexible Fund,Supplies and Services,344033,Telephones,09-Jun-2021,000009547438511,PAYPAL BEAUTYACADE,8099,Telephones general-all costs,359.00,59.83,299.17
"Regeneration, Economy and Growth",Development and Housing,030771,Durham Advance Flexible Fund,Supplies and Services,304403,Equipment and Materials,09-Jun-2021,000009547438515,AMZNMktplace,5999,Other consumables,6.99,1.17,5.82
"Regeneration, Economy and Growth",Development and Housing,030771,Durham Advance Flexible Fund,Supplies and Services,304403,Equipment and Materials,09-Jun-2021,000009547438517,AMZNMktplace,5999,Other consumables,60.84,10.15,50.69
"Regeneration, Economy and Growth",Development and Housing,030773,CLLD North,Supplies and Services,304259,Equipment and Materials,09-Jun-2021,000009547438531,DISCLOSURE AND BARRING,9399,Equipment-purchase and rental,23.00,0.00,23.00
Adult and Health Services,Head of Adults,055302,Durham Pathways,Supplies and Services,324117,Provisions E324,09-Jun-2021,000009547438537,SAINSBURYS SACAT 0776,5411,Catering costs - provisions,0.95,0.00,0.95
Adult and Health Services,Head of Adults,055302,Durham Pathways,Supplies and Services,324117,Provisions E324,09-Jun-2021,000009547438541,SAINSBURYS 0776,5411,Catering costs - provisions,28.12,0.00,28.12
Adult and Health Services,Head of Adults,055302,Durham Pathways,Supplies and Services,304259,Equipment and Materials,09-Jun-2021,000009547438547,CURRYS ONLINE,5732,Equipment-purchase and rental,379.00,0.00,379.00
Neighbourhoods and Climate Change,Environmental Services,010383,C&G - South Street Cleansing,Supplies and Services,304221,Equipment and Materials,09-Jun-2021,000009547438551,AZTEC CHEMICALS LTD,5169,Direct materials,258.91,43.15,215.76
"Regeneration, Economy and Growth",Culture Sport and Tourism,054735,Killhope Cafe,Supplies and Services,304403,Equipment and Materials,09-Jun-2021,000009547438555,AMZNMKTPLACE AMAZON.CO,5999,Other consumables,55.99,9.33,46.66
"Regeneration, Economy and Growth",Culture Sport and Tourism,054798,dli Museum - WW1 Education Programme,Supplies and Services,304259,Equipment and Materials,09-Jun-2021,000009547438559,ETSY.COM - ARROWSMITHF,5699,Equipment-purchase and rental,29.99,0.00,29.99
"Regeneration, Economy and Growth",Culture Sport and Tourism,054798,dli Museum - WW1 Education Programme,Supplies and Services,304259,Equipment and Materials,09-Jun-2021,000009547438563,ETSY.COM - FREEBURYAND,5699,Equipment-purchase and rental,36.49,0.00,36.49
"Regeneration, Economy and Growth",Culture Sport and Tourism,054798,dli Museum - WW1 Education Programme,Supplies and Services,304259,Equipment and Materials,09-Jun-2021,000009547438567,AMZNMktplace,5999,Equipment-purchase and rental,17.98,3.00,14.98
Children and Young Peoples Services,Head of Childrens Social Care,085332,Middlestone Moor CU,Supplies and Services,324117,Provisions E324,09-Jun-2021,000009547438581,ASDA SUPERSTORE 4987,5411,Catering costs - provisions,140.09,0.00,140.09
Children and Young Peoples Services,Head of Education and Skills,071903,Early Years Sustainability,Supplies and Services,342033,Computers and Communications,09-Jun-2021,000009547438601,STK Shutterstock,7333,Computer hardware,22.80,0.00,22.80
"Regeneration, Economy and Growth",Culture Sport and Tourism,054233,Bishop Auckland Town Hall Library,Supplies and Services,324117,Provisions E324,09-Jun-2021,000009547438717,HERON FOODS BISHOP AUC,5411,Catering costs - provisions,8.20,0.00,8.20
"Regeneration, Economy and Growth",Culture Sport and Tourism,054812,Gala Theatre - Catering etc,Supplies and Services,324117,Provisions E324,09-Jun-2021,000009547438739,JR HOLLAND FOODSERVICE,5499,Catering costs - provisions,4.60,0.00,4.60
Children and Young Peoples Services,Head of Early Help Inclusion & Vulnerable Children.,085957,Secure Management,Supplies and Services,384999,Miscellaneous Expenses,09-Jun-2021,000009547438745,Amazon.co.uk 288Z26LE4,5969,Other expenses,12.00,2.00,10.00
"Regeneration, Economy and Growth",Development and Housing,030772,CLLD South,Supplies and Services,304259,Equipment and Materials,09-Jun-2021,000009547438767,Durham County CNCL,9399,Equipment-purchase and rental,11.00,0.00,11.00
Children and Young Peoples Services,Head of Childrens Social Care,085341,High Etherley Satelite Home,Supplies and Services,304405,Equipment and Materials,09-Jun-2021,000009547438797,TESCO STORES 6329,5411,Medical supplies,1.40,0.00,1.40
Children and Young Peoples Services,Head of Childrens Social Care,085341,High Etherley Satelite Home,Supplies and Services,304259,Equipment and Materials,09-Jun-2021,000009547438801,TESCO STORES 6329,5411,Equipment-purchase and rental,39.50,0.00,39.50
Children and Young Peoples Services,Head of Childrens Social Care,085551,Short Break Services-Park Hse Sher,Supplies and Services,324117,Provisions E324,09-Jun-2021,000009547438823,ASDA STORES,5411,Catering costs - provisions,50.00,0.00,50.00
Children and Young Peoples Services,Head of Education and Skills,071732,Dean Bank Childcare,Supplies and Services,304259,Equipment and Materials,09-Jun-2021,000009547438863,Amazon Music 284A774G4,5735,Equipment-purchase and rental,14.99,0.00,14.99
Children and Young Peoples Services,Head of Education and Skills,071732,Dean Bank Childcare,Supplies and Services,324117,Provisions E324,09-Jun-2021,000009547438865,SAINSBURYS SACAT (2303,5411,Catering costs - provisions,12.55,0.00,12.55
Children and Young Peoples Services,Head of Education and Skills,071732,Dean Bank Childcare,Supplies and Services,324117,Provisions E324,09-Jun-2021,000009547438869,JR HOLLAND FOODSERVICE,5499,Catering costs - provisions,398.85,0.00,398.85
Children and Young Peoples Services,Head of Education and Skills,071732,Dean Bank Childcare,Supplies and Services,304403,Equipment and Materials,09-Jun-2021,000009547438873,AMZNMktplace,5999,Other consumables,19.98,0.00,19.98
Children and Young Peoples Services,Head of Childrens Social Care,085334,West Rainton Satelite Home,Transport,215995,Running Costs of Vehicles,09-Jun-2021,000009547438895,EURO CAR PARTS P,5533,Vehicle running expenses,8.99,0.00,8.99
Children and Young Peoples Services,Head of Childrens Social Care,085334,West Rainton Satelite Home,Supplies and Services,304221,Equipment and Materials,09-Jun-2021,000009547438899,B & Q 1343,5200,Direct materials,33.00,0.00,33.00
Children and Young Peoples Services,Head of Childrens Social Care,085332,Middlestone Moor CU,Supplies and Services,304999,Equipment and Materials,09-Jun-2021,000009547438959,Amazon Prime 2893I74L4,5968,Misc equipment tools and materials,7.99,0.00,7.99
Children and Young Peoples Services,Head of Childrens Social Care,085332,Middlestone Moor CU,Supplies and Services,348037,Subsistence E348,09-Jun-2021,000009547438963,MCDONALD`S,5812,Subsistence,2.60,0.00,2.60
Children and Young Peoples Services,Head of Childrens Social Care,085332,Middlestone Moor CU,Supplies and Services,304259,Equipment and Materials,09-Jun-2021,000009547438969,JD SPORTS PLC,5941,Equipment-purchase and rental,49.10,0.00,49.10
Neighbourhoods and Climate Change,Environmental Services,010301,C&G - North Grounds Maintenance,Supplies and Services,304221,Equipment and Materials,09-Jun-2021,000009547439005,AZTEC CHEMICALS LTD,5169,Direct materials,478.51,79.75,398.76
Children and Young Peoples Services,Head of Early Help Inclusion & Vulnerable Children.,071746,Newton Aycliffe Childrens Centre,Supplies and Services,304403,Equipment and Materials,09-Jun-2021,000009547439023,AMZNMKTPLACE AMAZON.CO,5999,Other consumables,42.10,7.02,35.08
Children and Young Peoples Services,Head of Early Help Inclusion & Vulnerable Children.,085957,Secure Management,Supplies and Services,340001,Postages E340,09-Jun-2021,000009547439031,TSB Returns Ltd,4215,Postages,2.50,0.00,2.50
Children and Young Peoples Services,Head of Early Help Inclusion & Vulnerable Children.,085957,Secure Management,Supplies and Services,340001,Postages E340,09-Jun-2021,000009547439035,ZigZag Global,4215,Postages,2.50,0.00,2.50
Children and Young Peoples Services,Head of Early Help Inclusion & Vulnerable Children.,085962,Aycliffe Secure - Durham,Transfer Payments,515002,Social Services Clients,09-Jun-2021,000009547439037,AMZNMKTPLACE AMAZON.CO,5999,Pocket money,26.13,4.36,21.77
Children and Young Peoples Services,Head of Early Help Inclusion & Vulnerable Children.,085954,Walworth,Transfer Payments,515002,Social Services Clients,09-Jun-2021,000009547439041,FOOTASYLUM PLC,5691,Pocket money,84.97,0.00,84.97
Children and Young Peoples Services,Head of Early Help Inclusion & Vulnerable Children.,085956,Lumley,Transfer Payments,515002,Social Services Clients,09-Jun-2021,000009547439047,AMZNMktplace,5999,Pocket money,3.75,0.63,3.12
Children and Young Peoples Services,Head of Early Help Inclusion & Vulnerable Children.,085956,Lumley,Transfer Payments,515002,Social Services Clients,09-Jun-2021,000009547439051,AMZNMktplace,5999,Pocket money,3.87,0.65,3.22
Children and Young Peoples Services,Head of Early Help Inclusion & Vulnerable Children.,085956,Lumley,Transfer Payments,515002,Social Services Clients,09-Jun-2021,000009547439055,AMZNMktplace,5999,Pocket money,2.19,0.00,2.19
Children and Young Peoples Services,Head of Early Help Inclusion & Vulnerable Children.,085962,Aycliffe Secure - Durham,Transfer Payments,515002,Social Services Clients,09-Jun-2021,000009547439061,AMZNMKTPLACE AMAZON.CO,5999,Pocket money,7.58,1.26,6.32
Children and Young Peoples Services,Head of Early Help Inclusion & Vulnerable Children.,085962,Aycliffe Secure - Durham,Supplies and Services,324117,Provisions E324,09-Jun-2021,000009547439065,TESCO STORES 6329,5411,Catering costs - provisions,82.56,0.00,82.56
Children and Young Peoples Services,Head of Early Help Inclusion & Vulnerable Children.,085956,Lumley,Transfer Payments,515002,Social Services Clients,09-Jun-2021,000009547439069,AMZNMktplace,5999,Pocket money,11.99,2.00,9.99
Children and Young Peoples Services,Head of Early Help Inclusion & Vulnerable Children.,085956,Lumley,Transfer Payments,515002,Social Services Clients,09-Jun-2021,000009547439073,AMZNMktplace,5999,Pocket money,7.64,1.28,6.36
Children and Young Peoples Services,Head of Early Help Inclusion & Vulnerable Children.,085956,Lumley,Transfer Payments,515002,Social Services Clients,09-Jun-2021,000009547439083,www.asos.com,5651,Pocket money,22.35,0.00,22.35
Neighbourhoods and Climate Change,Environmental Services,010919,C&G - Countryside Site Management,Supplies and Services,304221,Equipment and Materials,09-Jun-2021,000009547439153,S&A BUILDERS MERCHANTS,5039,Direct materials,7.32,1.22,6.10
Neighbourhoods and Climate Change,Environmental Services,010367,C&G - South Grounds Maintenance,Supplies and Services,304403,Equipment and Materials,09-Jun-2021,000009547439157,MAXWELLS DIY,5231,Other consumables,9.00,0.00,9.00
"Regeneration, Economy and Growth",Corporate Property and Land,021234,Catering - Locomotion,Supplies and Services,324117,Provisions E324,09-Jun-2021,000009547439191,JR HOLLAND FOODSERVICE,5499,Catering costs - provisions,94.21,0.00,94.21
"Regeneration, Economy and Growth",Development and Housing,030771,Durham Advance Flexible Fund,Supplies and Services,304259,Equipment and Materials,09-Jun-2021,000009547439263,MIDDLESBROUGH COUNCIL,9399,Equipment-purchase and rental,11.00,0.00,11.00
Adult and Health Services,Head of Adults,055643,Hawthorn House LD Respite Unit,Supplies and Services,324117,Provisions E324,09-Jun-2021,000009547439325,SAINSBURYS SACAT 0776,5411,Catering costs - provisions,10.95,0.00,10.95
Adult and Health Services,Head of Adults,055643,Hawthorn House LD Respite Unit,Supplies and Services,324117,Provisions E324,09-Jun-2021,000009547439331,SAINSBURYS SACAT 0776,5411,Catering costs - provisions,12.35,0.00,12.35
Children and Young Peoples Services,Head of Childrens Social Care,085333,Coxhoe Satelite Home,Supplies and Services,304403,Equipment and Materials,09-Jun-2021,000009547439341,PLANET LEISURE YTMS0,5734,Other consumables,14.75,0.00,14.75
Children and Young Peoples Services,Head of Childrens Social Care,085333,Coxhoe Satelite Home,Supplies and Services,304403,Equipment and Materials,09-Jun-2021,000009547439345,PLANET LEISURE 80UGW,5734,Other consumables,2.95,0.00,2.95
Children and Young Peoples Services,Head of Childrens Social Care,085333,Coxhoe Satelite Home,Supplies and Services,304999,Equipment and Materials,09-Jun-2021,000009547439351,WWW.PLANET-LEISURE.CO.,7933,Misc equipment tools and materials,23.85,0.00,23.85
Children and Young Peoples Services,Head of Childrens Social Care,085333,Coxhoe Satelite Home,Supplies and Services,324117,Provisions E324,09-Jun-2021,000009547439355,TESCO STORES 2371,5411,Catering costs - provisions,203.51,0.00,203.51
Children and Young Peoples Services,Head of Childrens Social Care,085333,Coxhoe Satelite Home,Supplies and Services,324117,Provisions E324,09-Jun-2021,000009547439359,STARBUCKS THINFORD,5499,Catering costs - provisions,4.55,0.00,4.55
Children and Young Peoples Services,Head of Education and Skills,078554,Adult Skills-Main,Supplies and Services,304999,Equipment and Materials,09-Jun-2021,000009547439387,FS instantflipbook,5817,Misc equipment tools and materials,65.44,0.00,65.44
Children and Young Peoples Services,Head of Childrens Social Care,085351,Framwellgate Moor CU,Supplies and Services,304403,Equipment and Materials,09-Jun-2021,000009547439397,AMZNMktplace,5999,Other consumables,8.97,1.50,7.47
"Regeneration, Economy and Growth",Corporate Property and Land,030691,Catering - Durham Dales Centre,Supplies and Services,324117,Provisions E324,09-Jun-2021,000009547439401,JR HOLLAND FOODSERVICE,5499,Catering costs - provisions,250.28,0.00,250.28
Neighbourhoods and Climate Change,Environmental Services,010367,C&G - South Grounds Maintenance,Supplies and Services,304221,Equipment and Materials,09-Jun-2021,000009547439409,CARRS BILLINGTON SPENN,5599,Direct materials,177.32,0.00,177.32
Adult and Health Services,Head of Adults,055643,Hawthorn House LD Respite Unit,Supplies and Services,324117,Provisions E324,09-Jun-2021,000009547439415,JR HOLLAND FOODSERVICE,5499,Catering costs - provisions,8.01,0.00,8.01
Adult and Health Services,Head of Adults,055643,Hawthorn House LD Respite Unit,Supplies and Services,324117,Provisions E324,09-Jun-2021,000009547439419,JR HOLLAND FOODSERVICE,5499,Catering costs - provisions,15.16,0.00,15.16
"Regeneration, Economy and Growth",Culture Sport and Tourism,011263,Louisa Centre 011263,Supplies and Services,304221,Equipment and Materials,09-Jun-2021,000009547439447,SCREWFIX DIRECT,5211,Direct materials,49.98,0.00,49.98
Children and Young Peoples Services,Head of Early Help Inclusion & Vulnerable Children.,088103,Consett & Stanley 0-19 Community Family Hub,Supplies and Services,364301,Grants to Voluntary Organisations,09-Jun-2021,000009547439465,WWW.MICHAELSEHGAL.CO.U,5137,Hardship,34.98,0.00,34.98
Children and Young Peoples Services,Head of Early Help Inclusion & Vulnerable Children.,088103,Consett & Stanley 0-19 Community Family Hub,Supplies and Services,364301,Grants to Voluntary Organisations,09-Jun-2021,000009547439469,ASDA GEORGE COM LEEDS,5411,Hardship,152.95,0.00,152.95
Children and Young Peoples Services,Head of Early Help Inclusion & Vulnerable Children.,088103,Consett & Stanley 0-19 Community Family Hub,Supplies and Services,364301,Grants to Voluntary Organisations,09-Jun-2021,000009547439473,ASDA GEORGE COM LEEDS,5411,Hardship,60.00,0.00,60.00
Children and Young Peoples Services,Head of Early Help Inclusion & Vulnerable Children.,074000,National Supporting Families Programme,Transfer Payments,525033,Other,09-Jun-2021,000009547439479,ASDA GEORGE COM LEEDS,5411,Grants to individuals,26.94,4.49,22.45
Children and Young Peoples Services,Head of Early Help Inclusion & Vulnerable Children.,074000,National Supporting Families Programme,Transfer Payments,525033,Other,09-Jun-2021,000009547439479 - 1,ASDA GEORGE COM LEEDS,5411,Grants to individuals,123.51,,123.51
Children and Young Peoples Services,Head of Childrens Social Care,085342,16 Hickstead Rise (previously 9 Cedar Ave),Supplies and Services,324117,Provisions E324,09-Jun-2021,000009547439495,NYA Air-Serv,5499,Catering costs - provisions,5.99,0.00,5.99
Children and Young Peoples Services,Head of Childrens Social Care,085378,Young Persons Service Team 3,Supplies and Services,338045,Services,09-Jun-2021,000009547439515,HARTLEPOOL BC,9399,Legal expenses 338045,11.00,0.00,11.00
Children and Young Peoples Services,Head of Childrens Social Care,085378,Young Persons Service Team 3,Supplies and Services,338045,Services,09-Jun-2021,000009547439521,HM PASSPORT OFFICE,9399,Legal expenses 338045,75.50,0.00,75.50
"Regeneration, Economy and Growth",Culture Sport and Tourism,054235,Bishop Auckland Town Hall Cafe,Supplies and Services,324117,Provisions E324,09-Jun-2021,000009547439525,JR HOLLAND FOODSERVICE,5499,Catering costs - provisions,59.03,0.00,59.03
Children and Young Peoples Services,Head of Education and Skills,071802,Louisa Cent Nursery,Supplies and Services,324117,Provisions E324,09-Jun-2021,000009547439587,ALDI 11 774,5411,Catering costs - provisions,13.84,0.00,13.84
"Regeneration, Economy and Growth",Culture Sport and Tourism,054820,Gala Theatre - Overheads,Supplies and Services,324117,Provisions E324,09-Jun-2021,000009547439661,TESCO STORES 6029,5411,Catering costs - provisions,9.65,0.00,9.65
Children and Young Peoples Services,Head of Childrens Social Care,085331,New Lea Childrens Home,Supplies and Services,328041,Clothing uniforms and laundry E328,09-Jun-2021,000009547439675,T K MAXX,5331,Clothing uniforms and laundry,33.98,0.00,33.98
Resources BK0010,Procurement Sales & Business Services,065501,Business Support - Executive Support,Supplies and Services,304403,Equipment and Materials,09-Jun-2021,000009547439689,AMZNMktplace,5999,Other consumables,17.99,3.00,14.99
Resources BK0010,Procurement Sales & Business Services,065501,Business Support - Executive Support,Supplies and Services,304403,Equipment and Materials,09-Jun-2021,000009547439693,AMZNMktplace,5999,Other consumables,193.00,32.20,160.80
Resources BK0010,Procurement Sales & Business Services,065501,Business Support - Executive Support,Supplies and Services,304403,Equipment and Materials,09-Jun-2021,000009547439697,AMZNMktplace,5999,Other consumables,27.00,0.00,27.00
Resources BK0010,Legal & Democratic Services,067801,Registrars,Supplies and Services,304403,Equipment and Materials,09-Jun-2021,000009547439699,AMZNMktplace,5999,Other consumables,109.80,18.30,91.50
Resources BK0010,Legal & Democratic Services,067801,Registrars,Supplies and Services,304403,Equipment and Materials,09-Jun-2021,000009547439699 - 1,AMZNMktplace,5999,Other consumables,0.10,,0.10
"Regeneration, Economy and Growth",Culture Sport and Tourism,030705,Visit County Durham 030705,Supplies and Services,340001,Postages E340,09-Jun-2021,000009547439703,PARCELFORCE WL,4215,Postages,76.74,0.00,76.74
Adult and Health Services,Head of Adults,055310,Positive Journeys (Tudhoe),Supplies and Services,384999,Miscellaneous Expenses,09-Jun-2021,000009547439707,Amazon.co.uk 280I434Z4,5969,Other expenses,2.50,0.42,2.08
"Regeneration, Economy and Growth",Development and Housing,031500,Housing Solutions - Core,Supplies and Services,348037,Subsistence E348,09-Jun-2021,000009547439717,CROXDALE INN,5812,Subsistence,225.00,0.00,225.00
"Regeneration, Economy and Growth",Corporate Property and Land,021235,Catering - Wharton Park,Supplies and Services,324117,Provisions E324,09-Jun-2021,000009547439749,JR HOLLAND FOODSERVICE,5499,Catering costs - provisions,9.66,0.00,9.66
Children and Young Peoples Services,Head of Education and Skills,076001,Music Service,Supplies and Services,304221,Equipment and Materials,09-Jun-2021,000009547439769,HOMEBASE LTD 822,5200,Direct materials,32.90,0.00,32.90
Children and Young Peoples Services,Head of Childrens Social Care,085551,Short Break Services-Park Hse Sher,Supplies and Services,324117,Provisions E324,09-Jun-2021,000009547439775,CO-OP GROUP 010486,5411,Catering costs - provisions,4.05,0.00,4.05
Children and Young Peoples Services,Head of Childrens Social Care,085331,New Lea Childrens Home,Supplies and Services,308011,Furniture,09-Jun-2021,000009551144285,IKEA LTD SHOP ONLINE,5712,Furniture repair and replacement,440.00,0.00,440.00
"Regeneration, Economy and Growth",Development and Housing,030772,CLLD South,Employees,040149,Recruitment Instruction and Training,09-Jun-2021,000009551144485,NCS CITB EXAM,8299,Training-all costs,22.00,0.00,22.00
Children and Young Peoples Services,Head of Early Help Inclusion & Vulnerable Children.,071746,Newton Aycliffe Childrens Centre,Supplies and Services,304403,Equipment and Materials,09-Jun-2021,000009551144581,AMZNMKTPLACE AMAZON.CO,5999,Other consumables,5.99,1.00,4.99
Children and Young Peoples Services,Head of Early Help Inclusion & Vulnerable Children.,085956,Lumley,Transfer Payments,515002,Social Services Clients,09-Jun-2021,000009551144591,AMZNMKTPLACE AMAZON.CO,5999,Pocket money,10.79,1.80,8.99
Children and Young Peoples Services,Head of Early Help Inclusion & Vulnerable Children.,085956,Lumley,Transfer Payments,515002,Social Services Clients,09-Jun-2021,000009551144595,AMZNMKTPLACE AMAZON.CO,5999,Pocket money,7.49,1.25,6.24
Adult and Health Services,Head of Adults,055643,Hawthorn House LD Respite Unit,Supplies and Services,304403,Equipment and Materials,09-Jun-2021,000009551144949,AMZNMKTPLACE AMAZON.CO,5999,Other consumables,25.19,4.20,20.99
Adult and Health Services,Head of Adults,055643,Hawthorn House LD Respite Unit,Supplies and Services,304403,Equipment and Materials,09-Jun-2021,000009551144953,AMZNMKTPLACE AMAZON.CO,5999,Other consumables,17.99,3.00,14.99
Adult and Health Services,Head of Adults,055643,Hawthorn House LD Respite Unit,Supplies and Services,304403,Equipment and Materials,09-Jun-2021,000009551144957,AMZNMKTPLACE AMAZON.CO,5999,Other consumables,19.10,3.18,15.92
Children and Young Peoples Services,Head of Childrens Social Care,085372,Young Peoples Service Team 2,Supplies and Services,364354,Grants to Voluntary Organisations,09-Jun-2021,000009551145265,TVLICENSING.CO.UK,7392,Supervised Spend - Setting Up Home Allowance,159.00,0.00,159.00
Children and Young Peoples Services,Head of Childrens Social Care,085371,Young Peoples Service Team 1,Supplies and Services,364354,Grants to Voluntary Organisations,09-Jun-2021,000009551145271,TVLICENSING.CO.UK,7392,Supervised Spend - Setting Up Home Allowance,159.00,0.00,159.00
"Regeneration, Economy and Growth",Culture Sport and Tourism,054813,Gala Theatre - Technical,Supplies and Services,304259,Equipment and Materials,09-Jun-2021,000009555744955,Premier Farnell,5065,Equipment-purchase and rental,3.36,0.00,3.36
Children and Young Peoples Services,Head of Early Help Inclusion & Vulnerable Children.,085956,Lumley,Transfer Payments,515002,Social Services Clients,09-Jun-2021,000009555745143,NEW LOOK INTERNET,5621,Pocket money,39.97,0.00,39.97
"Regeneration, Economy and Growth",Business Durham CL0850,030689,Inward Investment and Aftercare,Supplies and Services,342033,Computers and Communications,10-Jun-2021,000009547438403,AdRoll_EMEA,7372,Computer hardware,99.54,0.00,99.54
"Regeneration, Economy and Growth",Business Durham CL0850,030689,Inward Investment and Aftercare,Supplies and Services,304999,Equipment and Materials,10-Jun-2021,000009547438405,Vimeo Plus,5968,Misc equipment tools and materials,82.80,0.00,82.80
"Regeneration, Economy and Growth",Business Durham CL0850,030689,Inward Investment and Aftercare,Supplies and Services,304999,Equipment and Materials,10-Jun-2021,000009547438407,MAILCHIMP MONTHLY,5968,Misc equipment tools and materials,2.06,0.00,2.06
"Regeneration, Economy and Growth",Business Durham CL0850,030689,Inward Investment and Aftercare,Supplies and Services,342033,Computers and Communications,10-Jun-2021,000009547438409,AdRoll_EMEA,7372,Computer hardware,2.74,0.00,2.74
"Regeneration, Economy and Growth",Culture Sport and Tourism,054813,Gala Theatre - Technical,Supplies and Services,304259,Equipment and Materials,10-Jun-2021,000009547438881,SPROUTVIDEO LLC,7399,Equipment-purchase and rental,141.63,0.00,141.63
"Regeneration, Economy and Growth",Culture Sport and Tourism,054813,Gala Theatre - Technical,Supplies and Services,304259,Equipment and Materials,10-Jun-2021,000009547438885,SPROUTVIDEO LLC,7399,Equipment-purchase and rental,3.89,0.00,3.89
Children and Young Peoples Services,Head of Early Help Inclusion & Vulnerable Children.,085956,Lumley,Transfer Payments,515002,Social Services Clients,10-Jun-2021,000009547439079,AMZNMktplace,5999,Pocket money,12.99,2.17,10.82
Children and Young Peoples Services,Head of Education and Skills,078554,Adult Skills-Main,Supplies and Services,304999,Equipment and Materials,10-Jun-2021,000009547439389,FS instantflipbook,5817,Misc equipment tools and materials,1.80,0.00,1.80
Children and Young Peoples Services,Head of Childrens Social Care,085351,Framwellgate Moor CU,Supplies and Services,372009,Subscriptions E372,10-Jun-2021,000009547439583,NETFLIX.COM,4899,Subscriptions 372009,13.99,0.00,13.99
"Regeneration, Economy and Growth",Business Durham CL0850,030689,Inward Investment and Aftercare,Third Party Payments,430100,Rendered by Private Contractors,10-Jun-2021,000009551143715,BLS monday.com,7399,Payments to sub-contractors,148.80,0.00,148.80
Children and Young Peoples Services,Head of Childrens Social Care,085633,Families First Chester-Le-Street,Supplies and Services,364340,Grants to Voluntary Organisations,10-Jun-2021,000009551143725,WWW.GONORTHEAST.CO.UK,4111,Contact expenses,20.00,0.00,20.00
Children and Young Peoples Services,Head of Childrens Social Care,085633,Families First Chester-Le-Street,Supplies and Services,364340,Grants to Voluntary Organisations,10-Jun-2021,000009551143733,WWW.GONORTHEAST.CO.UK,4111,Contact expenses,20.00,0.00,20.00
Children and Young Peoples Services,Head of Education and Skills,071801,Selby Cottage Childcare Centre,Supplies and Services,324117,Provisions E324,10-Jun-2021,000009551143741,ONE STOP 3026,5411,Catering costs - provisions,9.25,0.00,9.25
Children and Young Peoples Services,Head of Education and Skills,071801,Selby Cottage Childcare Centre,Supplies and Services,324117,Provisions E324,10-Jun-2021,000009551143753,TESCO STORES 2278,5411,Catering costs - provisions,17.57,0.00,17.57
"Regeneration, Economy and Growth",Communications Management,060270,Communications and Marketing,Supplies and Services,304259,Equipment and Materials,10-Jun-2021,000009551143775,CANVA 03082-9482955,7221,Equipment-purchase and rental,159.87,0.00,159.87
Children and Young Peoples Services,Head of Childrens Social Care,085561,Social Work Academy,Supplies and Services,384999,Miscellaneous Expenses,10-Jun-2021,000009551143781,Amazon.co.uk 283AC9ZR4,5969,Other expenses,20.35,0.00,20.35
Children and Young Peoples Services,Head of Childrens Social Care,085561,Social Work Academy,Supplies and Services,384999,Miscellaneous Expenses,10-Jun-2021,000009551143791,Amazon.co.uk 288D44ZZ4,5969,Other expenses,22.26,3.71,18.55
Children and Young Peoples Services,Head of Childrens Social Care,085561,Social Work Academy,Supplies and Services,384999,Miscellaneous Expenses,10-Jun-2021,000009551143791 - 1,Amazon.co.uk 288D44ZZ4,5969,Other expenses,115.75,,115.75
Children and Young Peoples Services,Head of Childrens Social Care,085561,Social Work Academy,Supplies and Services,384999,Miscellaneous Expenses,10-Jun-2021,000009551143799,Amazon.co.uk 281DQ1JT4,5969,Other expenses,22.26,3.71,18.55
Children and Young Peoples Services,Head of Childrens Social Care,085561,Social Work Academy,Supplies and Services,384999,Miscellaneous Expenses,10-Jun-2021,000009551143799 - 1,Amazon.co.uk 281DQ1JT4,5969,Other expenses,115.75,,115.75
Children and Young Peoples Services,Head of Childrens Social Care,085561,Social Work Academy,Supplies and Services,384999,Miscellaneous Expenses,10-Jun-2021,000009551143817,Amazon.co.uk 2814943R4,5969,Other expenses,22.23,3.71,18.52
Children and Young Peoples Services,Head of Childrens Social Care,085561,Social Work Academy,Supplies and Services,384999,Miscellaneous Expenses,10-Jun-2021,000009551143823,Amazon.co.uk 282GM8ZM4,5969,Other expenses,22.26,3.71,18.55
Children and Young Peoples Services,Head of Childrens Social Care,085561,Social Work Academy,Supplies and Services,384999,Miscellaneous Expenses,10-Jun-2021,000009551143823 - 1,Amazon.co.uk 282GM8ZM4,5969,Other expenses,115.75,,115.75
Children and Young Peoples Services,Head of Childrens Social Care,085561,Social Work Academy,Supplies and Services,384999,Miscellaneous Expenses,10-Jun-2021,000009551143829,Amazon.co.uk 289U55JN4,5969,Other expenses,115.78,0.00,115.78
"Regeneration, Economy and Growth",Development and Housing,030771,Durham Advance Flexible Fund,Supplies and Services,328041,Clothing uniforms and laundry E328,10-Jun-2021,000009551143909,eBay O 23-07187-19824,5311,Clothing uniforms and laundry,69.99,0.00,69.99
"Regeneration, Economy and Growth",Development and Housing,030771,Durham Advance Flexible Fund,Supplies and Services,328041,Clothing uniforms and laundry E328,10-Jun-2021,000009551143917,eBay O 23-07187-19825,5311,Clothing uniforms and laundry,14.95,0.00,14.95
"Regeneration, Economy and Growth",Development and Housing,030771,Durham Advance Flexible Fund,Supplies and Services,328041,Clothing uniforms and laundry E328,10-Jun-2021,000009551143923,eBay O 23-07187-19826,5311,Clothing uniforms and laundry,13.99,0.00,13.99
"Regeneration, Economy and Growth",Development and Housing,030771,Durham Advance Flexible Fund,Supplies and Services,328041,Clothing uniforms and laundry E328,10-Jun-2021,000009551143931,eBay O 23-07187-19827,5311,Clothing uniforms and laundry,8.09,0.00,8.09
"Regeneration, Economy and Growth",Development and Housing,030771,Durham Advance Flexible Fund,Supplies and Services,304259,Equipment and Materials,10-Jun-2021,000009551143937,M and M Direct Ltd,5941,Equipment-purchase and rental,29.98,0.00,29.98
"Regeneration, Economy and Growth",Development and Housing,030771,Durham Advance Flexible Fund,Supplies and Services,304403,Equipment and Materials,10-Jun-2021,000009551143947,AMZNMktplace,5999,Other consumables,27.95,4.66,23.29
"Regeneration, Economy and Growth",Development and Housing,030771,Durham Advance Flexible Fund,Supplies and Services,304403,Equipment and Materials,10-Jun-2021,000009551143949,AMZNMktplace,5999,Other consumables,19.40,3.23,16.17
"Regeneration, Economy and Growth",Development and Housing,030771,Durham Advance Flexible Fund,Supplies and Services,304999,Equipment and Materials,10-Jun-2021,000009551143957,TOOLSTATION UK,5251,Misc equipment tools and materials,49.98,8.33,41.65
"Regeneration, Economy and Growth",Development and Housing,030771,Durham Advance Flexible Fund,Supplies and Services,304403,Equipment and Materials,10-Jun-2021,000009551143965,AMZNMktplace,5999,Other consumables,44.81,7.47,37.34
"Regeneration, Economy and Growth",Development and Housing,031576,B& B - Temp Accom,Supplies and Services,364320,Grants to Voluntary Organisations,10-Jun-2021,000009551143973,TRAVELODGE,3615,Accommodation assistance,13.50,2.25,11.25
"Regeneration, Economy and Growth",Development and Housing,031576,B& B - Temp Accom,Supplies and Services,364320,Grants to Voluntary Organisations,10-Jun-2021,000009551143973 - 1,TRAVELODGE,3615,Accommodation assistance,36.72,,36.72
Children and Young Peoples Services,Head of Childrens Social Care,085332,Middlestone Moor CU,Supplies and Services,324117,Provisions E324,10-Jun-2021,000009551144085,WWW.ICELAND.CO.UK,5411,Catering costs - provisions,73.87,0.00,73.87
Children and Young Peoples Services,Head of Childrens Social Care,085332,Middlestone Moor CU,Supplies and Services,324117,Provisions E324,10-Jun-2021,000009551144093,WWW.ICELAND.CO.UK,5411,Catering costs - provisions,-1.50,0.00,-1.50
Neighbourhoods and Climate Change,Environmental Services,031238,North Pennines - Tees Swale,Supplies and Services,304259,Equipment and Materials,10-Jun-2021,000009551144169,SUFFOLK OWL SANCTUARY,5734,Equipment-purchase and rental,6.80,0.00,6.80
Neighbourhoods and Climate Change,Environmental Services,031238,North Pennines - Tees Swale,Supplies and Services,304259,Equipment and Materials,10-Jun-2021,000009551144173,BAKER ROSS,5970,Equipment-purchase and rental,30.45,0.00,30.45
Children and Young Peoples Services,Head of Childrens Social Care,085624,Families First Crook,Supplies and Services,338045,Services,10-Jun-2021,000009551144317,SUNDERLAND CC,7523,Legal expenses 338045,11.00,0.00,11.00
"Regeneration, Economy and Growth",Culture Sport and Tourism,054233,Bishop Auckland Town Hall Library,Supplies and Services,324117,Provisions E324,10-Jun-2021,000009551144341,HERON FOODS BISHOP AUC,5411,Catering costs - provisions,9.48,0.00,9.48
"Regeneration, Economy and Growth",Development and Housing,030770,Durham Advance,Supplies and Services,304259,Equipment and Materials,10-Jun-2021,000009551144349,CURRYS ONLINE,5732,Equipment-purchase and rental,184.00,0.00,184.00
"Regeneration, Economy and Growth",Development and Housing,030544,Rural Employability - Client Engagement,Supplies and Services,304403,Equipment and Materials,10-Jun-2021,000009551144415,AMZNMktplace,5999,Other consumables,22.99,3.83,19.16
